Workbook

Sheet Autoria

Sheet FC_Florestal
A5: Premissas
A6: Preços
A7: Produtos | B7: Preço (R$/m3)
A8: CEL | B8: 90
A9: BIO | B9: 0
A10: XX1 | B10: 0
A11: XX2 | B11: 0
A13: Produtividades
A14: Intervenções | B14: Idade | C14: Produtividade (m3/ha) | D14: =CONCATENATE("% Vol ",A8) -> % Vol CEL | E14: =A8 -> CEL | F14: =CONCATENATE("% Vol ",A9) -> % Vol BIO | G14: =A9 -> BIO | H14: =CONCATENATE("% Vol ",A10) -> % Vol XX1 | I14: =A10 -> XX1 | J14: =CONCATENATE("% Vol ",A11) -> % Vol XX2 | K14: =A11 -> XX2
A15: CR5 | B15: 5 | C15: 203.7 | D15: 1 | E15: =D15*$C15 -> 203.7 | F15: 0 | G15: =F15*$C15 -> 0 | H15: 0 | I15: =H15*$C15 -> 0 | J15: 0 | K15: =J15*$C15 -> 0
A16: CR6 | B16: 6 | C16: 241.045 | D16: 1 | E16: =D16*$C16 -> 241.045 | F16: 0 | G16: =F16*$C16 -> 0 | H16: 0 | I16: 0 | J16: 0 | K16: 0
A17: CR7 | B17: 7 | C17: 269.66 | D17: 1 | E17: 269.66 | F17: 0 | G17: 0 | H17: 0 | I17: 0 | J17: 0 | K17: 0
A18: CR8 | B18: 8 | C18: 291.97 | D18: 1 | E18: 291.97 | F18: 0 | G18: 0 | H18: 0 | I18: 0 | J18: 0 | K18: 0
A19: CC5 | B19: 5 | C19: 203.7 | D19: 1 | E19: 203.7 | F19: 0 | G19: 0 | H19: 0 | I19: 0 | J19: 0 | K19: 0
A20: CC6 | B20: 6 | C20: 241.045 | D20: 1 | E20: 241.045 | F20: 0 | G20: 0 | H20: 0 | I20: 0 | J20: 0 | K20: 0
A21: CC7 | B21: 7 | C21: 269.66 | D21: 1 | E21: 269.66 | F21: 0 | G21: =F21*$C21 -> 0 | H21: 0 | I21: 0 | J21: 0 | K21: 0
A22: CC8 | B22: 8 | C22: 291.97 | D22: 1 | E22: 291.97 | F22: 0 | G22: 0 | H22: 0 | I22: 0 | J22: 0 | K22: 0
A23: CF5 | B23: 5 | C23: 203.7 | D23: 1 | E23: 203.7 | F23: 0 | G23: 0 | H23: 0 | I23: 0 | J23: 0 | K23: 0
A24: CF6 | B24: 6 | C24: 241.045 | D24: 1 | E24: 241.045 | F24: 0 | G24: 0 | H24: 0 | I24: 0 | J24: 0 | K24: 0
A25: CF7 | B25: 7 | C25: 269.66 | D25: 1 | E25: 269.66 | F25: 0 | G25: 0 | H25: 0 | I25: 0 | J25: 0 | K25: 0
A26: CF8 | B26: 8 | C26: 291.97 | D26: 1 | E26: 291.97 | F26: 0 | G26: 0 | H26: 0 | I26: 0 | J26: 0 | K26: 0
A28: Despesas e Preços de Terra
A29: Intervenção | B29: % da Área para custo | C29: Despesas (R$/ha) | K29: Sigla | L29: Descrição
A30: X | B30: 0 | C30: 0 | E30: Gestão Florestal (R$/ha) | H30: 100 | K30: =A30 -> X | L30: Nada
A31: CMP | B31: 1 | C31: 0 | E31: Investimento Máquinas Flo | H31: 0.03 | I31: s/ desp operacionais | K31: CMP | L31: Compra da terra
A32: IAR | B32: 1 | C32: 0 | E32: Colheita (R$/m3) | H32: 25 | K32: IAR | L32: Início do Contrato de arrendamento
A33: IMP | B33: 1 | C33: -4000 | K33: IMP | L33: Implantação
A34: MN1 | B34: 1 | C34: -500 | E34: Regiões | F34: Prc Terra | G34: Pco Arr | H34: %Região | I34: Frete | K34: MN1 | L34: Manutenção no ano 1
A35: MN2 | B35: 1 | C35: -150 | F35: (R$/ha) | G35: (*) | I35: (R$/m3) | K35: MN2 | L35: Manutenção no ano 2
A36: MN3 | B36: 1 | C36: -150 | E36: 50KM | F36: 5000 | G36: 445.74 | H36: 0.5 | I36: 10 | K36: MN3 | L36: Manutenção no ano 3
A37: MN4 | B37: 1 | C37: -150 | E37: 150KM | F37: 4000 | G37: 407.1 | H37: 0.5 | I37: 20 | K37: MN4 | L37: Manutenção no ano 4
A38: MN5 | B38: 1 | C38: -150 | E38: XX | F38: 0 | G38: 0 | H38: 0 | I38: 0 | K38: MN5 | L38: Manutenção no ano 5
A39: MN6 | B39: 1 | C39: -150 | G39: (*) R$/ha.ano | K39: MN6 | L39: Manutenção no ano 6
A40: MN7 | B40: 1 | C40: -150 | K40: MN7 | L40: Manutenção no ano 7
A41: =A15 -> CR5 | B41: 1 | C41: -4000 | K41: CR5 | L41: Corte seguido de reforma na idade 5 anos
A42: =A16 -> CR6 | B42: 1 | C42: -4000 | K42: CR6 | L42: Corte seguido de reforma na idade 6 anos
A43: CR7 | B43: 1 | C43: -4000 | K43: CR7 | L43: Corte seguido de reforma na idade 7 anos
A44: CR8 | B44: 1 | C44: -4000 | K44: CR8 | L44: Corte seguido de reforma na idade 8 anos
A45: CC5 | B45: 1 | C45: -2000 | K45: CC5 | L45: Corte seguido de condução da brotação na idade 5 anos
A46: CC6 | B46: 1 | C46: -2000 | K46: CC6 | L46: Corte seguido de condução da brotação na idade 6 anos
A47: CC7 | B47: 1 | C47: -2000 | K47: CC7 | L47: Corte seguido de condução da brotação na idade 7 anos
A48: CC8 | B48: 1 | C48: -2000 | K48: CC8 | L48: Corte seguido de condução da brotação na idade 8 anos
A49: CF5 | B49: 1 | C49: 0 | K49: CF5 | L49: Corte aos 5 anos
A50: CF6 | B50: 1 | C50: 0 | K50: CF6 | L50: Corte aos 6 anos
A51: CF7 | B51: 1 | C51: 0 | K51: CF7 | L51: Corte aos 7 anos
A52: CF8 | B52: 1 | C52: 0 | K52: CF8 | L52: Corte aos 8 anos
A53: LAR | B53: 1 | C53: 0 | K53: LAR | L53: Liberação do contrato de arrendamento
A54: VND | B54: 1 | C54: 0 | K54: VND | L54: Venda da terra
A56: Cálculo da Área Necessária
A57: Demanda mensal | B57: 40000 | C57: m3/mês
A58: Meses | B58: 12 | C58: meses
A59: Demanda Anual | B59: =B57*B58 -> 480000 | C59: m3/ano
A60: IMA (6 anos) | B60: =241/6 -> 40.16666667 | C60: m3/ha.ano
A61: Área necessária | B61: =B59/B60 -> 11950.20747 | C61: ha
A62: Aproveitamento | B62: 0.6
A63: Área Total | B63: =B61/B62 -> 19917.01245 | C63: ha
A65: Fluxo de Caixa Florestal | D65: =D66-$D$66+1 -> 1 | E65: =E66-$D$66+1 -> 2 | F65: 3 | G65: 4 | H65: 5 | I65: 6 | J65: 7 | K65: 8 | L65: =L66-$D$66+1 -> 9 | M65: 10 | N65: 11 | O65: 12 | P65: 13 | Q65: 14 | R65: 15 | S65: 16 | T65: 17 | U65: 18 | V65: 19 | W65: 20 | X65: 21 | Y65: 22 | Z65: 23 | AA65: 24 | AB65: 25 | AC65: 26
D66: =FC_Financeiro!D14 -> 2015 | E66: =D66+1 -> 2016 | F66: =E66+1 -> 2017 | G66: 2018 | H66: 2019 | I66: 2020 | J66: 2021 | K66: 2022 | L66: 2023 | M66: 2024 | N66: 2025 | O66: 2026 | P66: 2027 | Q66: 2028 | R66: 2029 | S66: 2030 | T66: 2031 | U66: 2032 | V66: 2033 | W66: 2034 | X66: 2035 | Y66: 2036 | Z66: 2037 | AA66: 2038 | AB66: 2039 | AC66: 2040
A67: Planejamento | B67: 1000 | C67: Tlh01 | D67: CMP | E67: IMP | F67: MN1 | G67: MN2 | H67: MN3 | I67: MN4 | J67: MN5 | K67: CR6 | L67: MN1 | M67: MN2 | N67: MN3 | O67: MN4 | P67: MN5 | Q67: CC6 | R67: MN1 | S67: MN2 | T67: MN3 | U67: MN4 | V67: MN5 | W67: CF6 | X67: VND | Y67: X | Z67: X | AA67: X | AB67: X | AC67: X
B68: 1000 | C68: Tlh02 | D68: X | E68: CMP | F68: IMP | G68: MN1 | H68: MN2 | I68: MN3 | J68: MN4 | K68: MN5 | L68: CR6 | M68: MN1 | N68: MN2 | O68: MN3 | P68: MN4 | Q68: MN5 | R68: CC6 | S68: MN1 | T68: MN2 | U68: MN3 | V68: MN4 | W68: MN5 | X68: CF6 | Y68: VND | Z68: X | AA68: X | AB68: X | AC68: X
B69: 1000 | C69: Tlh03 | D69: x | E69: X | F69: CMP | G69: IMP | H69: MN1 | I69: MN2 | J69: MN3 | K69: MN4 | L69: MN5 | M69: CR6 | N69: MN1 | O69: MN2 | P69: MN3 | Q69: MN4 | R69: MN5 | S69: CC6 | T69: MN1 | U69: MN2 | V69: MN3 | W69: MN4 | X69: MN5 | Y69: CF6 | Z69: VND | AA69: X | AB69: X | AC69: X
B70: 1000 | C70: Tlh04 | D70: x | E70: X | F70: X | G70: CMP | H70: IMP | I70: MN1 | J70: MN2 | K70: MN3 | L70: MN4 | M70: MN5 | N70: CR6 | O70: MN1 | P70: MN2 | Q70: MN3 | R70: MN4 | S70: MN5 | T70: CC6 | U70: MN1 | V70: MN2 | W70: MN3 | X70: MN4 | Y70: MN5 | Z70: CF6 | AA70: VND | AB70: X | AC70: X
B71: 1000 | C71: Tlh05 | D71: X | E71: X | F71: X | G71: X | H71: CMP | I71: IMP | J71: MN1 | K71: MN2 | L71: MN3 | M71: MN4 | N71: MN5 | O71: CR6 | P71: MN1 | Q71: MN2 | R71: MN3 | S71: MN4 | T71: MN5 | U71: CC6 | V71: MN1 | W71: MN2 | X71: MN3 | Y71: MN4 | Z71: MN5 | AA71: CF6 | AB71: VND | AC71: X
B72: 1000 | C72: Tlh06 | D72: X | E72: X | F72: X | G72: X | H72: X | I72: CMP | J72: IMP | K72: MN1 | L72: MN2 | M72: MN3 | N72: MN4 | O72: MN5 | P72: CR6 | Q72: MN1 | R72: MN2 | S72: MN3 | T72: MN4 | U72: MN5 | V72: CC6 | W72: MN1 | X72: MN2 | Y72: MN3 | Z72: MN4 | AA72: MN5 | AB72: CF6 | AC72: VND
B73: 1000 | C73: Tlh07 | D73: CMP | E73: IMP | F73: MN1 | G73: MN2 | H73: MN3 | I73: MN4 | J73: MN5 | K73: CC6 | L73: MN1 | M73: MN2 | N73: MN3 | O73: MN4 | P73: MN5 | Q73: CR6 | R73: MN1 | S73: MN2 | T73: MN3 | U73: MN4 | V73: MN5 | W73: CF6 | X73: VND | Y73: X | Z73: X | AA73: X | AB73: X | AC73: X
B74: 1000 | C74: Tlh08 | D74: X | E74: CMP | F74: IMP | G74: MN1 | H74: MN2 | I74: MN3 | J74: MN4 | K74: MN5 | L74: CC6 | M74: MN1 | N74: MN2 | O74: MN3 | P74: MN4 | Q74: MN5 | R74: CR6 | S74: MN1 | T74: MN2 | U74: MN3 | V74: MN4 | W74: MN5 | X74: CF6 | Y74: VND | Z74: X | AA74: X | AB74: X | AC74: X
B75: 1000 | C75: Tlh09 | D75: x | E75: X | F75: CMP | G75: IMP | H75: MN1 | I75: MN2 | J75: MN3 | K75: MN4 | L75: MN5 | M75: CC6 | N75: MN1 | O75: MN2 | P75: MN3 | Q75: MN4 | R75: MN5 | S75: CR6 | T75: MN1 | U75: MN2 | V75: MN3 | W75: MN4 | X75: MN5 | Y75: CF6 | Z75: VND | AA75: X | AB75: X | AC75: X
B76: 1000 | C76: Tlh10 | D76: x | E76: X | F76: X | G76: CMP | H76: IMP | I76: MN1 | J76: MN2 | K76: MN3 | L76: MN4 | M76: MN5 | N76: CC6 | O76: MN1 | P76: MN2 | Q76: MN3 | R76: MN4 | S76: MN5 | T76: CR6 | U76: MN1 | V76: MN2 | W76: MN3 | X76: MN4 | Y76: MN5 | Z76: CF6 | AA76: VND | AB76: X | AC76: X
B77: 1000 | C77: Tlh11 | D77: X | E77: X | F77: X | G77: X | H77: CMP | I77: IMP | J77: MN1 | K77: MN2 | L77: MN3 | M77: MN4 | N77: MN5 | O77: CC6 | P77: MN1 | Q77: MN2 | R77: MN3 | S77: MN4 | T77: MN5 | U77: CR6 | V77: MN1 | W77: MN2 | X77: MN3 | Y77: MN4 | Z77: MN5 | AA77: CF6 | AB77: VND | AC77: X
B78: 1000 | C78: Tlh12 | D78: X | E78: X | F78: X | G78: X | H78: X | I78: CMP | J78: IMP | K78: MN1 | L78: MN2 | M78: MN3 | N78: MN4 | O78: MN5 | P78: CC6 | Q78: MN1 | R78: MN2 | S78: MN3 | T78: MN4 | U78: MN5 | V78: CR6 | W78: MN1 | X78: MN2 | Y78: MN3 | Z78: MN4 | AA78: MN5 | AB78: CF6 | AC78: VND
B79: 0 | C79: Tlh13 | D79: X | E79: X | F79: X | G79: X | H79: X | I79: X | J79: X | K79: X | L79: X | M79: X | N79: X | O79: X | P79: X | Q79: X | R79: X | S79: X | T79: X | U79: X | V79: X | W79: X | X79: X | Y79: X | Z79: X | AA79: X | AB79: X | AC79: X
B80: 0 | C80: Tlh14 | D80: X | E80: X | F80: X | G80: X | H80: X | I80: X | J80: X | K80: X | L80: X | M80: X | N80: X | O80: X | P80: X | Q80: X | R80: X | S80: X | T80: X | U80: X | V80: X | W80: X | X80: X | Y80: X | Z80: X | AA80: X | AB80: X | AC80: X
A81: Total Planejamento (ha) | B81: =SUM(B67:B80) -> 12000 | C81: Ganho de Produt.>> | D81: 1 | E81: 1 | F81: 1 | G81: 1 | H81: 1 | I81: 1 | J81: 1 | K81: 1 | L81: 1 | M81: 1 | N81: 1 | O81: 1.06 | P81: 1.06 | Q81: 1.06 | R81: 1.06 | S81: 1.06 | T81: 1.12 | U81: 1.12 | V81: 1.12 | W81: 1.12 | X81: 1.12 | Y81: 1.12 | Z81: 1.12 | AA81: 1.12 | AB81: 1.12 | AC81: 1.12
A82: Área de Implantação (ha) | B82: IMP | C82: =SUM(D82:AC82) -> 12000 | D82: =SUMIF(D$67:D$80,$B82,$B$67:$B$80) -> 0 | E82: 2000 | F82: 2000 | G82: 2000 | H82: 2000 | I82: 2000 | J82: 2000 | K82: 0 | L82: 0 | M82: 0 | N82: 0 | O82: 0 | P82: 0 | Q82: 0 | R82: 0 | S82: 0 | T82: 0 | U82: 0 | V82: 0 | W82: 0 | X82: 0 | Y82: 0 | Z82: 0 | AA82: 0 | AB82: 0 | AC82: 0
A84: Área Compra (ha) | B84: CMP | C84: =SUM(D84:AC84) -> 12000 | D84: =SUMIF(D$67:D$80,$B84,$B$67:$B$80) -> 2000 | E84: =SUMIF(E$67:E$80,$B84,$B$67:$B$80) -> 2000 | F84: =SUMIF(F$67:F$80,$B84,$B$67:$B$80) -> 2000 | G84: 2000 | H84: 2000 | I84: 2000 | J84: 0 | K84: 0 | L84: 0 | M84: 0 | N84: 0 | O84: 0 | P84: 0 | Q84: 0 | R84: 0 | S84: 0 | T84: 0 | U84: 0 | V84: 0 | W84: 0 | X84: 0 | Y84: 0 | Z84: 0 | AA84: 0 | AB84: 0 | AC84: 0
B85: Total | C85: 20000 | D85: =D84/$B$62 -> 3333.333333 | E85: 3333.333333 | F85: 3333.333333 | G85: 3333.333333 | H85: 3333.333333 | I85: 3333.333333 | J85: 0 | K85: 0 | L85: 0 | M85: 0 | N85: 0 | O85: 0 | P85: 0 | Q85: 0 | R85: 0 | S85: 0 | T85: 0 | U85: 0 | V85: 0 | W85: 0 | X85: 0 | Y85: 0 | Z85: 0 | AA85: 0 | AB85: 0 | AC85: 0
A86: Área Arrendamento (ha) | B86: IAR | C86: 0 | D86: =SUMIF(D$67:D$80,$B86,$B$67:$B$80) -> 0 | E86: =SUMIF(E$67:E$80,$B86,$B$67:$B$80) -> 0 | F86: 0 | G86: 0 | H86: 0 | I86: 0 | J86: 0 | K86: 0 | L86: 0 | M86: 0 | N86: 0 | O86: 0 | P86: 0 | Q86: 0 | R86: 0 | S86: 0 | T86: 0 | U86: 0 | V86: 0 | W86: 0 | X86: 0 | Y86: 0 | Z86: 0 | AA86: 0 | AB86: 0 | AC86: 0
B87: Total | C87: 0 | D87: =D86/$B$62 -> 0 | E87: 0 | F87: 0 | G87: 0 | H87: 0 | I87: 0 | J87: 0 | K87: 0 | L87: 0 | M87: 0 | N87: 0 | O87: 0 | P87: 0 | Q87: 0 | R87: 0 | S87: 0 | T87: 0 | U87: 0 | V87: 0 | W87: 0 | X87: 0 | Y87: 0 | Z87: 0 | AA87: 0 | AB87: 0 | AC87: 0
A88: Área venda (ha) | B88: VND | C88: 12000 | D88: =SUMIF(D$67:D$80,$B88,$B$67:$B$80) -> 0 | E88: =SUMIF(E$67:E$80,$B88,$B$67:$B$80) -> 0 | F88: 0 | G88: 0 | H88: 0 | I88: 0 | J88: 0 | K88: 0 | L88: 0 | M88: 0 | N88: 0 | O88: 0 | P88: 0 | Q88: 0 | R88: 0 | S88: 0 | T88: 0 | U88: 0 | V88: 0 | W88: 0 | X88: 2000 | Y88: 2000 | Z88: 2000 | AA88: 2000 | AB88: 2000 | AC88: 2000
B89: Total | C89: 20000 | D89: =D88/$B$62 -> 0 | E89: 0 | F89: 0 | G89: 0 | H89: 0 | I89: 0 | J89: 0 | K89: 0 | L89: 0 | M89: 0 | N89: 0 | O89: 0 | P89: 0 | Q89: 0 | R89: 0 | S89: 0 | T89: 0 | U89: 0 | V89: 0 | W89: 0 | X89: 3333.333333 | Y89: 3333.333333 | Z89: 3333.333333 | AA89: 3333.333333 | AB89: 3333.333333 | AC89: 3333.333333
A90: Área Lib Arrend (ha) | B90: LAR | C90: 0 | D90: =SUMIF(D$67:D$80,$B90,$B$67:$B$80) -> 0 | E90: =SUMIF(E$67:E$80,$B90,$B$67:$B$80) -> 0 | F90: 0 | G90: 0 | H90: 0 | I90: 0 | J90: 0 | K90: 0 | L90: 0 | M90: 0 | N90: 0 | O90: 0 | P90: 0 | Q90: 0 | R90: 0 | S90: 0 | T90: 0 | U90: 0 | V90: 0 | W90: 0 | X90: 0 | Y90: 0 | Z90: 0 | AA90: 0 | AB90: 0 | AC90: 0
B91: Total | C91: 0 | D91: =D90/$B$62 -> 0 | E91: 0 | F91: 0 | G91: 0 | H91: 0 | I91: 0 | J91: 0 | K91: 0 | L91: 0 | M91: 0 | N91: 0 | O91: 0 | P91: 0 | Q91: 0 | R91: 0 | S91: 0 | T91: 0 | U91: 0 | V91: 0 | W91: 0 | X91: 0 | Y91: 0 | Z91: 0 | AA91: 0 | AB91: 0 | AC91: 0
A92: Área Própria(ha) | C92: =MAX(D92:AC92) -> 12000 | D92: =D84-D88 -> 2000 | E92: =D92+E84-E88 -> 4000 | F92: =E92+F84-F88 -> 6000 | G92: 8000 | H92: 10000 | I92: 12000 | J92: 12000 | K92: 12000 | L92: 12000 | M92: 12000 | N92: 12000 | O92: 12000 | P92: 12000 | Q92: 12000 | R92: 12000 | S92: 12000 | T92: 12000 | U92: 12000 | V92: 12000 | W92: 12000 | X92: 10000 | Y92: 8000 | Z92: 6000 | AA92: 4000 | AB92: 2000 | AC92: 0
B93: Total | C93: 20000 | D93: =D85-D89 -> 3333.333333 | E93: =D93+E85-E89 -> 6666.666667 | F93: 10000 | G93: 13333.33333 | H93: 16666.66667 | I93: 20000 | J93: 20000 | K93: 20000 | L93: 20000 | M93: 20000 | N93: 20000 | O93: 20000 | P93: 20000 | Q93: 20000 | R93: 20000 | S93: 20000 | T93: 20000 | U93: 20000 | V93: 20000 | W93: 20000 | X93: 16666.66667 | Y93: 13333.33333 | Z93: 10000 | AA93: 6666.666667 | AB93: 3333.333333 | AC93: 0
A94: Área arrendada(ha) | C94: 0 | D94: =D86-D90 -> 0 | E94: =D94+E86-E90 -> 0 | F94: =E94+F86-F90 -> 0 | G94: 0 | H94: 0 | I94: 0 | J94: 0 | K94: 0 | L94: 0 | M94: 0 | N94: 0 | O94: 0 | P94: 0 | Q94: 0 | R94: 0 | S94: 0 | T94: 0 | U94: 0 | V94: 0 | W94: 0 | X94: 0 | Y94: 0 | Z94: 0 | AA94: 0 | AB94: 0 | AC94: 0
B95: Total | C95: 0 | D95: =D87-D91 -> 0 | E95: =D95+E87-E91 -> 0 | F95: =E95+F87-F91 -> 0 | G95: 0 | H95: 0 | I95: 0 | J95: 0 | K95: 0 | L95: 0 | M95: 0 | N95: 0 | O95: 0 | P95: 0 | Q95: 0 | R95: 0 | S95: 0 | T95: 0 | U95: 0 | V95: 0 | W95: 0 | X95: 0 | Y95: 0 | Z95: 0 | AA95: 0 | AB95: 0 | AC95: 0
A96: Área de Gestão(ha) | C96: 12000 | D96: =D92+D94 -> 2000 | E96: =E92+E94 -> 4000 | F96: 6000 | G96: 8000 | H96: 10000 | I96: 12000 | J96: 12000 | K96: 12000 | L96: 12000 | M96: 12000 | N96: 12000 | O96: 12000 | P96: 12000 | Q96: 12000 | R96: 12000 | S96: 12000 | T96: 12000 | U96: 12000 | V96: 12000 | W96: 12000 | X96: 10000 | Y96: 8000 | Z96: 6000 | AA96: 4000 | AB96: 2000 | AC96: 0
B97: Total | C97: 20000 | D97: =D93+D95 -> 3333.333333 | E97: =E93+E95 -> 6666.666667 | F97: 10000 | G97: 13333.33333 | H97: 16666.66667 | I97: 20000 | J97: 20000 | K97: 20000 | L97: 20000 | M97: 20000 | N97: 20000 | O97: 20000 | P97: 20000 | Q97: 20000 | R97: 20000 | S97: 20000 | T97: 20000 | U97: 20000 | V97: 20000 | W97: 20000 | X97: 16666.66667 | Y97: 13333.33333 | Z97: 10000 | AA97: 6666.666667 | AB97: 3333.333333 | AC97: 0
B98: Soma | C98: Valor Presente
A99: Despesas Operacionais: Plantio, Reforma, Condução e Manutenção (mil R$) | C99: =C67 -> Tlh01 | D99: =VLOOKUP(D67,$A$29:$C$54,3,0)*VLOOKUP(D67,$A$29:$C$54,2,0)*$B67*FC_Financeiro!D$16/1000 -> 0 | E99: =VLOOKUP(E67,$A$29:$C$54,3,0)*VLOOKUP(E67,$A$29:$C$54,2,0)*$B67*FC_Financeiro!E$16/1000 -> -4452.1 | F99: =VLOOKUP(F67,$A$29:$C$54,3,0)*VLOOKUP(F67,$A$29:$C$54,2,0)*$B67*FC_Financeiro!F$16/1000 -> -578.773 | G99: =VLOOKUP(G67,$A$29:$C$54,3,0)*VLOOKUP(G67,$A$29:$C$54,2,0)*$B67*FC_Financeiro!G$16/1000 -> -180.577176 | H99: =VLOOKUP(H67,$A$29:$C$54,3,0)*VLOOKUP(H67,$A$29:$C$54,2,0)*$B67*FC_Financeiro!H$16/1000 -> -187.800263 | I99: =VLOOKUP(I67,$A$29:$C$54,3,0)*VLOOKUP(I67,$A$29:$C$54,2,0)*$B67*FC_Financeiro!I$16/1000 -> -195.3122736 | J99: =VLOOKUP(J67,$A$29:$C$54,3,0)*VLOOKUP(J67,$A$29:$C$54,2,0)*$B67*FC_Financeiro!J$16/1000 -> -203.1247645 | K99: =VLOOKUP(K67,$A$29:$C$54,3,0)*VLOOKUP(K67,$A$29:$C$54,2,0)*$B67*FC_Financeiro!K$16/1000 -> -5633.326802 | L99: =VLOOKUP(L67,$A$29:$C$54,3,0)*VLOOKUP(L67,$A$29:$C$54,2,0)*$B67*FC_Financeiro!L$16/1000 -> -732.3324843 | M99: =VLOOKUP(M67,$A$29:$C$54,3,0)*VLOOKUP(M67,$A$29:$C$54,2,0)*$B67*FC_Financeiro!M$16/1000 -> -228.4877351 | N99: =VLOOKUP(N67,$A$29:$C$54,3,0)*VLOOKUP(N67,$A$29:$C$54,2,0)*$B67*FC_Financeiro!N$16/1000 -> -237.6272445 | O99: =VLOOKUP(O67,$A$29:$C$54,3,0)*VLOOKUP(O67,$A$29:$C$54,2,0)*$B67*FC_Financeiro!O$16/1000 -> -247.1323343 | P99: =VLOOKUP(P67,$A$29:$C$54,3,0)*VLOOKUP(P67,$A$29:$C$54,2,0)*$B67*FC_Financeiro!P$16/1000 -> -257.0176277 | Q99: =VLOOKUP(Q67,$A$29:$C$54,3,0)*VLOOKUP(Q67,$A$29:$C$54,2,0)*$B67*FC_Financeiro!Q$16/1000 -> -3563.97777 | R99: =VLOOKUP(R67,$A$29:$C$54,3,0)*VLOOKUP(R67,$A$29:$C$54,2,0)*$B67*FC_Financeiro!R$16/1000 -> -926.6342202 | S99: =VLOOKUP(S67,$A$29:$C$54,3,0)*VLOOKUP(S67,$A$29:$C$54,2,0)*$B67*FC_Financeiro!S$16/1000 -> -289.1098767 | T99: =VLOOKUP(T67,$A$29:$C$54,3,0)*VLOOKUP(T67,$A$29:$C$54,2,0)*$B67*FC_Financeiro!T$16/1000 -> -300.6742718 | U99: =VLOOKUP(U67,$A$29:$C$54,3,0)*VLOOKUP(U67,$A$29:$C$54,2,0)*$B67*FC_Financeiro!U$16/1000 -> -312.7012427 | V99: =VLOOKUP(V67,$A$29:$C$54,3,0)*VLOOKUP(V67,$A$29:$C$54,2,0)*$B67*FC_Financeiro!V$16/1000 -> -325.2092924 | W99: =VLOOKUP(W67,$A$29:$C$54,3,0)*VLOOKUP(W67,$A$29:$C$54,2,0)*$B67*FC_Financeiro!W$16/1000 -> 0 | X99: =VLOOKUP(X67,$A$29:$C$54,3,0)*VLOOKUP(X67,$A$29:$C$54,2,0)*$B67*FC_Financeiro!X$16/1000 -> 0 | Y99: =VLOOKUP(Y67,$A$29:$C$54,3,0)*VLOOKUP(Y67,$A$29:$C$54,2,0)*$B67*FC_Financeiro!Y$16/1000 -> 0 | Z99: =VLOOKUP(Z67,$A$29:$C$54,3,0)*VLOOKUP(Z67,$A$29:$C$54,2,0)*$B67*FC_Financeiro!Z$16/1000 -> 0 | AA99: =VLOOKUP(AA67,$A$29:$C$54,3,0)*VLOOKUP(AA67,$A$29:$C$54,2,0)*$B67*FC_Financeiro!AA$16/1000 -> 0 | AB99: =VLOOKUP(AB67,$A$29:$C$54,3,0)*VLOOKUP(AB67,$A$29:$C$54,2,0)*$B67*FC_Financeiro!AB$16/1000 -> 0 | AC99: =VLOOKUP(AC67,$A$29:$C$54,3,0)*VLOOKUP(AC67,$A$29:$C$54,2,0)*$B67*FC_Financeiro!AC$16/1000 -> 0
C100: =C68 -> Tlh02 | D100: =VLOOKUP(D68,$A$29:$C$54,3,0)*VLOOKUP(D68,$A$29:$C$54,2,0)*$B68*FC_Financeiro!D$16/1000 -> 0 | E100: =VLOOKUP(E68,$A$29:$C$54,3,0)*VLOOKUP(E68,$A$29:$C$54,2,0)*$B68*FC_Financeiro!E$16/1000 -> 0 | F100: =VLOOKUP(F68,$A$29:$C$54,3,0)*VLOOKUP(F68,$A$29:$C$54,2,0)*$B68*FC_Financeiro!F$16/1000 -> -4630.184 | G100: =VLOOKUP(G68,$A$29:$C$54,3,0)*VLOOKUP(G68,$A$29:$C$54,2,0)*$B68*FC_Financeiro!G$16/1000 -> -601.92392 | H100: =VLOOKUP(H68,$A$29:$C$54,3,0)*VLOOKUP(H68,$A$29:$C$54,2,0)*$B68*FC_Financeiro!H$16/1000 -> -187.800263 | I100: =VLOOKUP(I68,$A$29:$C$54,3,0)*VLOOKUP(I68,$A$29:$C$54,2,0)*$B68*FC_Financeiro!I$16/1000 -> -195.3122736 | J100: =VLOOKUP(J68,$A$29:$C$54,3,0)*VLOOKUP(J68,$A$29:$C$54,2,0)*$B68*FC_Financeiro!J$16/1000 -> -203.1247645 | K100: =VLOOKUP(K68,$A$29:$C$54,3,0)*VLOOKUP(K68,$A$29:$C$54,2,0)*$B68*FC_Financeiro!K$16/1000 -> -211.2497551 | L100: =VLOOKUP(L68,$A$29:$C$54,3,0)*VLOOKUP(L68,$A$29:$C$54,2,0)*$B68*FC_Financeiro!L$16/1000 -> -5858.659874 | M100: =VLOOKUP(M68,$A$29:$C$54,3,0)*VLOOKUP(M68,$A$29:$C$54,2,0)*$B68*FC_Financeiro!M$16/1000 -> -761.6257837 | N100: =VLOOKUP(N68,$A$29:$C$54,3,0)*VLOOKUP(N68,$A$29:$C$54,2,0)*$B68*FC_Financeiro!N$16/1000 -> -237.6272445 | O100: =VLOOKUP(O68,$A$29:$C$54,3,0)*VLOOKUP(O68,$A$29:$C$54,2,0)*$B68*FC_Financeiro!O$16/1000 -> -247.1323343 | P100: =VLOOKUP(P68,$A$29:$C$54,3,0)*VLOOKUP(P68,$A$29:$C$54,2,0)*$B68*FC_Financeiro!P$16/1000 -> -257.0176277 | Q100: =VLOOKUP(Q68,$A$29:$C$54,3,0)*VLOOKUP(Q68,$A$29:$C$54,2,0)*$B68*FC_Financeiro!Q$16/1000 -> -267.2983328 | R100: =VLOOKUP(R68,$A$29:$C$54,3,0)*VLOOKUP(R68,$A$29:$C$54,2,0)*$B68*FC_Financeiro!R$16/1000 -> -3706.536881 | S100: =VLOOKUP(S68,$A$29:$C$54,3,0)*VLOOKUP(S68,$A$29:$C$54,2,0)*$B68*FC_Financeiro!S$16/1000 -> -963.699589 | T100: =VLOOKUP(T68,$A$29:$C$54,3,0)*VLOOKUP(T68,$A$29:$C$54,2,0)*$B68*FC_Financeiro!T$16/1000 -> -300.6742718 | U100: =VLOOKUP(U68,$A$29:$C$54,3,0)*VLOOKUP(U68,$A$29:$C$54,2,0)*$B68*FC_Financeiro!U$16/1000 -> -312.7012427 | V100: =VLOOKUP(V68,$A$29:$C$54,3,0)*VLOOKUP(V68,$A$29:$C$54,2,0)*$B68*FC_Financeiro!V$16/1000 -> -325.2092924 | W100: =VLOOKUP(W68,$A$29:$C$54,3,0)*VLOOKUP(W68,$A$29:$C$54,2,0)*$B68*FC_Financeiro!W$16/1000 -> -338.2176641 | X100: =VLOOKUP(X68,$A$29:$C$54,3,0)*VLOOKUP(X68,$A$29:$C$54,2,0)*$B68*FC_Financeiro!X$16/1000 -> 0 | Y100: =VLOOKUP(Y68,$A$29:$C$54,3,0)*VLOOKUP(Y68,$A$29:$C$54,2,0)*$B68*FC_Financeiro!Y$16/1000 -> 0 | Z100: =VLOOKUP(Z68,$A$29:$C$54,3,0)*VLOOKUP(Z68,$A$29:$C$54,2,0)*$B68*FC_Financeiro!Z$16/1000 -> 0 | AA100: =VLOOKUP(AA68,$A$29:$C$54,3,0)*VLOOKUP(AA68,$A$29:$C$54,2,0)*$B68*FC_Financeiro!AA$16/1000 -> 0 | AB100: =VLOOKUP(AB68,$A$29:$C$54,3,0)*VLOOKUP(AB68,$A$29:$C$54,2,0)*$B68*FC_Financeiro!AB$16/1000 -> 0 | AC100: =VLOOKUP(AC68,$A$29:$C$54,3,0)*VLOOKUP(AC68,$A$29:$C$54,2,0)*$B68*FC_Financeiro!AC$16/1000 -> 0
C101: Tlh03 | D101: =VLOOKUP(D69,$A$29:$C$54,3,0)*VLOOKUP(D69,$A$29:$C$54,2,0)*$B69*FC_Financeiro!D$16/1000 -> 0 | E101: =VLOOKUP(E69,$A$29:$C$54,3,0)*VLOOKUP(E69,$A$29:$C$54,2,0)*$B69*FC_Financeiro!E$16/1000 -> 0 | F101: =VLOOKUP(F69,$A$29:$C$54,3,0)*VLOOKUP(F69,$A$29:$C$54,2,0)*$B69*FC_Financeiro!F$16/1000 -> 0 | G101: =VLOOKUP(G69,$A$29:$C$54,3,0)*VLOOKUP(G69,$A$29:$C$54,2,0)*$B69*FC_Financeiro!G$16/1000 -> -4815.39136 | H101: =VLOOKUP(H69,$A$29:$C$54,3,0)*VLOOKUP(H69,$A$29:$C$54,2,0)*$B69*FC_Financeiro!H$16/1000 -> -626.0008768 | I101: =VLOOKUP(I69,$A$29:$C$54,3,0)*VLOOKUP(I69,$A$29:$C$54,2,0)*$B69*FC_Financeiro!I$16/1000 -> -195.3122736 | J101: =VLOOKUP(J69,$A$29:$C$54,3,0)*VLOOKUP(J69,$A$29:$C$54,2,0)*$B69*FC_Financeiro!J$16/1000 -> -203.1247645 | K101: =VLOOKUP(K69,$A$29:$C$54,3,0)*VLOOKUP(K69,$A$29:$C$54,2,0)*$B69*FC_Financeiro!K$16/1000 -> -211.2497551 | L101: =VLOOKUP(L69,$A$29:$C$54,3,0)*VLOOKUP(L69,$A$29:$C$54,2,0)*$B69*FC_Financeiro!L$16/1000 -> -219.6997453 | M101: =VLOOKUP(M69,$A$29:$C$54,3,0)*VLOOKUP(M69,$A$29:$C$54,2,0)*$B69*FC_Financeiro!M$16/1000 -> -6093.006269 | N101: =VLOOKUP(N69,$A$29:$C$54,3,0)*VLOOKUP(N69,$A$29:$C$54,2,0)*$B69*FC_Financeiro!N$16/1000 -> -792.090815 | O101: =VLOOKUP(O69,$A$29:$C$54,3,0)*VLOOKUP(O69,$A$29:$C$54,2,0)*$B69*FC_Financeiro!O$16/1000 -> -247.1323343 | P101: =VLOOKUP(P69,$A$29:$C$54,3,0)*VLOOKUP(P69,$A$29:$C$54,2,0)*$B69*FC_Financeiro!P$16/1000 -> -257.0176277 | Q101: =VLOOKUP(Q69,$A$29:$C$54,3,0)*VLOOKUP(Q69,$A$29:$C$54,2,0)*$B69*FC_Financeiro!Q$16/1000 -> -267.2983328 | R101: =VLOOKUP(R69,$A$29:$C$54,3,0)*VLOOKUP(R69,$A$29:$C$54,2,0)*$B69*FC_Financeiro!R$16/1000 -> -277.9902661 | S101: =VLOOKUP(S69,$A$29:$C$54,3,0)*VLOOKUP(S69,$A$29:$C$54,2,0)*$B69*FC_Financeiro!S$16/1000 -> -3854.798356 | T101: =VLOOKUP(T69,$A$29:$C$54,3,0)*VLOOKUP(T69,$A$29:$C$54,2,0)*$B69*FC_Financeiro!T$16/1000 -> -1002.247573 | U101: =VLOOKUP(U69,$A$29:$C$54,3,0)*VLOOKUP(U69,$A$29:$C$54,2,0)*$B69*FC_Financeiro!U$16/1000 -> -312.7012427 | V101: =VLOOKUP(V69,$A$29:$C$54,3,0)*VLOOKUP(V69,$A$29:$C$54,2,0)*$B69*FC_Financeiro!V$16/1000 -> -325.2092924 | W101: =VLOOKUP(W69,$A$29:$C$54,3,0)*VLOOKUP(W69,$A$29:$C$54,2,0)*$B69*FC_Financeiro!W$16/1000 -> -338.2176641 | X101: =VLOOKUP(X69,$A$29:$C$54,3,0)*VLOOKUP(X69,$A$29:$C$54,2,0)*$B69*FC_Financeiro!X$16/1000 -> -351.7463706 | Y101: =VLOOKUP(Y69,$A$29:$C$54,3,0)*VLOOKUP(Y69,$A$29:$C$54,2,0)*$B69*FC_Financeiro!Y$16/1000 -> 0 | Z101: =VLOOKUP(Z69,$A$29:$C$54,3,0)*VLOOKUP(Z69,$A$29:$C$54,2,0)*$B69*FC_Financeiro!Z$16/1000 -> 0 | AA101: =VLOOKUP(AA69,$A$29:$C$54,3,0)*VLOOKUP(AA69,$A$29:$C$54,2,0)*$B69*FC_Financeiro!AA$16/1000 -> 0 | AB101: =VLOOKUP(AB69,$A$29:$C$54,3,0)*VLOOKUP(AB69,$A$29:$C$54,2,0)*$B69*FC_Financeiro!AB$16/1000 -> 0 | AC101: =VLOOKUP(AC69,$A$29:$C$54,3,0)*VLOOKUP(AC69,$A$29:$C$54,2,0)*$B69*FC_Financeiro!AC$16/1000 -> 0
C102: Tlh04 | D102: =VLOOKUP(D70,$A$29:$C$54,3,0)*VLOOKUP(D70,$A$29:$C$54,2,0)*$B70*FC_Financeiro!D$16/1000 -> 0 | E102: =VLOOKUP(E70,$A$29:$C$54,3,0)*VLOOKUP(E70,$A$29:$C$54,2,0)*$B70*FC_Financeiro!E$16/1000 -> 0 | F102: =VLOOKUP(F70,$A$29:$C$54,3,0)*VLOOKUP(F70,$A$29:$C$54,2,0)*$B70*FC_Financeiro!F$16/1000 -> 0 | G102: =VLOOKUP(G70,$A$29:$C$54,3,0)*VLOOKUP(G70,$A$29:$C$54,2,0)*$B70*FC_Financeiro!G$16/1000 -> 0 | H102: =VLOOKUP(H70,$A$29:$C$54,3,0)*VLOOKUP(H70,$A$29:$C$54,2,0)*$B70*FC_Financeiro!H$16/1000 -> -5008.007014 | I102: =VLOOKUP(I70,$A$29:$C$54,3,0)*VLOOKUP(I70,$A$29:$C$54,2,0)*$B70*FC_Financeiro!I$16/1000 -> -651.0409119 | J102: =VLOOKUP(J70,$A$29:$C$54,3,0)*VLOOKUP(J70,$A$29:$C$54,2,0)*$B70*FC_Financeiro!J$16/1000 -> -203.1247645 | K102: =VLOOKUP(K70,$A$29:$C$54,3,0)*VLOOKUP(K70,$A$29:$C$54,2,0)*$B70*FC_Financeiro!K$16/1000 -> -211.2497551 | L102: =VLOOKUP(L70,$A$29:$C$54,3,0)*VLOOKUP(L70,$A$29:$C$54,2,0)*$B70*FC_Financeiro!L$16/1000 -> -219.6997453 | M102: =VLOOKUP(M70,$A$29:$C$54,3,0)*VLOOKUP(M70,$A$29:$C$54,2,0)*$B70*FC_Financeiro!M$16/1000 -> -228.4877351 | N102: =VLOOKUP(N70,$A$29:$C$54,3,0)*VLOOKUP(N70,$A$29:$C$54,2,0)*$B70*FC_Financeiro!N$16/1000 -> -6336.72652 | O102: =VLOOKUP(O70,$A$29:$C$54,3,0)*VLOOKUP(O70,$A$29:$C$54,2,0)*$B70*FC_Financeiro!O$16/1000 -> -823.7744476 | P102: =VLOOKUP(P70,$A$29:$C$54,3,0)*VLOOKUP(P70,$A$29:$C$54,2,0)*$B70*FC_Financeiro!P$16/1000 -> -257.0176277 | Q102: =VLOOKUP(Q70,$A$29:$C$54,3,0)*VLOOKUP(Q70,$A$29:$C$54,2,0)*$B70*FC_Financeiro!Q$16/1000 -> -267.2983328 | R102: =VLOOKUP(R70,$A$29:$C$54,3,0)*VLOOKUP(R70,$A$29:$C$54,2,0)*$B70*FC_Financeiro!R$16/1000 -> -277.9902661 | S102: =VLOOKUP(S70,$A$29:$C$54,3,0)*VLOOKUP(S70,$A$29:$C$54,2,0)*$B70*FC_Financeiro!S$16/1000 -> -289.1098767 | T102: =VLOOKUP(T70,$A$29:$C$54,3,0)*VLOOKUP(T70,$A$29:$C$54,2,0)*$B70*FC_Financeiro!T$16/1000 -> -4008.99029 | U102: =VLOOKUP(U70,$A$29:$C$54,3,0)*VLOOKUP(U70,$A$29:$C$54,2,0)*$B70*FC_Financeiro!U$16/1000 -> -1042.337476 | V102: =VLOOKUP(V70,$A$29:$C$54,3,0)*VLOOKUP(V70,$A$29:$C$54,2,0)*$B70*FC_Financeiro!V$16/1000 -> -325.2092924 | W102: =VLOOKUP(W70,$A$29:$C$54,3,0)*VLOOKUP(W70,$A$29:$C$54,2,0)*$B70*FC_Financeiro!W$16/1000 -> -338.2176641 | X102: =VLOOKUP(X70,$A$29:$C$54,3,0)*VLOOKUP(X70,$A$29:$C$54,2,0)*$B70*FC_Financeiro!X$16/1000 -> -351.7463706 | Y102: =VLOOKUP(Y70,$A$29:$C$54,3,0)*VLOOKUP(Y70,$A$29:$C$54,2,0)*$B70*FC_Financeiro!Y$16/1000 -> -365.8162254 | Z102: =VLOOKUP(Z70,$A$29:$C$54,3,0)*VLOOKUP(Z70,$A$29:$C$54,2,0)*$B70*FC_Financeiro!Z$16/1000 -> 0 | AA102: =VLOOKUP(AA70,$A$29:$C$54,3,0)*VLOOKUP(AA70,$A$29:$C$54,2,0)*$B70*FC_Financeiro!AA$16/1000 -> 0 | AB102: =VLOOKUP(AB70,$A$29:$C$54,3,0)*VLOOKUP(AB70,$A$29:$C$54,2,0)*$B70*FC_Financeiro!AB$16/1000 -> 0 | AC102: =VLOOKUP(AC70,$A$29:$C$54,3,0)*VLOOKUP(AC70,$A$29:$C$54,2,0)*$B70*FC_Financeiro!AC$16/1000 -> 0
C103: Tlh05 | D103: =VLOOKUP(D71,$A$29:$C$54,3,0)*VLOOKUP(D71,$A$29:$C$54,2,0)*$B71*FC_Financeiro!D$16/1000 -> 0 | E103: =VLOOKUP(E71,$A$29:$C$54,3,0)*VLOOKUP(E71,$A$29:$C$54,2,0)*$B71*FC_Financeiro!E$16/1000 -> 0 | F103: =VLOOKUP(F71,$A$29:$C$54,3,0)*VLOOKUP(F71,$A$29:$C$54,2,0)*$B71*FC_Financeiro!F$16/1000 -> 0 | G103: =VLOOKUP(G71,$A$29:$C$54,3,0)*VLOOKUP(G71,$A$29:$C$54,2,0)*$B71*FC_Financeiro!G$16/1000 -> 0 | H103: =VLOOKUP(H71,$A$29:$C$54,3,0)*VLOOKUP(H71,$A$29:$C$54,2,0)*$B71*FC_Financeiro!H$16/1000 -> 0 | I103: =VLOOKUP(I71,$A$29:$C$54,3,0)*VLOOKUP(I71,$A$29:$C$54,2,0)*$B71*FC_Financeiro!I$16/1000 -> -5208.327295 | J103: =VLOOKUP(J71,$A$29:$C$54,3,0)*VLOOKUP(J71,$A$29:$C$54,2,0)*$B71*FC_Financeiro!J$16/1000 -> -677.0825483 | K103: =VLOOKUP(K71,$A$29:$C$54,3,0)*VLOOKUP(K71,$A$29:$C$54,2,0)*$B71*FC_Financeiro!K$16/1000 -> -211.2497551 | L103: =VLOOKUP(L71,$A$29:$C$54,3,0)*VLOOKUP(L71,$A$29:$C$54,2,0)*$B71*FC_Financeiro!L$16/1000 -> -219.6997453 | M103: =VLOOKUP(M71,$A$29:$C$54,3,0)*VLOOKUP(M71,$A$29:$C$54,2,0)*$B71*FC_Financeiro!M$16/1000 -> -228.4877351 | N103: =VLOOKUP(N71,$A$29:$C$54,3,0)*VLOOKUP(N71,$A$29:$C$54,2,0)*$B71*FC_Financeiro!N$16/1000 -> -237.6272445 | O103: =VLOOKUP(O71,$A$29:$C$54,3,0)*VLOOKUP(O71,$A$29:$C$54,2,0)*$B71*FC_Financeiro!O$16/1000 -> -6590.195581 | P103: =VLOOKUP(P71,$A$29:$C$54,3,0)*VLOOKUP(P71,$A$29:$C$54,2,0)*$B71*FC_Financeiro!P$16/1000 -> -856.7254255 | Q103: =VLOOKUP(Q71,$A$29:$C$54,3,0)*VLOOKUP(Q71,$A$29:$C$54,2,0)*$B71*FC_Financeiro!Q$16/1000 -> -267.2983328 | R103: =VLOOKUP(R71,$A$29:$C$54,3,0)*VLOOKUP(R71,$A$29:$C$54,2,0)*$B71*FC_Financeiro!R$16/1000 -> -277.9902661 | S103: =VLOOKUP(S71,$A$29:$C$54,3,0)*VLOOKUP(S71,$A$29:$C$54,2,0)*$B71*FC_Financeiro!S$16/1000 -> -289.1098767 | T103: =VLOOKUP(T71,$A$29:$C$54,3,0)*VLOOKUP(T71,$A$29:$C$54,2,0)*$B71*FC_Financeiro!T$16/1000 -> -300.6742718 | U103: =VLOOKUP(U71,$A$29:$C$54,3,0)*VLOOKUP(U71,$A$29:$C$54,2,0)*$B71*FC_Financeiro!U$16/1000 -> -4169.349902 | V103: =VLOOKUP(V71,$A$29:$C$54,3,0)*VLOOKUP(V71,$A$29:$C$54,2,0)*$B71*FC_Financeiro!V$16/1000 -> -1084.030975 | W103: =VLOOKUP(W71,$A$29:$C$54,3,0)*VLOOKUP(W71,$A$29:$C$54,2,0)*$B71*FC_Financeiro!W$16/1000 -> -338.2176641 | X103: =VLOOKUP(X71,$A$29:$C$54,3,0)*VLOOKUP(X71,$A$29:$C$54,2,0)*$B71*FC_Financeiro!X$16/1000 -> -351.7463706 | Y103: =VLOOKUP(Y71,$A$29:$C$54,3,0)*VLOOKUP(Y71,$A$29:$C$54,2,0)*$B71*FC_Financeiro!Y$16/1000 -> -365.8162254 | Z103: =VLOOKUP(Z71,$A$29:$C$54,3,0)*VLOOKUP(Z71,$A$29:$C$54,2,0)*$B71*FC_Financeiro!Z$16/1000 -> -380.4488745 | AA103: =VLOOKUP(AA71,$A$29:$C$54,3,0)*VLOOKUP(AA71,$A$29:$C$54,2,0)*$B71*FC_Financeiro!AA$16/1000 -> 0 | AB103: =VLOOKUP(AB71,$A$29:$C$54,3,0)*VLOOKUP(AB71,$A$29:$C$54,2,0)*$B71*FC_Financeiro!AB$16/1000 -> 0 | AC103: =VLOOKUP(AC71,$A$29:$C$54,3,0)*VLOOKUP(AC71,$A$29:$C$54,2,0)*$B71*FC_Financeiro!AC$16/1000 -> 0
C104: Tlh06 | D104: =VLOOKUP(D72,$A$29:$C$54,3,0)*VLOOKUP(D72,$A$29:$C$54,2,0)*$B72*FC_Financeiro!D$16/1000 -> 0 | E104: =VLOOKUP(E72,$A$29:$C$54,3,0)*VLOOKUP(E72,$A$29:$C$54,2,0)*$B72*FC_Financeiro!E$16/1000 -> 0 | F104: =VLOOKUP(F72,$A$29:$C$54,3,0)*VLOOKUP(F72,$A$29:$C$54,2,0)*$B72*FC_Financeiro!F$16/1000 -> 0 | G104: =VLOOKUP(G72,$A$29:$C$54,3,0)*VLOOKUP(G72,$A$29:$C$54,2,0)*$B72*FC_Financeiro!G$16/1000 -> 0 | H104: =VLOOKUP(H72,$A$29:$C$54,3,0)*VLOOKUP(H72,$A$29:$C$54,2,0)*$B72*FC_Financeiro!H$16/1000 -> 0 | I104: =VLOOKUP(I72,$A$29:$C$54,3,0)*VLOOKUP(I72,$A$29:$C$54,2,0)*$B72*FC_Financeiro!I$16/1000 -> 0 | J104: =VLOOKUP(J72,$A$29:$C$54,3,0)*VLOOKUP(J72,$A$29:$C$54,2,0)*$B72*FC_Financeiro!J$16/1000 -> -5416.660387 | K104: =VLOOKUP(K72,$A$29:$C$54,3,0)*VLOOKUP(K72,$A$29:$C$54,2,0)*$B72*FC_Financeiro!K$16/1000 -> -704.1658503 | L104: =VLOOKUP(L72,$A$29:$C$54,3,0)*VLOOKUP(L72,$A$29:$C$54,2,0)*$B72*FC_Financeiro!L$16/1000 -> -219.6997453 | M104: =VLOOKUP(M72,$A$29:$C$54,3,0)*VLOOKUP(M72,$A$29:$C$54,2,0)*$B72*FC_Financeiro!M$16/1000 -> -228.4877351 | N104: =VLOOKUP(N72,$A$29:$C$54,3,0)*VLOOKUP(N72,$A$29:$C$54,2,0)*$B72*FC_Financeiro!N$16/1000 -> -237.6272445 | O104: =VLOOKUP(O72,$A$29:$C$54,3,0)*VLOOKUP(O72,$A$29:$C$54,2,0)*$B72*FC_Financeiro!O$16/1000 -> -247.1323343 | P104: =VLOOKUP(P72,$A$29:$C$54,3,0)*VLOOKUP(P72,$A$29:$C$54,2,0)*$B72*FC_Financeiro!P$16/1000 -> -6853.803404 | Q104: =VLOOKUP(Q72,$A$29:$C$54,3,0)*VLOOKUP(Q72,$A$29:$C$54,2,0)*$B72*FC_Financeiro!Q$16/1000 -> -890.9944425 | R104: =VLOOKUP(R72,$A$29:$C$54,3,0)*VLOOKUP(R72,$A$29:$C$54,2,0)*$B72*FC_Financeiro!R$16/1000 -> -277.9902661 | S104: =VLOOKUP(S72,$A$29:$C$54,3,0)*VLOOKUP(S72,$A$29:$C$54,2,0)*$B72*FC_Financeiro!S$16/1000 -> -289.1098767 | T104: =VLOOKUP(T72,$A$29:$C$54,3,0)*VLOOKUP(T72,$A$29:$C$54,2,0)*$B72*FC_Financeiro!T$16/1000 -> -300.6742718 | U104: =VLOOKUP(U72,$A$29:$C$54,3,0)*VLOOKUP(U72,$A$29:$C$54,2,0)*$B72*FC_Financeiro!U$16/1000 -> -312.7012427 | V104: =VLOOKUP(V72,$A$29:$C$54,3,0)*VLOOKUP(V72,$A$29:$C$54,2,0)*$B72*FC_Financeiro!V$16/1000 -> -4336.123898 | W104: =VLOOKUP(W72,$A$29:$C$54,3,0)*VLOOKUP(W72,$A$29:$C$54,2,0)*$B72*FC_Financeiro!W$16/1000 -> -1127.392214 | X104: =VLOOKUP(X72,$A$29:$C$54,3,0)*VLOOKUP(X72,$A$29:$C$54,2,0)*$B72*FC_Financeiro!X$16/1000 -> -351.7463706 | Y104: =VLOOKUP(Y72,$A$29:$C$54,3,0)*VLOOKUP(Y72,$A$29:$C$54,2,0)*$B72*FC_Financeiro!Y$16/1000 -> -365.8162254 | Z104: =VLOOKUP(Z72,$A$29:$C$54,3,0)*VLOOKUP(Z72,$A$29:$C$54,2,0)*$B72*FC_Financeiro!Z$16/1000 -> -380.4488745 | AA104: =VLOOKUP(AA72,$A$29:$C$54,3,0)*VLOOKUP(AA72,$A$29:$C$54,2,0)*$B72*FC_Financeiro!AA$16/1000 -> -395.6668294 | AB104: =VLOOKUP(AB72,$A$29:$C$54,3,0)*VLOOKUP(AB72,$A$29:$C$54,2,0)*$B72*FC_Financeiro!AB$16/1000 -> 0 | AC104: =VLOOKUP(AC72,$A$29:$C$54,3,0)*VLOOKUP(AC72,$A$29:$C$54,2,0)*$B72*FC_Financeiro!AC$16/1000 -> 0
C105: Tlh07 | D105: =VLOOKUP(D73,$A$29:$C$54,3,0)*VLOOKUP(D73,$A$29:$C$54,2,0)*$B73*FC_Financeiro!D$16/1000 -> 0 | E105: =VLOOKUP(E73,$A$29:$C$54,3,0)*VLOOKUP(E73,$A$29:$C$54,2,0)*$B73*FC_Financeiro!E$16/1000 -> -4452.1 | F105: =VLOOKUP(F73,$A$29:$C$54,3,0)*VLOOKUP(F73,$A$29:$C$54,2,0)*$B73*FC_Financeiro!F$16/1000 -> -578.773 | G105: =VLOOKUP(G73,$A$29:$C$54,3,0)*VLOOKUP(G73,$A$29:$C$54,2,0)*$B73*FC_Financeiro!G$16/1000 -> -180.577176 | H105: =VLOOKUP(H73,$A$29:$C$54,3,0)*VLOOKUP(H73,$A$29:$C$54,2,0)*$B73*FC_Financeiro!H$16/1000 -> -187.800263 | I105: =VLOOKUP(I73,$A$29:$C$54,3,0)*VLOOKUP(I73,$A$29:$C$54,2,0)*$B73*FC_Financeiro!I$16/1000 -> -195.3122736 | J105: =VLOOKUP(J73,$A$29:$C$54,3,0)*VLOOKUP(J73,$A$29:$C$54,2,0)*$B73*FC_Financeiro!J$16/1000 -> -203.1247645 | K105: =VLOOKUP(K73,$A$29:$C$54,3,0)*VLOOKUP(K73,$A$29:$C$54,2,0)*$B73*FC_Financeiro!K$16/1000 -> -2816.663401 | L105: =VLOOKUP(L73,$A$29:$C$54,3,0)*VLOOKUP(L73,$A$29:$C$54,2,0)*$B73*FC_Financeiro!L$16/1000 -> -732.3324843 | M105: =VLOOKUP(M73,$A$29:$C$54,3,0)*VLOOKUP(M73,$A$29:$C$54,2,0)*$B73*FC_Financeiro!M$16/1000 -> -228.4877351 | N105: =VLOOKUP(N73,$A$29:$C$54,3,0)*VLOOKUP(N73,$A$29:$C$54,2,0)*$B73*FC_Financeiro!N$16/1000 -> -237.6272445 | O105: =VLOOKUP(O73,$A$29:$C$54,3,0)*VLOOKUP(O73,$A$29:$C$54,2,0)*$B73*FC_Financeiro!O$16/1000 -> -247.1323343 | P105: =VLOOKUP(P73,$A$29:$C$54,3,0)*VLOOKUP(P73,$A$29:$C$54,2,0)*$B73*FC_Financeiro!P$16/1000 -> -257.0176277 | Q105: =VLOOKUP(Q73,$A$29:$C$54,3,0)*VLOOKUP(Q73,$A$29:$C$54,2,0)*$B73*FC_Financeiro!Q$16/1000 -> -7127.95554 | R105: =VLOOKUP(R73,$A$29:$C$54,3,0)*VLOOKUP(R73,$A$29:$C$54,2,0)*$B73*FC_Financeiro!R$16/1000 -> -926.6342202 | S105: =VLOOKUP(S73,$A$29:$C$54,3,0)*VLOOKUP(S73,$A$29:$C$54,2,0)*$B73*FC_Financeiro!S$16/1000 -> -289.1098767 | T105: =VLOOKUP(T73,$A$29:$C$54,3,0)*VLOOKUP(T73,$A$29:$C$54,2,0)*$B73*FC_Financeiro!T$16/1000 -> -300.6742718 | U105: =VLOOKUP(U73,$A$29:$C$54,3,0)*VLOOKUP(U73,$A$29:$C$54,2,0)*$B73*FC_Financeiro!U$16/1000 -> -312.7012427 | V105: =VLOOKUP(V73,$A$29:$C$54,3,0)*VLOOKUP(V73,$A$29:$C$54,2,0)*$B73*FC_Financeiro!V$16/1000 -> -325.2092924 | W105: =VLOOKUP(W73,$A$29:$C$54,3,0)*VLOOKUP(W73,$A$29:$C$54,2,0)*$B73*FC_Financeiro!W$16/1000 -> 0 | X105: =VLOOKUP(X73,$A$29:$C$54,3,0)*VLOOKUP(X73,$A$29:$C$54,2,0)*$B73*FC_Financeiro!X$16/1000 -> 0 | Y105: =VLOOKUP(Y73,$A$29:$C$54,3,0)*VLOOKUP(Y73,$A$29:$C$54,2,0)*$B73*FC_Financeiro!Y$16/1000 -> 0 | Z105: =VLOOKUP(Z73,$A$29:$C$54,3,0)*VLOOKUP(Z73,$A$29:$C$54,2,0)*$B73*FC_Financeiro!Z$16/1000 -> 0 | AA105: =VLOOKUP(AA73,$A$29:$C$54,3,0)*VLOOKUP(AA73,$A$29:$C$54,2,0)*$B73*FC_Financeiro!AA$16/1000 -> 0 | AB105: =VLOOKUP(AB73,$A$29:$C$54,3,0)*VLOOKUP(AB73,$A$29:$C$54,2,0)*$B73*FC_Financeiro!AB$16/1000 -> 0 | AC105: =VLOOKUP(AC73,$A$29:$C$54,3,0)*VLOOKUP(AC73,$A$29:$C$54,2,0)*$B73*FC_Financeiro!AC$16/1000 -> 0
C106: Tlh08 | D106: =VLOOKUP(D74,$A$29:$C$54,3,0)*VLOOKUP(D74,$A$29:$C$54,2,0)*$B74*FC_Financeiro!D$16/1000 -> 0 | E106: =VLOOKUP(E74,$A$29:$C$54,3,0)*VLOOKUP(E74,$A$29:$C$54,2,0)*$B74*FC_Financeiro!E$16/1000 -> 0 | F106: =VLOOKUP(F74,$A$29:$C$54,3,0)*VLOOKUP(F74,$A$29:$C$54,2,0)*$B74*FC_Financeiro!F$16/1000 -> -4630.184 | G106: =VLOOKUP(G74,$A$29:$C$54,3,0)*VLOOKUP(G74,$A$29:$C$54,2,0)*$B74*FC_Financeiro!G$16/1000 -> -601.92392 | H106: =VLOOKUP(H74,$A$29:$C$54,3,0)*VLOOKUP(H74,$A$29:$C$54,2,0)*$B74*FC_Financeiro!H$16/1000 -> -187.800263 | I106: =VLOOKUP(I74,$A$29:$C$54,3,0)*VLOOKUP(I74,$A$29:$C$54,2,0)*$B74*FC_Financeiro!I$16/1000 -> -195.3122736 | J106: =VLOOKUP(J74,$A$29:$C$54,3,0)*VLOOKUP(J74,$A$29:$C$54,2,0)*$B74*FC_Financeiro!J$16/1000 -> -203.1247645 | K106: =VLOOKUP(K74,$A$29:$C$54,3,0)*VLOOKUP(K74,$A$29:$C$54,2,0)*$B74*FC_Financeiro!K$16/1000 -> -211.2497551 | L106: =VLOOKUP(L74,$A$29:$C$54,3,0)*VLOOKUP(L74,$A$29:$C$54,2,0)*$B74*FC_Financeiro!L$16/1000 -> -2929.329937 | M106: =VLOOKUP(M74,$A$29:$C$54,3,0)*VLOOKUP(M74,$A$29:$C$54,2,0)*$B74*FC_Financeiro!M$16/1000 -> -761.6257837 | N106: =VLOOKUP(N74,$A$29:$C$54,3,0)*VLOOKUP(N74,$A$29:$C$54,2,0)*$B74*FC_Financeiro!N$16/1000 -> -237.6272445 | O106: =VLOOKUP(O74,$A$29:$C$54,3,0)*VLOOKUP(O74,$A$29:$C$54,2,0)*$B74*FC_Financeiro!O$16/1000 -> -247.1323343 | P106: =VLOOKUP(P74,$A$29:$C$54,3,0)*VLOOKUP(P74,$A$29:$C$54,2,0)*$B74*FC_Financeiro!P$16/1000 -> -257.0176277 | Q106: =VLOOKUP(Q74,$A$29:$C$54,3,0)*VLOOKUP(Q74,$A$29:$C$54,2,0)*$B74*FC_Financeiro!Q$16/1000 -> -267.2983328 | R106: =VLOOKUP(R74,$A$29:$C$54,3,0)*VLOOKUP(R74,$A$29:$C$54,2,0)*$B74*FC_Financeiro!R$16/1000 -> -7413.073762 | S106: =VLOOKUP(S74,$A$29:$C$54,3,0)*VLOOKUP(S74,$A$29:$C$54,2,0)*$B74*FC_Financeiro!S$16/1000 -> -963.699589 | T106: =VLOOKUP(T74,$A$29:$C$54,3,0)*VLOOKUP(T74,$A$29:$C$54,2,0)*$B74*FC_Financeiro!T$16/1000 -> -300.6742718 | U106: =VLOOKUP(U74,$A$29:$C$54,3,0)*VLOOKUP(U74,$A$29:$C$54,2,0)*$B74*FC_Financeiro!U$16/1000 -> -312.7012427 | V106: =VLOOKUP(V74,$A$29:$C$54,3,0)*VLOOKUP(V74,$A$29:$C$54,2,0)*$B74*FC_Financeiro!V$16/1000 -> -325.2092924 | W106: =VLOOKUP(W74,$A$29:$C$54,3,0)*VLOOKUP(W74,$A$29:$C$54,2,0)*$B74*FC_Financeiro!W$16/1000 -> -338.2176641 | X106: =VLOOKUP(X74,$A$29:$C$54,3,0)*VLOOKUP(X74,$A$29:$C$54,2,0)*$B74*FC_Financeiro!X$16/1000 -> 0 | Y106: =VLOOKUP(Y74,$A$29:$C$54,3,0)*VLOOKUP(Y74,$A$29:$C$54,2,0)*$B74*FC_Financeiro!Y$16/1000 -> 0 | Z106: =VLOOKUP(Z74,$A$29:$C$54,3,0)*VLOOKUP(Z74,$A$29:$C$54,2,0)*$B74*FC_Financeiro!Z$16/1000 -> 0 | AA106: =VLOOKUP(AA74,$A$29:$C$54,3,0)*VLOOKUP(AA74,$A$29:$C$54,2,0)*$B74*FC_Financeiro!AA$16/1000 -> 0 | AB106: =VLOOKUP(AB74,$A$29:$C$54,3,0)*VLOOKUP(AB74,$A$29:$C$54,2,0)*$B74*FC_Financeiro!AB$16/1000 -> 0 | AC106: =VLOOKUP(AC74,$A$29:$C$54,3,0)*VLOOKUP(AC74,$A$29:$C$54,2,0)*$B74*FC_Financeiro!AC$16/1000 -> 0
C107: Tlh09 | D107: =VLOOKUP(D75,$A$29:$C$54,3,0)*VLOOKUP(D75,$A$29:$C$54,2,0)*$B75*FC_Financeiro!D$16/1000 -> 0 | E107: =VLOOKUP(E75,$A$29:$C$54,3,0)*VLOOKUP(E75,$A$29:$C$54,2,0)*$B75*FC_Financeiro!E$16/1000 -> 0 | F107: =VLOOKUP(F75,$A$29:$C$54,3,0)*VLOOKUP(F75,$A$29:$C$54,2,0)*$B75*FC_Financeiro!F$16/1000 -> 0 | G107: =VLOOKUP(G75,$A$29:$C$54,3,0)*VLOOKUP(G75,$A$29:$C$54,2,0)*$B75*FC_Financeiro!G$16/1000 -> -4815.39136 | H107: =VLOOKUP(H75,$A$29:$C$54,3,0)*VLOOKUP(H75,$A$29:$C$54,2,0)*$B75*FC_Financeiro!H$16/1000 -> -626.0008768 | I107: =VLOOKUP(I75,$A$29:$C$54,3,0)*VLOOKUP(I75,$A$29:$C$54,2,0)*$B75*FC_Financeiro!I$16/1000 -> -195.3122736 | J107: =VLOOKUP(J75,$A$29:$C$54,3,0)*VLOOKUP(J75,$A$29:$C$54,2,0)*$B75*FC_Financeiro!J$16/1000 -> -203.1247645 | K107: =VLOOKUP(K75,$A$29:$C$54,3,0)*VLOOKUP(K75,$A$29:$C$54,2,0)*$B75*FC_Financeiro!K$16/1000 -> -211.2497551 | L107: =VLOOKUP(L75,$A$29:$C$54,3,0)*VLOOKUP(L75,$A$29:$C$54,2,0)*$B75*FC_Financeiro!L$16/1000 -> -219.6997453 | M107: =VLOOKUP(M75,$A$29:$C$54,3,0)*VLOOKUP(M75,$A$29:$C$54,2,0)*$B75*FC_Financeiro!M$16/1000 -> -3046.503135 | N107: =VLOOKUP(N75,$A$29:$C$54,3,0)*VLOOKUP(N75,$A$29:$C$54,2,0)*$B75*FC_Financeiro!N$16/1000 -> -792.090815 | O107: =VLOOKUP(O75,$A$29:$C$54,3,0)*VLOOKUP(O75,$A$29:$C$54,2,0)*$B75*FC_Financeiro!O$16/1000 -> -247.1323343 | P107: =VLOOKUP(P75,$A$29:$C$54,3,0)*VLOOKUP(P75,$A$29:$C$54,2,0)*$B75*FC_Financeiro!P$16/1000 -> -257.0176277 | Q107: =VLOOKUP(Q75,$A$29:$C$54,3,0)*VLOOKUP(Q75,$A$29:$C$54,2,0)*$B75*FC_Financeiro!Q$16/1000 -> -267.2983328 | R107: =VLOOKUP(R75,$A$29:$C$54,3,0)*VLOOKUP(R75,$A$29:$C$54,2,0)*$B75*FC_Financeiro!R$16/1000 -> -277.9902661 | S107: =VLOOKUP(S75,$A$29:$C$54,3,0)*VLOOKUP(S75,$A$29:$C$54,2,0)*$B75*FC_Financeiro!S$16/1000 -> -7709.596712 | T107: =VLOOKUP(T75,$A$29:$C$54,3,0)*VLOOKUP(T75,$A$29:$C$54,2,0)*$B75*FC_Financeiro!T$16/1000 -> -1002.247573 | U107: =VLOOKUP(U75,$A$29:$C$54,3,0)*VLOOKUP(U75,$A$29:$C$54,2,0)*$B75*FC_Financeiro!U$16/1000 -> -312.7012427 | V107: =VLOOKUP(V75,$A$29:$C$54,3,0)*VLOOKUP(V75,$A$29:$C$54,2,0)*$B75*FC_Financeiro!V$16/1000 -> -325.2092924 | W107: =VLOOKUP(W75,$A$29:$C$54,3,0)*VLOOKUP(W75,$A$29:$C$54,2,0)*$B75*FC_Financeiro!W$16/1000 -> -338.2176641 | X107: =VLOOKUP(X75,$A$29:$C$54,3,0)*VLOOKUP(X75,$A$29:$C$54,2,0)*$B75*FC_Financeiro!X$16/1000 -> -351.7463706 | Y107: =VLOOKUP(Y75,$A$29:$C$54,3,0)*VLOOKUP(Y75,$A$29:$C$54,2,0)*$B75*FC_Financeiro!Y$16/1000 -> 0 | Z107: =VLOOKUP(Z75,$A$29:$C$54,3,0)*VLOOKUP(Z75,$A$29:$C$54,2,0)*$B75*FC_Financeiro!Z$16/1000 -> 0 | AA107: =VLOOKUP(AA75,$A$29:$C$54,3,0)*VLOOKUP(AA75,$A$29:$C$54,2,0)*$B75*FC_Financeiro!AA$16/1000 -> 0 | AB107: =VLOOKUP(AB75,$A$29:$C$54,3,0)*VLOOKUP(AB75,$A$29:$C$54,2,0)*$B75*FC_Financeiro!AB$16/1000 -> 0 | AC107: =VLOOKUP(AC75,$A$29:$C$54,3,0)*VLOOKUP(AC75,$A$29:$C$54,2,0)*$B75*FC_Financeiro!AC$16/1000 -> 0
C108: Tlh10 | D108: =VLOOKUP(D76,$A$29:$C$54,3,0)*VLOOKUP(D76,$A$29:$C$54,2,0)*$B76*FC_Financeiro!D$16/1000 -> 0 | E108: =VLOOKUP(E76,$A$29:$C$54,3,0)*VLOOKUP(E76,$A$29:$C$54,2,0)*$B76*FC_Financeiro!E$16/1000 -> 0 | F108: =VLOOKUP(F76,$A$29:$C$54,3,0)*VLOOKUP(F76,$A$29:$C$54,2,0)*$B76*FC_Financeiro!F$16/1000 -> 0 | G108: =VLOOKUP(G76,$A$29:$C$54,3,0)*VLOOKUP(G76,$A$29:$C$54,2,0)*$B76*FC_Financeiro!G$16/1000 -> 0 | H108: =VLOOKUP(H76,$A$29:$C$54,3,0)*VLOOKUP(H76,$A$29:$C$54,2,0)*$B76*FC_Financeiro!H$16/1000 -> -5008.007014 | I108: =VLOOKUP(I76,$A$29:$C$54,3,0)*VLOOKUP(I76,$A$29:$C$54,2,0)*$B76*FC_Financeiro!I$16/1000 -> -651.0409119 | J108: =VLOOKUP(J76,$A$29:$C$54,3,0)*VLOOKUP(J76,$A$29:$C$54,2,0)*$B76*FC_Financeiro!J$16/1000 -> -203.1247645 | K108: =VLOOKUP(K76,$A$29:$C$54,3,0)*VLOOKUP(K76,$A$29:$C$54,2,0)*$B76*FC_Financeiro!K$16/1000 -> -211.2497551 | L108: =VLOOKUP(L76,$A$29:$C$54,3,0)*VLOOKUP(L76,$A$29:$C$54,2,0)*$B76*FC_Financeiro!L$16/1000 -> -219.6997453 | M108: =VLOOKUP(M76,$A$29:$C$54,3,0)*VLOOKUP(M76,$A$29:$C$54,2,0)*$B76*FC_Financeiro!M$16/1000 -> -228.4877351 | N108: =VLOOKUP(N76,$A$29:$C$54,3,0)*VLOOKUP(N76,$A$29:$C$54,2,0)*$B76*FC_Financeiro!N$16/1000 -> -3168.36326 | O108: =VLOOKUP(O76,$A$29:$C$54,3,0)*VLOOKUP(O76,$A$29:$C$54,2,0)*$B76*FC_Financeiro!O$16/1000 -> -823.7744476 | P108: =VLOOKUP(P76,$A$29:$C$54,3,0)*VLOOKUP(P76,$A$29:$C$54,2,0)*$B76*FC_Financeiro!P$16/1000 -> -257.0176277 | Q108: =VLOOKUP(Q76,$A$29:$C$54,3,0)*VLOOKUP(Q76,$A$29:$C$54,2,0)*$B76*FC_Financeiro!Q$16/1000 -> -267.2983328 | R108: =VLOOKUP(R76,$A$29:$C$54,3,0)*VLOOKUP(R76,$A$29:$C$54,2,0)*$B76*FC_Financeiro!R$16/1000 -> -277.9902661 | S108: =VLOOKUP(S76,$A$29:$C$54,3,0)*VLOOKUP(S76,$A$29:$C$54,2,0)*$B76*FC_Financeiro!S$16/1000 -> -289.1098767 | T108: =VLOOKUP(T76,$A$29:$C$54,3,0)*VLOOKUP(T76,$A$29:$C$54,2,0)*$B76*FC_Financeiro!T$16/1000 -> -8017.980581 | U108: =VLOOKUP(U76,$A$29:$C$54,3,0)*VLOOKUP(U76,$A$29:$C$54,2,0)*$B76*FC_Financeiro!U$16/1000 -> -1042.337476 | V108: =VLOOKUP(V76,$A$29:$C$54,3,0)*VLOOKUP(V76,$A$29:$C$54,2,0)*$B76*FC_Financeiro!V$16/1000 -> -325.2092924 | W108: =VLOOKUP(W76,$A$29:$C$54,3,0)*VLOOKUP(W76,$A$29:$C$54,2,0)*$B76*FC_Financeiro!W$16/1000 -> -338.2176641 | X108: =VLOOKUP(X76,$A$29:$C$54,3,0)*VLOOKUP(X76,$A$29:$C$54,2,0)*$B76*FC_Financeiro!X$16/1000 -> -351.7463706 | Y108: =VLOOKUP(Y76,$A$29:$C$54,3,0)*VLOOKUP(Y76,$A$29:$C$54,2,0)*$B76*FC_Financeiro!Y$16/1000 -> -365.8162254 | Z108: =VLOOKUP(Z76,$A$29:$C$54,3,0)*VLOOKUP(Z76,$A$29:$C$54,2,0)*$B76*FC_Financeiro!Z$16/1000 -> 0 | AA108: =VLOOKUP(AA76,$A$29:$C$54,3,0)*VLOOKUP(AA76,$A$29:$C$54,2,0)*$B76*FC_Financeiro!AA$16/1000 -> 0 | AB108: =VLOOKUP(AB76,$A$29:$C$54,3,0)*VLOOKUP(AB76,$A$29:$C$54,2,0)*$B76*FC_Financeiro!AB$16/1000 -> 0 | AC108: =VLOOKUP(AC76,$A$29:$C$54,3,0)*VLOOKUP(AC76,$A$29:$C$54,2,0)*$B76*FC_Financeiro!AC$16/1000 -> 0
C109: Tlh11 | D109: =VLOOKUP(D77,$A$29:$C$54,3,0)*VLOOKUP(D77,$A$29:$C$54,2,0)*$B77*FC_Financeiro!D$16/1000 -> 0 | E109: =VLOOKUP(E77,$A$29:$C$54,3,0)*VLOOKUP(E77,$A$29:$C$54,2,0)*$B77*FC_Financeiro!E$16/1000 -> 0 | F109: =VLOOKUP(F77,$A$29:$C$54,3,0)*VLOOKUP(F77,$A$29:$C$54,2,0)*$B77*FC_Financeiro!F$16/1000 -> 0 | G109: =VLOOKUP(G77,$A$29:$C$54,3,0)*VLOOKUP(G77,$A$29:$C$54,2,0)*$B77*FC_Financeiro!G$16/1000 -> 0 | H109: =VLOOKUP(H77,$A$29:$C$54,3,0)*VLOOKUP(H77,$A$29:$C$54,2,0)*$B77*FC_Financeiro!H$16/1000 -> 0 | I109: =VLOOKUP(I77,$A$29:$C$54,3,0)*VLOOKUP(I77,$A$29:$C$54,2,0)*$B77*FC_Financeiro!I$16/1000 -> -5208.327295 | J109: =VLOOKUP(J77,$A$29:$C$54,3,0)*VLOOKUP(J77,$A$29:$C$54,2,0)*$B77*FC_Financeiro!J$16/1000 -> -677.0825483 | K109: =VLOOKUP(K77,$A$29:$C$54,3,0)*VLOOKUP(K77,$A$29:$C$54,2,0)*$B77*FC_Financeiro!K$16/1000 -> -211.2497551 | L109: =VLOOKUP(L77,$A$29:$C$54,3,0)*VLOOKUP(L77,$A$29:$C$54,2,0)*$B77*FC_Financeiro!L$16/1000 -> -219.6997453 | M109: =VLOOKUP(M77,$A$29:$C$54,3,0)*VLOOKUP(M77,$A$29:$C$54,2,0)*$B77*FC_Financeiro!M$16/1000 -> -228.4877351 | N109: =VLOOKUP(N77,$A$29:$C$54,3,0)*VLOOKUP(N77,$A$29:$C$54,2,0)*$B77*FC_Financeiro!N$16/1000 -> -237.6272445 | O109: =VLOOKUP(O77,$A$29:$C$54,3,0)*VLOOKUP(O77,$A$29:$C$54,2,0)*$B77*FC_Financeiro!O$16/1000 -> -3295.09779 | P109: =VLOOKUP(P77,$A$29:$C$54,3,0)*VLOOKUP(P77,$A$29:$C$54,2,0)*$B77*FC_Financeiro!P$16/1000 -> -856.7254255 | Q109: =VLOOKUP(Q77,$A$29:$C$54,3,0)*VLOOKUP(Q77,$A$29:$C$54,2,0)*$B77*FC_Financeiro!Q$16/1000 -> -267.2983328 | R109: =VLOOKUP(R77,$A$29:$C$54,3,0)*VLOOKUP(R77,$A$29:$C$54,2,0)*$B77*FC_Financeiro!R$16/1000 -> -277.9902661 | S109: =VLOOKUP(S77,$A$29:$C$54,3,0)*VLOOKUP(S77,$A$29:$C$54,2,0)*$B77*FC_Financeiro!S$16/1000 -> -289.1098767 | T109: =VLOOKUP(T77,$A$29:$C$54,3,0)*VLOOKUP(T77,$A$29:$C$54,2,0)*$B77*FC_Financeiro!T$16/1000 -> -300.6742718 | U109: =VLOOKUP(U77,$A$29:$C$54,3,0)*VLOOKUP(U77,$A$29:$C$54,2,0)*$B77*FC_Financeiro!U$16/1000 -> -8338.699804 | V109: =VLOOKUP(V77,$A$29:$C$54,3,0)*VLOOKUP(V77,$A$29:$C$54,2,0)*$B77*FC_Financeiro!V$16/1000 -> -1084.030975 | W109: =VLOOKUP(W77,$A$29:$C$54,3,0)*VLOOKUP(W77,$A$29:$C$54,2,0)*$B77*FC_Financeiro!W$16/1000 -> -338.2176641 | X109: =VLOOKUP(X77,$A$29:$C$54,3,0)*VLOOKUP(X77,$A$29:$C$54,2,0)*$B77*FC_Financeiro!X$16/1000 -> -351.7463706 | Y109: =VLOOKUP(Y77,$A$29:$C$54,3,0)*VLOOKUP(Y77,$A$29:$C$54,2,0)*$B77*FC_Financeiro!Y$16/1000 -> -365.8162254 | Z109: =VLOOKUP(Z77,$A$29:$C$54,3,0)*VLOOKUP(Z77,$A$29:$C$54,2,0)*$B77*FC_Financeiro!Z$16/1000 -> -380.4488745 | AA109: =VLOOKUP(AA77,$A$29:$C$54,3,0)*VLOOKUP(AA77,$A$29:$C$54,2,0)*$B77*FC_Financeiro!AA$16/1000 -> 0 | AB109: =VLOOKUP(AB77,$A$29:$C$54,3,0)*VLOOKUP(AB77,$A$29:$C$54,2,0)*$B77*FC_Financeiro!AB$16/1000 -> 0 | AC109: =VLOOKUP(AC77,$A$29:$C$54,3,0)*VLOOKUP(AC77,$A$29:$C$54,2,0)*$B77*FC_Financeiro!AC$16/1000 -> 0
C110: Tlh12 | D110: =VLOOKUP(D78,$A$29:$C$54,3,0)*VLOOKUP(D78,$A$29:$C$54,2,0)*$B78*FC_Financeiro!D$16/1000 -> 0 | E110: =VLOOKUP(E78,$A$29:$C$54,3,0)*VLOOKUP(E78,$A$29:$C$54,2,0)*$B78*FC_Financeiro!E$16/1000 -> 0 | F110: =VLOOKUP(F78,$A$29:$C$54,3,0)*VLOOKUP(F78,$A$29:$C$54,2,0)*$B78*FC_Financeiro!F$16/1000 -> 0 | G110: =VLOOKUP(G78,$A$29:$C$54,3,0)*VLOOKUP(G78,$A$29:$C$54,2,0)*$B78*FC_Financeiro!G$16/1000 -> 0 | H110: =VLOOKUP(H78,$A$29:$C$54,3,0)*VLOOKUP(H78,$A$29:$C$54,2,0)*$B78*FC_Financeiro!H$16/1000 -> 0 | I110: =VLOOKUP(I78,$A$29:$C$54,3,0)*VLOOKUP(I78,$A$29:$C$54,2,0)*$B78*FC_Financeiro!I$16/1000 -> 0 | J110: =VLOOKUP(J78,$A$29:$C$54,3,0)*VLOOKUP(J78,$A$29:$C$54,2,0)*$B78*FC_Financeiro!J$16/1000 -> -5416.660387 | K110: =VLOOKUP(K78,$A$29:$C$54,3,0)*VLOOKUP(K78,$A$29:$C$54,2,0)*$B78*FC_Financeiro!K$16/1000 -> -704.1658503 | L110: =VLOOKUP(L78,$A$29:$C$54,3,0)*VLOOKUP(L78,$A$29:$C$54,2,0)*$B78*FC_Financeiro!L$16/1000 -> -219.6997453 | M110: =VLOOKUP(M78,$A$29:$C$54,3,0)*VLOOKUP(M78,$A$29:$C$54,2,0)*$B78*FC_Financeiro!M$16/1000 -> -228.4877351 | N110: =VLOOKUP(N78,$A$29:$C$54,3,0)*VLOOKUP(N78,$A$29:$C$54,2,0)*$B78*FC_Financeiro!N$16/1000 -> -237.6272445 | O110: =VLOOKUP(O78,$A$29:$C$54,3,0)*VLOOKUP(O78,$A$29:$C$54,2,0)*$B78*FC_Financeiro!O$16/1000 -> -247.1323343 | P110: =VLOOKUP(P78,$A$29:$C$54,3,0)*VLOOKUP(P78,$A$29:$C$54,2,0)*$B78*FC_Financeiro!P$16/1000 -> -3426.901702 | Q110: =VLOOKUP(Q78,$A$29:$C$54,3,0)*VLOOKUP(Q78,$A$29:$C$54,2,0)*$B78*FC_Financeiro!Q$16/1000 -> -890.9944425 | R110: =VLOOKUP(R78,$A$29:$C$54,3,0)*VLOOKUP(R78,$A$29:$C$54,2,0)*$B78*FC_Financeiro!R$16/1000 -> -277.9902661 | S110: =VLOOKUP(S78,$A$29:$C$54,3,0)*VLOOKUP(S78,$A$29:$C$54,2,0)*$B78*FC_Financeiro!S$16/1000 -> -289.1098767 | T110: =VLOOKUP(T78,$A$29:$C$54,3,0)*VLOOKUP(T78,$A$29:$C$54,2,0)*$B78*FC_Financeiro!T$16/1000 -> -300.6742718 | U110: =VLOOKUP(U78,$A$29:$C$54,3,0)*VLOOKUP(U78,$A$29:$C$54,2,0)*$B78*FC_Financeiro!U$16/1000 -> -312.7012427 | V110: =VLOOKUP(V78,$A$29:$C$54,3,0)*VLOOKUP(V78,$A$29:$C$54,2,0)*$B78*FC_Financeiro!V$16/1000 -> -8672.247796 | W110: =VLOOKUP(W78,$A$29:$C$54,3,0)*VLOOKUP(W78,$A$29:$C$54,2,0)*$B78*FC_Financeiro!W$16/1000 -> -1127.392214 | X110: =VLOOKUP(X78,$A$29:$C$54,3,0)*VLOOKUP(X78,$A$29:$C$54,2,0)*$B78*FC_Financeiro!X$16/1000 -> -351.7463706 | Y110: =VLOOKUP(Y78,$A$29:$C$54,3,0)*VLOOKUP(Y78,$A$29:$C$54,2,0)*$B78*FC_Financeiro!Y$16/1000 -> -365.8162254 | Z110: =VLOOKUP(Z78,$A$29:$C$54,3,0)*VLOOKUP(Z78,$A$29:$C$54,2,0)*$B78*FC_Financeiro!Z$16/1000 -> -380.4488745 | AA110: =VLOOKUP(AA78,$A$29:$C$54,3,0)*VLOOKUP(AA78,$A$29:$C$54,2,0)*$B78*FC_Financeiro!AA$16/1000 -> -395.6668294 | AB110: =VLOOKUP(AB78,$A$29:$C$54,3,0)*VLOOKUP(AB78,$A$29:$C$54,2,0)*$B78*FC_Financeiro!AB$16/1000 -> 0 | AC110: =VLOOKUP(AC78,$A$29:$C$54,3,0)*VLOOKUP(AC78,$A$29:$C$54,2,0)*$B78*FC_Financeiro!AC$16/1000 -> 0
C111: Tlh13 | D111: =VLOOKUP(D79,$A$29:$C$54,3,0)*VLOOKUP(D79,$A$29:$C$54,2,0)*$B79*FC_Financeiro!D$16/1000 -> 0 | E111: =VLOOKUP(E79,$A$29:$C$54,3,0)*VLOOKUP(E79,$A$29:$C$54,2,0)*$B79*FC_Financeiro!E$16/1000 -> 0 | F111: =VLOOKUP(F79,$A$29:$C$54,3,0)*VLOOKUP(F79,$A$29:$C$54,2,0)*$B79*FC_Financeiro!F$16/1000 -> 0 | G111: =VLOOKUP(G79,$A$29:$C$54,3,0)*VLOOKUP(G79,$A$29:$C$54,2,0)*$B79*FC_Financeiro!G$16/1000 -> 0 | H111: =VLOOKUP(H79,$A$29:$C$54,3,0)*VLOOKUP(H79,$A$29:$C$54,2,0)*$B79*FC_Financeiro!H$16/1000 -> 0 | I111: =VLOOKUP(I79,$A$29:$C$54,3,0)*VLOOKUP(I79,$A$29:$C$54,2,0)*$B79*FC_Financeiro!I$16/1000 -> 0 | J111: =VLOOKUP(J79,$A$29:$C$54,3,0)*VLOOKUP(J79,$A$29:$C$54,2,0)*$B79*FC_Financeiro!J$16/1000 -> 0 | K111: =VLOOKUP(K79,$A$29:$C$54,3,0)*VLOOKUP(K79,$A$29:$C$54,2,0)*$B79*FC_Financeiro!K$16/1000 -> 0 | L111: =VLOOKUP(L79,$A$29:$C$54,3,0)*VLOOKUP(L79,$A$29:$C$54,2,0)*$B79*FC_Financeiro!L$16/1000 -> 0 | M111: =VLOOKUP(M79,$A$29:$C$54,3,0)*VLOOKUP(M79,$A$29:$C$54,2,0)*$B79*FC_Financeiro!M$16/1000 -> 0 | N111: =VLOOKUP(N79,$A$29:$C$54,3,0)*VLOOKUP(N79,$A$29:$C$54,2,0)*$B79*FC_Financeiro!N$16/1000 -> 0 | O111: =VLOOKUP(O79,$A$29:$C$54,3,0)*VLOOKUP(O79,$A$29:$C$54,2,0)*$B79*FC_Financeiro!O$16/1000 -> 0 | P111: =VLOOKUP(P79,$A$29:$C$54,3,0)*VLOOKUP(P79,$A$29:$C$54,2,0)*$B79*FC_Financeiro!P$16/1000 -> 0 | Q111: =VLOOKUP(Q79,$A$29:$C$54,3,0)*VLOOKUP(Q79,$A$29:$C$54,2,0)*$B79*FC_Financeiro!Q$16/1000 -> 0 | R111: =VLOOKUP(R79,$A$29:$C$54,3,0)*VLOOKUP(R79,$A$29:$C$54,2,0)*$B79*FC_Financeiro!R$16/1000 -> 0 | S111: =VLOOKUP(S79,$A$29:$C$54,3,0)*VLOOKUP(S79,$A$29:$C$54,2,0)*$B79*FC_Financeiro!S$16/1000 -> 0 | T111: =VLOOKUP(T79,$A$29:$C$54,3,0)*VLOOKUP(T79,$A$29:$C$54,2,0)*$B79*FC_Financeiro!T$16/1000 -> 0 | U111: =VLOOKUP(U79,$A$29:$C$54,3,0)*VLOOKUP(U79,$A$29:$C$54,2,0)*$B79*FC_Financeiro!U$16/1000 -> 0 | V111: =VLOOKUP(V79,$A$29:$C$54,3,0)*VLOOKUP(V79,$A$29:$C$54,2,0)*$B79*FC_Financeiro!V$16/1000 -> 0 | W111: =VLOOKUP(W79,$A$29:$C$54,3,0)*VLOOKUP(W79,$A$29:$C$54,2,0)*$B79*FC_Financeiro!W$16/1000 -> 0 | X111: =VLOOKUP(X79,$A$29:$C$54,3,0)*VLOOKUP(X79,$A$29:$C$54,2,0)*$B79*FC_Financeiro!X$16/1000 -> 0 | Y111: =VLOOKUP(Y79,$A$29:$C$54,3,0)*VLOOKUP(Y79,$A$29:$C$54,2,0)*$B79*FC_Financeiro!Y$16/1000 -> 0 | Z111: =VLOOKUP(Z79,$A$29:$C$54,3,0)*VLOOKUP(Z79,$A$29:$C$54,2,0)*$B79*FC_Financeiro!Z$16/1000 -> 0 | AA111: =VLOOKUP(AA79,$A$29:$C$54,3,0)*VLOOKUP(AA79,$A$29:$C$54,2,0)*$B79*FC_Financeiro!AA$16/1000 -> 0 | AB111: =VLOOKUP(AB79,$A$29:$C$54,3,0)*VLOOKUP(AB79,$A$29:$C$54,2,0)*$B79*FC_Financeiro!AB$16/1000 -> 0 | AC111: =VLOOKUP(AC79,$A$29:$C$54,3,0)*VLOOKUP(AC79,$A$29:$C$54,2,0)*$B79*FC_Financeiro!AC$16/1000 -> 0
C112: Tlh14 | D112: =VLOOKUP(D80,$A$29:$C$54,3,0)*VLOOKUP(D80,$A$29:$C$54,2,0)*$B80*FC_Financeiro!D$16/1000 -> 0 | E112: =VLOOKUP(E80,$A$29:$C$54,3,0)*VLOOKUP(E80,$A$29:$C$54,2,0)*$B80*FC_Financeiro!E$16/1000 -> 0 | F112: =VLOOKUP(F80,$A$29:$C$54,3,0)*VLOOKUP(F80,$A$29:$C$54,2,0)*$B80*FC_Financeiro!F$16/1000 -> 0 | G112: =VLOOKUP(G80,$A$29:$C$54,3,0)*VLOOKUP(G80,$A$29:$C$54,2,0)*$B80*FC_Financeiro!G$16/1000 -> 0 | H112: =VLOOKUP(H80,$A$29:$C$54,3,0)*VLOOKUP(H80,$A$29:$C$54,2,0)*$B80*FC_Financeiro!H$16/1000 -> 0 | I112: =VLOOKUP(I80,$A$29:$C$54,3,0)*VLOOKUP(I80,$A$29:$C$54,2,0)*$B80*FC_Financeiro!I$16/1000 -> 0 | J112: =VLOOKUP(J80,$A$29:$C$54,3,0)*VLOOKUP(J80,$A$29:$C$54,2,0)*$B80*FC_Financeiro!J$16/1000 -> 0 | K112: =VLOOKUP(K80,$A$29:$C$54,3,0)*VLOOKUP(K80,$A$29:$C$54,2,0)*$B80*FC_Financeiro!K$16/1000 -> 0 | L112: =VLOOKUP(L80,$A$29:$C$54,3,0)*VLOOKUP(L80,$A$29:$C$54,2,0)*$B80*FC_Financeiro!L$16/1000 -> 0 | M112: =VLOOKUP(M80,$A$29:$C$54,3,0)*VLOOKUP(M80,$A$29:$C$54,2,0)*$B80*FC_Financeiro!M$16/1000 -> 0 | N112: =VLOOKUP(N80,$A$29:$C$54,3,0)*VLOOKUP(N80,$A$29:$C$54,2,0)*$B80*FC_Financeiro!N$16/1000 -> 0 | O112: =VLOOKUP(O80,$A$29:$C$54,3,0)*VLOOKUP(O80,$A$29:$C$54,2,0)*$B80*FC_Financeiro!O$16/1000 -> 0 | P112: =VLOOKUP(P80,$A$29:$C$54,3,0)*VLOOKUP(P80,$A$29:$C$54,2,0)*$B80*FC_Financeiro!P$16/1000 -> 0 | Q112: =VLOOKUP(Q80,$A$29:$C$54,3,0)*VLOOKUP(Q80,$A$29:$C$54,2,0)*$B80*FC_Financeiro!Q$16/1000 -> 0 | R112: =VLOOKUP(R80,$A$29:$C$54,3,0)*VLOOKUP(R80,$A$29:$C$54,2,0)*$B80*FC_Financeiro!R$16/1000 -> 0 | S112: =VLOOKUP(S80,$A$29:$C$54,3,0)*VLOOKUP(S80,$A$29:$C$54,2,0)*$B80*FC_Financeiro!S$16/1000 -> 0 | T112: =VLOOKUP(T80,$A$29:$C$54,3,0)*VLOOKUP(T80,$A$29:$C$54,2,0)*$B80*FC_Financeiro!T$16/1000 -> 0 | U112: =VLOOKUP(U80,$A$29:$C$54,3,0)*VLOOKUP(U80,$A$29:$C$54,2,0)*$B80*FC_Financeiro!U$16/1000 -> 0 | V112: =VLOOKUP(V80,$A$29:$C$54,3,0)*VLOOKUP(V80,$A$29:$C$54,2,0)*$B80*FC_Financeiro!V$16/1000 -> 0 | W112: =VLOOKUP(W80,$A$29:$C$54,3,0)*VLOOKUP(W80,$A$29:$C$54,2,0)*$B80*FC_Financeiro!W$16/1000 -> 0 | X112: =VLOOKUP(X80,$A$29:$C$54,3,0)*VLOOKUP(X80,$A$29:$C$54,2,0)*$B80*FC_Financeiro!X$16/1000 -> 0 | Y112: =VLOOKUP(Y80,$A$29:$C$54,3,0)*VLOOKUP(Y80,$A$29:$C$54,2,0)*$B80*FC_Financeiro!Y$16/1000 -> 0 | Z112: =VLOOKUP(Z80,$A$29:$C$54,3,0)*VLOOKUP(Z80,$A$29:$C$54,2,0)*$B80*FC_Financeiro!Z$16/1000 -> 0 | AA112: =VLOOKUP(AA80,$A$29:$C$54,3,0)*VLOOKUP(AA80,$A$29:$C$54,2,0)*$B80*FC_Financeiro!AA$16/1000 -> 0 | AB112: =VLOOKUP(AB80,$A$29:$C$54,3,0)*VLOOKUP(AB80,$A$29:$C$54,2,0)*$B80*FC_Financeiro!AB$16/1000 -> 0 | AC112: =VLOOKUP(AC80,$A$29:$C$54,3,0)*VLOOKUP(AC80,$A$29:$C$54,2,0)*$B80*FC_Financeiro!AC$16/1000 -> 0
A113: Até a Colheita (mil R$) | B113: =SUM(D113:AC113) -> -255045.5419 | C113: =NPV(B46,D113:AC113) -> -5006.902704 | D113: =SUM(D99:D112) -> 0 | E113: =SUM(E99:E112) -> -8904.2 | F113: -10417.914 | G113: -11195.78491 | H113: -12019.21683 | I113: -12890.61006 | J113: -13812.48399 | K113: -11548.31994 | L113: -12010.25274 | M113: -12490.66285 | N113: -12990.28937 | O113: -13509.90094 | P113: -14050.29698 | Q113: -14612.30886 | R113: -15196.80121 | S113: -15804.67326 | T113: -16436.86019 | U113: -17094.3346 | V113: -17778.10798 | W113: -4960.525739 | X113: -2813.970965 | Y113: -2194.897353 | Z113: -1521.795498 | AA113: -791.3336589 | AB113: 0 | AC113: 0
A114: Colheita (mil R$) | B114: =SUM(D114:AC114) -> -472427.0692 | C114: =NPV(B47,D114:AC114) -> -138.7590531 | D114: =SUM(D132,D147,D162,D177)*$H$32*FC_Financeiro!D$16/-1000 -> 0 | E114: =SUM(E132,E147,E162,E177)*$H$32*FC_Financeiro!E$16/-1000 -> 0 | F114: =SUM(F132,F147,F162,F177)*$H$32*FC_Financeiro!F$16/-1000 -> 0 | G114: =SUM(G132,G147,G162,G177)*$H$32*FC_Financeiro!G$16/-1000 -> 0 | H114: =SUM(H132,H147,H162,H177)*$H$32*FC_Financeiro!H$16/-1000 -> 0 | I114: =SUM(I132,I147,I162,I177)*$H$32*FC_Financeiro!I$16/-1000 -> 0 | J114: =SUM(J132,J147,J162,J177)*$H$32*FC_Financeiro!J$16/-1000 -> 0 | K114: =SUM(K132,K147,K162,K177)*$H$32*FC_Financeiro!K$16/-1000 -> -16973.56574 | L114: =SUM(L132,L147,L162,L177)*$H$32*FC_Financeiro!L$16/-1000 -> -17652.50837 | M114: =SUM(M132,M147,M162,M177)*$H$32*FC_Financeiro!M$16/-1000 -> -18358.6087 | N114: =SUM(N132,N147,N162,N177)*$H$32*FC_Financeiro!N$16/-1000 -> -19092.95305 | O114: =SUM(O132,O147,O162,O177)*$H$32*FC_Financeiro!O$16/-1000 -> -21048.07144 | P114: =SUM(P132,P147,P162,P177)*$H$32*FC_Financeiro!P$16/-1000 -> -21889.9943 | Q114: =SUM(Q132,Q147,Q162,Q177)*$H$32*FC_Financeiro!Q$16/-1000 -> -22765.59407 | R114: =SUM(R132,R147,R162,R177)*$H$32*FC_Financeiro!R$16/-1000 -> -23676.21784 | S114: =SUM(S132,S147,S162,S177)*$H$32*FC_Financeiro!S$16/-1000 -> -24623.26655 | T114: =SUM(T132,T147,T162,T177)*$H$32*FC_Financeiro!T$16/-1000 -> -27057.71781 | U114: =SUM(U132,U147,U162,U177)*$H$32*FC_Financeiro!U$16/-1000 -> -28140.02652 | V114: =SUM(V132,V147,V162,V177)*$H$32*FC_Financeiro!V$16/-1000 -> -29265.62758 | W114: =SUM(W132,W147,W162,W177)*$H$32*FC_Financeiro!W$16/-1000 -> -30436.25268 | X114: =SUM(X132,X147,X162,X177)*$H$32*FC_Financeiro!X$16/-1000 -> -31653.70279 | Y114: =SUM(Y132,Y147,Y162,Y177)*$H$32*FC_Financeiro!Y$16/-1000 -> -32919.8509 | Z114: =SUM(Z132,Z147,Z162,Z177)*$H$32*FC_Financeiro!Z$16/-1000 -> -34236.64494 | AA114: =SUM(AA132,AA147,AA162,AA177)*$H$32*FC_Financeiro!AA$16/-1000 -> -35606.11074 | AB114: =SUM(AB132,AB147,AB162,AB177)*$H$32*FC_Financeiro!AB$16/-1000 -> -37030.35517 | AC114: =SUM(AC132,AC147,AC162,AC177)*$H$32*FC_Financeiro!AC$16/-1000 -> 0
A115: Frete (mil R$) | B115: =SUM(D115:AC115) -> -283456.2415 | C115: =NPV(B48,D115:AC115) -> -83.25543184 | D115: =SUM(D$132,D$147,D162,D177)*SUMPRODUCT($H$36:$H$38,$I$36:$I$38)*FC_Financeiro!D$16/-1000 -> 0 | E115: =SUM(E$132,E$147,E162,E177)*SUMPRODUCT($H$36:$H$38,$I$36:$I$38)*FC_Financeiro!E$16/-1000 -> 0 | F115: =SUM(F$132,F$147,F162,F177)*SUMPRODUCT($H$36:$H$38,$I$36:$I$38)*FC_Financeiro!F$16/-1000 -> 0 | G115: =SUM(G$132,G$147,G162,G177)*SUMPRODUCT($H$36:$H$38,$I$36:$I$38)*FC_Financeiro!G$16/-1000 -> 0 | H115: =SUM(H$132,H$147,H162,H177)*SUMPRODUCT($H$36:$H$38,$I$36:$I$38)*FC_Financeiro!H$16/-1000 -> 0 | I115: =SUM(I$132,I$147,I162,I177)*SUMPRODUCT($H$36:$H$38,$I$36:$I$38)*FC_Financeiro!I$16/-1000 -> 0 | J115: =SUM(J$132,J$147,J162,J177)*SUMPRODUCT($H$36:$H$38,$I$36:$I$38)*FC_Financeiro!J$16/-1000 -> 0 | K115: =SUM(K$132,K$147,K162,K177)*SUMPRODUCT($H$36:$H$38,$I$36:$I$38)*FC_Financeiro!K$16/-1000 -> -10184.13944 | L115: =SUM(L$132,L$147,L162,L177)*SUMPRODUCT($H$36:$H$38,$I$36:$I$38)*FC_Financeiro!L$16/-1000 -> -10591.50502 | M115: =SUM(M$132,M$147,M162,M177)*SUMPRODUCT($H$36:$H$38,$I$36:$I$38)*FC_Financeiro!M$16/-1000 -> -11015.16522 | N115: =SUM(N$132,N$147,N162,N177)*SUMPRODUCT($H$36:$H$38,$I$36:$I$38)*FC_Financeiro!N$16/-1000 -> -11455.77183 | O115: =SUM(O$132,O$147,O162,O177)*SUMPRODUCT($H$36:$H$38,$I$36:$I$38)*FC_Financeiro!O$16/-1000 -> -12628.84287 | P115: =SUM(P$132,P$147,P162,P177)*SUMPRODUCT($H$36:$H$38,$I$36:$I$38)*FC_Financeiro!P$16/-1000 -> -13133.99658 | Q115: =SUM(Q$132,Q$147,Q162,Q177)*SUMPRODUCT($H$36:$H$38,$I$36:$I$38)*FC_Financeiro!Q$16/-1000 -> -13659.35644 | R115: =SUM(R$132,R$147,R162,R177)*SUMPRODUCT($H$36:$H$38,$I$36:$I$38)*FC_Financeiro!R$16/-1000 -> -14205.7307 | S115: =SUM(S$132,S$147,S162,S177)*SUMPRODUCT($H$36:$H$38,$I$36:$I$38)*FC_Financeiro!S$16/-1000 -> -14773.95993 | T115: =SUM(T$132,T$147,T162,T177)*SUMPRODUCT($H$36:$H$38,$I$36:$I$38)*FC_Financeiro!T$16/-1000 -> -16234.63068 | U115: =SUM(U$132,U$147,U162,U177)*SUMPRODUCT($H$36:$H$38,$I$36:$I$38)*FC_Financeiro!U$16/-1000 -> -16884.01591 | V115: =SUM(V$132,V$147,V162,V177)*SUMPRODUCT($H$36:$H$38,$I$36:$I$38)*FC_Financeiro!V$16/-1000 -> -17559.37655 | W115: =SUM(W$132,W$147,W162,W177)*SUMPRODUCT($H$36:$H$38,$I$36:$I$38)*FC_Financeiro!W$16/-1000 -> -18261.75161 | X115: =SUM(X$132,X$147,X162,X177)*SUMPRODUCT($H$36:$H$38,$I$36:$I$38)*FC_Financeiro!X$16/-1000 -> -18992.22167 | Y115: =SUM(Y$132,Y$147,Y162,Y177)*SUMPRODUCT($H$36:$H$38,$I$36:$I$38)*FC_Financeiro!Y$16/-1000 -> -19751.91054 | Z115: =SUM(Z$132,Z$147,Z162,Z177)*SUMPRODUCT($H$36:$H$38,$I$36:$I$38)*FC_Financeiro!Z$16/-1000 -> -20541.98696 | AA115: =SUM(AA$132,AA$147,AA162,AA177)*SUMPRODUCT($H$36:$H$38,$I$36:$I$38)*FC_Financeiro!AA$16/-1000 -> -21363.66644 | AB115: =SUM(AB$132,AB$147,AB162,AB177)*SUMPRODUCT($H$36:$H$38,$I$36:$I$38)*FC_Financeiro!AB$16/-1000 -> -22218.2131 | AC115: =SUM(AC$132,AC$147,AC162,AC177)*SUMPRODUCT($H$36:$H$38,$I$36:$I$38)*FC_Financeiro!AC$16/-1000 -> 0
A116: Total Despesas Operacionais (mil R$) | B116: =SUM(D116:AC116) -> -1010928.853 | C116: =NPV(FC_Financeiro!$D$2,D116:AC116) -> -251712.6029 | D116: =SUM(D113:D115) -> 0 | E116: =SUM(E113:E115) -> -8904.2 | F116: -10417.914 | G116: -11195.78491 | H116: -12019.21683 | I116: -12890.61006 | J116: -13812.48399 | K116: -38706.02513 | L116: -40254.26613 | M116: -41864.43678 | N116: -43539.01425 | O116: -47186.81525 | P116: -49074.28786 | Q116: -51037.25937 | R116: -53078.74975 | S116: -55201.89974 | T116: -59729.20868 | U116: -62118.37703 | V116: -64603.11211 | W116: -53658.53003 | X116: -53459.89543 | Y116: -54866.6588 | Z116: -56300.4274 | AA116: -57761.11084 | AB116: -59248.56827 | AC116: 0
A117: Volume Colhido (m3)
A118: =CONCATENATE("Volume Colhido ",$A$8) -> Volume Colhido CEL | B118: =$A$8 -> CEL | C118: Tlh01 | D118: =IFERROR(VLOOKUP(D67,$A$15:$K$26,3+MATCH($B118,$D$14:$K$14,0),0)*$B67*D$81,0) -> 0 | E118: 0 | F118: 0 | G118: 0 | H118: 0 | I118: 0 | J118: 0 | K118: 241045 | L118: 0 | M118: 0 | N118: 0 | O118: 0 | P118: 0 | Q118: 255507.7 | R118: 0 | S118: 0 | T118: 0 | U118: 0 | V118: 0 | W118: 269970.4 | X118: 0 | Y118: 0 | Z118: 0 | AA118: 0 | AB118: 0 | AC118: 0
B119: =B118 -> CEL | C119: Tlh02 | D119: =IFERROR(VLOOKUP(D68,$A$15:$K$26,3+MATCH($B119,$D$14:$K$14,0),0)*$B68*D$81,0) -> 0 | E119: 0 | F119: 0 | G119: 0 | H119: 0 | I119: 0 | J119: 0 | K119: 0 | L119: 241045 | M119: 0 | N119: 0 | O119: 0 | P119: 0 | Q119: 0 | R119: 255507.7 | S119: 0 | T119: 0 | U119: 0 | V119: 0 | W119: 0 | X119: 269970.4 | Y119: 0 | Z119: 0 | AA119: 0 | AB119: 0 | AC119: 0
B120: =B119 -> CEL | C120: Tlh03 | D120: =IFERROR(VLOOKUP(D69,$A$15:$K$26,3+MATCH($B120,$D$14:$K$14,0),0)*$B69*D$81,0) -> 0 | E120: 0 | F120: 0 | G120: 0 | H120: 0 | I120: 0 | J120: 0 | K120: 0 | L120: 0 | M120: 241045 | N120: 0 | O120: 0 | P120: 0 | Q120: 0 | R120: 0 | S120: 255507.7 | T120: 0 | U120: 0 | V120: 0 | W120: 0 | X120: 0 | Y120: 269970.4 | Z120: 0 | AA120: 0 | AB120: 0 | AC120: 0
B121: CEL | C121: Tlh04 | D121: =IFERROR(VLOOKUP(D70,$A$15:$K$26,3+MATCH($B121,$D$14:$K$14,0),0)*$B70*D$81,0) -> 0 | E121: 0 | F121: 0 | G121: 0 | H121: 0 | I121: 0 | J121: 0 | K121: 0 | L121: 0 | M121: 0 | N121: 241045 | O121: 0 | P121: 0 | Q121: 0 | R121: 0 | S121: 0 | T121: 269970.4 | U121: 0 | V121: 0 | W121: 0 | X121: 0 | Y121: 0 | Z121: 269970.4 | AA121: 0 | AB121: 0 | AC121: 0
B122: CEL | C122: Tlh05 | D122: =IFERROR(VLOOKUP(D71,$A$15:$K$26,3+MATCH($B122,$D$14:$K$14,0),0)*$B71*D$81,0) -> 0 | E122: 0 | F122: 0 | G122: 0 | H122: 0 | I122: 0 | J122: 0 | K122: 0 | L122: 0 | M122: 0 | N122: 0 | O122: 255507.7 | P122: 0 | Q122: 0 | R122: 0 | S122: 0 | T122: 0 | U122: 269970.4 | V122: 0 | W122: 0 | X122: 0 | Y122: 0 | Z122: 0 | AA122: 269970.4 | AB122: 0 | AC122: 0
B123: CEL | C123: Tlh06 | D123: =IFERROR(VLOOKUP(D72,$A$15:$K$26,3+MATCH($B123,$D$14:$K$14,0),0)*$B72*D$81,0) -> 0 | E123: 0 | F123: 0 | G123: 0 | H123: 0 | I123: 0 | J123: 0 | K123: 0 | L123: 0 | M123: 0 | N123: 0 | O123: 0 | P123: 255507.7 | Q123: 0 | R123: 0 | S123: 0 | T123: 0 | U123: 0 | V123: 269970.4 | W123: 0 | X123: 0 | Y123: 0 | Z123: 0 | AA123: 0 | AB123: 269970.4 | AC123: 0
B124: CEL | C124: Tlh07 | D124: =IFERROR(VLOOKUP(D73,$A$15:$K$26,3+MATCH($B124,$D$14:$K$14,0),0)*$B73*D$81,0) -> 0 | E124: 0 | F124: 0 | G124: 0 | H124: 0 | I124: 0 | J124: 0 | K124: 241045 | L124: 0 | M124: 0 | N124: 0 | O124: 0 | P124: 0 | Q124: 255507.7 | R124: 0 | S124: 0 | T124: 0 | U124: 0 | V124: 0 | W124: 269970.4 | X124: 0 | Y124: 0 | Z124: 0 | AA124: 0 | AB124: 0 | AC124: 0
B125: CEL | C125: Tlh08 | D125: =IFERROR(VLOOKUP(D74,$A$15:$K$26,3+MATCH($B125,$D$14:$K$14,0),0)*$B74*D$81,0) -> 0 | E125: 0 | F125: 0 | G125: 0 | H125: 0 | I125: 0 | J125: 0 | K125: 0 | L125: 241045 | M125: 0 | N125: 0 | O125: 0 | P125: 0 | Q125: 0 | R125: 255507.7 | S125: 0 | T125: 0 | U125: 0 | V125: 0 | W125: 0 | X125: 269970.4 | Y125: 0 | Z125: 0 | AA125: 0 | AB125: 0 | AC125: 0
B126: CEL | C126: Tlh09 | D126: =IFERROR(VLOOKUP(D75,$A$15:$K$26,3+MATCH($B126,$D$14:$K$14,0),0)*$B75*D$81,0) -> 0 | E126: 0 | F126: 0 | G126: 0 | H126: 0 | I126: 0 | J126: 0 | K126: 0 | L126: 0 | M126: 241045 | N126: 0 | O126: 0 | P126: 0 | Q126: 0 | R126: 0 | S126: 255507.7 | T126: 0 | U126: 0 | V126: 0 | W126: 0 | X126: 0 | Y126: 269970.4 | Z126: 0 | AA126: 0 | AB126: 0 | AC126: 0
B127: CEL | C127: Tlh10 | D127: =IFERROR(VLOOKUP(D76,$A$15:$K$26,3+MATCH($B127,$D$14:$K$14,0),0)*$B76*D$81,0) -> 0 | E127: 0 | F127: 0 | G127: 0 | H127: 0 | I127: 0 | J127: 0 | K127: 0 | L127: 0 | M127: 0 | N127: 241045 | O127: 0 | P127: 0 | Q127: 0 | R127: 0 | S127: 0 | T127: 269970.4 | U127: 0 | V127: 0 | W127: 0 | X127: 0 | Y127: 0 | Z127: 269970.4 | AA127: 0 | AB127: 0 | AC127: 0
B128: CEL | C128: Tlh11 | D128: =IFERROR(VLOOKUP(D77,$A$15:$K$26,3+MATCH($B128,$D$14:$K$14,0),0)*$B77*D$81,0) -> 0 | E128: 0 | F128: 0 | G128: 0 | H128: 0 | I128: 0 | J128: 0 | K128: 0 | L128: 0 | M128: 0 | N128: 0 | O128: 255507.7 | P128: 0 | Q128: 0 | R128: 0 | S128: 0 | T128: 0 | U128: 269970.4 | V128: 0 | W128: 0 | X128: 0 | Y128: 0 | Z128: 0 | AA128: 269970.4 | AB128: 0 | AC128: 0
B129: CEL | C129: Tlh12 | D129: =IFERROR(VLOOKUP(D78,$A$15:$K$26,3+MATCH($B129,$D$14:$K$14,0),0)*$B78*D$81,0) -> 0 | E129: 0 | F129: 0 | G129: 0 | H129: 0 | I129: 0 | J129: 0 | K129: 0 | L129: 0 | M129: 0 | N129: 0 | O129: 0 | P129: 255507.7 | Q129: 0 | R129: 0 | S129: 0 | T129: 0 | U129: 0 | V129: 269970.4 | W129: 0 | X129: 0 | Y129: 0 | Z129: 0 | AA129: 0 | AB129: 269970.4 | AC129: 0
B130: CEL | C130: Tlh13 | D130: =IFERROR(VLOOKUP(D79,$A$15:$K$26,3+MATCH($B130,$D$14:$K$14,0),0)*$B79*D$81,0) -> 0 | E130: 0 | F130: 0 | G130: 0 | H130: 0 | I130: 0 | J130: 0 | K130: 0 | L130: 0 | M130: 0 | N130: 0 | O130: 0 | P130: 0 | Q130: 0 | R130: 0 | S130: 0 | T130: 0 | U130: 0 | V130: 0 | W130: 0 | X130: 0 | Y130: 0 | Z130: 0 | AA130: 0 | AB130: 0 | AC130: 0
B131: CEL | C131: Tlh14 | D131: =IFERROR(VLOOKUP(D80,$A$15:$K$26,3+MATCH($B131,$D$14:$K$14,0),0)*$B80*D$81,0) -> 0 | E131: 0 | F131: 0 | G131: 0 | H131: 0 | I131: 0 | J131: 0 | K131: 0 | L131: 0 | M131: 0 | N131: 0 | O131: 0 | P131: 0 | Q131: 0 | R131: 0 | S131: 0 | T131: 0 | U131: 0 | V131: 0 | W131: 0 | X131: 0 | Y131: 0 | Z131: 0 | AA131: 0 | AB131: 0 | AC131: 0
A132: =B131 -> CEL | B132: =SUM(D132:AC132) -> 9342904.2 | C132: =NPV(FC_Financeiro!$D$2,D132:AC132) -> 2139872.082 | D132: =SUM(D118:D131) -> 0 | E132: =SUM(E118:E131) -> 0 | F132: 0 | G132: 0 | H132: 0 | I132: 0 | J132: 0 | K132: 482090 | L132: 482090 | M132: 482090 | N132: 482090 | O132: =SUM(O118:O131) -> 511015.4 | P132: 511015.4 | Q132: 511015.4 | R132: 511015.4 | S132: 511015.4 | T132: 539940.8 | U132: 539940.8 | V132: 539940.8 | W132: 539940.8 | X132: 539940.8 | Y132: 539940.8 | Z132: 539940.8 | AA132: 539940.8 | AB132: 539940.8 | AC132: 0
A133: =CONCATENATE("Volume Colhido ",$A$9) -> Volume Colhido BIO | B133: =$A$9 -> BIO | C133: =C118 -> Tlh01 | D133: =IFERROR(VLOOKUP(D67,$A$15:$K$26,3+MATCH($B133,$D$14:$K$14,0),0)*$B67*D$81,0) -> 0 | E133: 0 | F133: 0 | G133: 0 | H133: 0 | I133: 0 | J133: 0 | K133: 0 | L133: 0 | M133: 0 | N133: 0 | O133: 0 | P133: 0 | Q133: 0 | R133: 0 | S133: 0 | T133: 0 | U133: 0 | V133: 0 | W133: 0 | X133: 0 | Y133: 0 | Z133: 0 | AA133: 0 | AB133: 0 | AC133: 0
B134: =B133 -> BIO | C134: =C119 -> Tlh02 | D134: =IFERROR(VLOOKUP(D68,$A$15:$K$26,3+MATCH($B134,$D$14:$K$14,0),0)*$B68*D$81,0) -> 0 | E134: 0 | F134: 0 | G134: 0 | H134: 0 | I134: 0 | J134: 0 | K134: 0 | L134: 0 | M134: 0 | N134: 0 | O134: 0 | P134: 0 | Q134: 0 | R134: 0 | S134: 0 | T134: 0 | U134: 0 | V134: 0 | W134: 0 | X134: 0 | Y134: 0 | Z134: 0 | AA134: 0 | AB134: 0 | AC134: 0
B135: =B134 -> BIO | C135: =C120 -> Tlh03 | D135: =IFERROR(VLOOKUP(D69,$A$15:$K$26,3+MATCH($B135,$D$14:$K$14,0),0)*$B69*D$81,0) -> 0 | E135: 0 | F135: 0 | G135: 0 | H135: 0 | I135: 0 | J135: 0 | K135: 0 | L135: 0 | M135: 0 | N135: 0 | O135: 0 | P135: 0 | Q135: 0 | R135: 0 | S135: 0 | T135: 0 | U135: 0 | V135: 0 | W135: 0 | X135: 0 | Y135: 0 | Z135: 0 | AA135: 0 | AB135: 0 | AC135: 0
B136: BIO | C136: Tlh04 | D136: =IFERROR(VLOOKUP(D70,$A$15:$K$26,3+MATCH($B136,$D$14:$K$14,0),0)*$B70*D$81,0) -> 0 | E136: 0 | F136: 0 | G136: 0 | H136: 0 | I136: 0 | J136: 0 | K136: 0 | L136: 0 | M136: 0 | N136: 0 | O136: 0 | P136: 0 | Q136: 0 | R136: 0 | S136: 0 | T136: 0 | U136: 0 | V136: 0 | W136: 0 | X136: 0 | Y136: 0 | Z136: 0 | AA136: 0 | AB136: 0 | AC136: 0
B137: BIO | C137: Tlh05 | D137: =IFERROR(VLOOKUP(D71,$A$15:$K$26,3+MATCH($B137,$D$14:$K$14,0),0)*$B71*D$81,0) -> 0 | E137: 0 | F137: 0 | G137: 0 | H137: 0 | I137: 0 | J137: 0 | K137: 0 | L137: 0 | M137: 0 | N137: 0 | O137: 0 | P137: 0 | Q137: 0 | R137: 0 | S137: 0 | T137: 0 | U137: 0 | V137: 0 | W137: 0 | X137: 0 | Y137: 0 | Z137: 0 | AA137: 0 | AB137: 0 | AC137: 0
B138: BIO | C138: Tlh06 | D138: =IFERROR(VLOOKUP(D72,$A$15:$K$26,3+MATCH($B138,$D$14:$K$14,0),0)*$B72*D$81,0) -> 0 | E138: 0 | F138: 0 | G138: 0 | H138: 0 | I138: 0 | J138: 0 | K138: 0 | L138: 0 | M138: 0 | N138: 0 | O138: 0 | P138: 0 | Q138: 0 | R138: 0 | S138: 0 | T138: 0 | U138: 0 | V138: 0 | W138: 0 | X138: 0 | Y138: 0 | Z138: 0 | AA138: 0 | AB138: 0 | AC138: 0
B139: BIO | C139: Tlh07 | D139: =IFERROR(VLOOKUP(D73,$A$15:$K$26,3+MATCH($B139,$D$14:$K$14,0),0)*$B73*D$81,0) -> 0 | E139: 0 | F139: 0 | G139: 0 | H139: 0 | I139: 0 | J139: 0 | K139: 0 | L139: 0 | M139: 0 | N139: 0 | O139: 0 | P139: 0 | Q139: 0 | R139: 0 | S139: 0 | T139: 0 | U139: 0 | V139: 0 | W139: 0 | X139: 0 | Y139: 0 | Z139: 0 | AA139: 0 | AB139: 0 | AC139: 0
B140: BIO | C140: Tlh08 | D140: =IFERROR(VLOOKUP(D74,$A$15:$K$26,3+MATCH($B140,$D$14:$K$14,0),0)*$B74*D$81,0) -> 0 | E140: 0 | F140: 0 | G140: 0 | H140: 0 | I140: 0 | J140: 0 | K140: 0 | L140: 0 | M140: 0 | N140: 0 | O140: 0 | P140: 0 | Q140: 0 | R140: 0 | S140: 0 | T140: 0 | U140: 0 | V140: 0 | W140: 0 | X140: 0 | Y140: 0 | Z140: 0 | AA140: 0 | AB140: 0 | AC140: 0
B141: BIO | C141: Tlh09 | D141: =IFERROR(VLOOKUP(D75,$A$15:$K$26,3+MATCH($B141,$D$14:$K$14,0),0)*$B75*D$81,0) -> 0 | E141: 0 | F141: 0 | G141: 0 | H141: 0 | I141: 0 | J141: 0 | K141: 0 | L141: 0 | M141: 0 | N141: 0 | O141: 0 | P141: 0 | Q141: 0 | R141: 0 | S141: 0 | T141: 0 | U141: 0 | V141: 0 | W141: 0 | X141: 0 | Y141: 0 | Z141: 0 | AA141: 0 | AB141: 0 | AC141: 0
B142: BIO | C142: Tlh10 | D142: =IFERROR(VLOOKUP(D76,$A$15:$K$26,3+MATCH($B142,$D$14:$K$14,0),0)*$B76*D$81,0) -> 0 | E142: 0 | F142: 0 | G142: 0 | H142: 0 | I142: 0 | J142: 0 | K142: 0 | L142: 0 | M142: 0 | N142: 0 | O142: 0 | P142: 0 | Q142: 0 | R142: 0 | S142: 0 | T142: 0 | U142: 0 | V142: 0 | W142: 0 | X142: 0 | Y142: 0 | Z142: 0 | AA142: 0 | AB142: 0 | AC142: 0
B143: BIO | C143: Tlh11 | D143: =IFERROR(VLOOKUP(D77,$A$15:$K$26,3+MATCH($B143,$D$14:$K$14,0),0)*$B77*D$81,0) -> 0 | E143: 0 | F143: 0 | G143: 0 | H143: 0 | I143: 0 | J143: 0 | K143: 0 | L143: 0 | M143: 0 | N143: 0 | O143: 0 | P143: 0 | Q143: 0 | R143: 0 | S143: 0 | T143: 0 | U143: 0 | V143: 0 | W143: 0 | X143: 0 | Y143: 0 | Z143: 0 | AA143: 0 | AB143: 0 | AC143: 0
B144: BIO | C144: Tlh12 | D144: =IFERROR(VLOOKUP(D78,$A$15:$K$26,3+MATCH($B144,$D$14:$K$14,0),0)*$B78*D$81,0) -> 0 | E144: 0 | F144: 0 | G144: 0 | H144: 0 | I144: 0 | J144: 0 | K144: 0 | L144: 0 | M144: 0 | N144: 0 | O144: 0 | P144: 0 | Q144: 0 | R144: 0 | S144: 0 | T144: 0 | U144: 0 | V144: 0 | W144: 0 | X144: 0 | Y144: 0 | Z144: 0 | AA144: 0 | AB144: 0 | AC144: 0
B145: BIO | C145: Tlh13 | D145: =IFERROR(VLOOKUP(D79,$A$15:$K$26,3+MATCH($B145,$D$14:$K$14,0),0)*$B79*D$81,0) -> 0 | E145: 0 | F145: 0 | G145: 0 | H145: 0 | I145: 0 | J145: 0 | K145: 0 | L145: 0 | M145: 0 | N145: 0 | O145: 0 | P145: 0 | Q145: 0 | R145: 0 | S145: 0 | T145: 0 | U145: 0 | V145: 0 | W145: 0 | X145: 0 | Y145: 0 | Z145: 0 | AA145: 0 | AB145: 0 | AC145: 0
B146: BIO | C146: Tlh14 | D146: =IFERROR(VLOOKUP(D80,$A$15:$K$26,3+MATCH($B146,$D$14:$K$14,0),0)*$B80*D$81,0) -> 0 | E146: 0 | F146: 0 | G146: 0 | H146: 0 | I146: 0 | J146: 0 | K146: 0 | L146: 0 | M146: 0 | N146: 0 | O146: 0 | P146: 0 | Q146: 0 | R146: 0 | S146: 0 | T146: 0 | U146: 0 | V146: 0 | W146: 0 | X146: 0 | Y146: 0 | Z146: 0 | AA146: 0 | AB146: 0 | AC146: 0
A147: =B146 -> BIO | B147: =SUM(D147:AC147) -> 0 | C147: =NPV(FC_Financeiro!$D$2,D147:AC147) -> 0 | D147: =SUM(D133:D146) -> 0 | E147: =SUM(E133:E146) -> 0 | F147: 0 | G147: 0 | H147: 0 | I147: 0 | J147: 0 | K147: 0 | L147: 0 | M147: 0 | N147: 0 | O147: 0 | P147: 0 | Q147: 0 | R147: 0 | S147: 0 | T147: 0 | U147: 0 | V147: 0 | W147: 0 | X147: 0 | Y147: 0 | Z147: 0 | AA147: 0 | AB147: 0 | AC147: =SUM(AC133:AC146) -> 0
A148: =CONCATENATE("Volume Colhido ",$A$10) -> Volume Colhido XX1 | B148: =$A$10 -> XX1 | C148: =C133 -> Tlh01 | D148: =IFERROR(VLOOKUP(D67,$A$15:$K$26,3+MATCH($B148,$D$14:$K$14,0),0)*$B67*D$81,0) -> 0 | E148: 0 | F148: 0 | G148: 0 | H148: 0 | I148: 0 | J148: 0 | K148: 0 | L148: 0 | M148: 0 | N148: 0 | O148: 0 | P148: 0 | Q148: 0 | R148: 0 | S148: 0 | T148: 0 | U148: 0 | V148: 0 | W148: 0 | X148: 0 | Y148: 0 | Z148: 0 | AA148: 0 | AB148: 0 | AC148: 0
B149: =B148 -> XX1 | C149: =C134 -> Tlh02 | D149: =IFERROR(VLOOKUP(D68,$A$15:$K$26,3+MATCH($B149,$D$14:$K$14,0),0)*$B68*D$81,0) -> 0 | E149: 0 | F149: 0 | G149: 0 | H149: 0 | I149: 0 | J149: 0 | K149: 0 | L149: 0 | M149: 0 | N149: 0 | O149: 0 | P149: 0 | Q149: 0 | R149: 0 | S149: 0 | T149: 0 | U149: 0 | V149: 0 | W149: 0 | X149: 0 | Y149: 0 | Z149: 0 | AA149: 0 | AB149: 0 | AC149: 0
B150: =B149 -> XX1 | C150: =C135 -> Tlh03 | D150: =IFERROR(VLOOKUP(D69,$A$15:$K$26,3+MATCH($B150,$D$14:$K$14,0),0)*$B69*D$81,0) -> 0 | E150: 0 | F150: 0 | G150: 0 | H150: 0 | I150: 0 | J150: 0 | K150: 0 | L150: 0 | M150: 0 | N150: 0 | O150: 0 | P150: 0 | Q150: 0 | R150: 0 | S150: 0 | T150: 0 | U150: 0 | V150: 0 | W150: 0 | X150: 0 | Y150: 0 | Z150: 0 | AA150: 0 | AB150: 0 | AC150: 0
B151: XX1 | C151: Tlh04 | D151: =IFERROR(VLOOKUP(D70,$A$15:$K$26,3+MATCH($B151,$D$14:$K$14,0),0)*$B70*D$81,0) -> 0 | E151: 0 | F151: 0 | G151: 0 | H151: 0 | I151: 0 | J151: 0 | K151: 0 | L151: 0 | M151: 0 | N151: 0 | O151: 0 | P151: 0 | Q151: 0 | R151: 0 | S151: 0 | T151: 0 | U151: 0 | V151: 0 | W151: 0 | X151: 0 | Y151: 0 | Z151: 0 | AA151: 0 | AB151: 0 | AC151: 0
B152: XX1 | C152: Tlh05 | D152: =IFERROR(VLOOKUP(D71,$A$15:$K$26,3+MATCH($B152,$D$14:$K$14,0),0)*$B71*D$81,0) -> 0 | E152: 0 | F152: 0 | G152: 0 | H152: 0 | I152: 0 | J152: 0 | K152: 0 | L152: 0 | M152: 0 | N152: 0 | O152: 0 | P152: 0 | Q152: 0 | R152: 0 | S152: 0 | T152: 0 | U152: 0 | V152: 0 | W152: 0 | X152: 0 | Y152: 0 | Z152: 0 | AA152: 0 | AB152: 0 | AC152: 0
B153: XX1 | C153: Tlh06 | D153: =IFERROR(VLOOKUP(D72,$A$15:$K$26,3+MATCH($B153,$D$14:$K$14,0),0)*$B72*D$81,0) -> 0 | E153: 0 | F153: 0 | G153: 0 | H153: 0 | I153: 0 | J153: 0 | K153: 0 | L153: 0 | M153: 0 | N153: 0 | O153: 0 | P153: 0 | Q153: 0 | R153: 0 | S153: 0 | T153: 0 | U153: 0 | V153: 0 | W153: 0 | X153: 0 | Y153: 0 | Z153: 0 | AA153: 0 | AB153: 0 | AC153: 0
B154: XX1 | C154: Tlh07 | D154: =IFERROR(VLOOKUP(D73,$A$15:$K$26,3+MATCH($B154,$D$14:$K$14,0),0)*$B73*D$81,0) -> 0 | E154: 0 | F154: 0 | G154: 0 | H154: 0 | I154: 0 | J154: 0 | K154: 0 | L154: 0 | M154: 0 | N154: 0 | O154: 0 | P154: 0 | Q154: 0 | R154: 0 | S154: 0 | T154: 0 | U154: 0 | V154: 0 | W154: 0 | X154: 0 | Y154: 0 | Z154: 0 | AA154: 0 | AB154: 0 | AC154: 0
B155: XX1 | C155: Tlh08 | D155: =IFERROR(VLOOKUP(D74,$A$15:$K$26,3+MATCH($B155,$D$14:$K$14,0),0)*$B74*D$81,0) -> 0 | E155: 0 | F155: 0 | G155: 0 | H155: 0 | I155: 0 | J155: 0 | K155: 0 | L155: 0 | M155: 0 | N155: 0 | O155: 0 | P155: 0 | Q155: 0 | R155: 0 | S155: 0 | T155: 0 | U155: 0 | V155: 0 | W155: 0 | X155: 0 | Y155: 0 | Z155: 0 | AA155: 0 | AB155: 0 | AC155: 0
B156: XX1 | C156: Tlh09 | D156: =IFERROR(VLOOKUP(D75,$A$15:$K$26,3+MATCH($B156,$D$14:$K$14,0),0)*$B75*D$81,0) -> 0 | E156: 0 | F156: 0 | G156: 0 | H156: 0 | I156: 0 | J156: 0 | K156: 0 | L156: 0 | M156: 0 | N156: 0 | O156: 0 | P156: 0 | Q156: 0 | R156: 0 | S156: 0 | T156: 0 | U156: 0 | V156: 0 | W156: 0 | X156: 0 | Y156: 0 | Z156: 0 | AA156: 0 | AB156: 0 | AC156: 0
B157: XX1 | C157: Tlh10 | D157: =IFERROR(VLOOKUP(D76,$A$15:$K$26,3+MATCH($B157,$D$14:$K$14,0),0)*$B76*D$81,0) -> 0 | E157: 0 | F157: 0 | G157: 0 | H157: 0 | I157: 0 | J157: 0 | K157: 0 | L157: 0 | M157: 0 | N157: 0 | O157: 0 | P157: 0 | Q157: 0 | R157: 0 | S157: 0 | T157: 0 | U157: 0 | V157: 0 | W157: 0 | X157: 0 | Y157: 0 | Z157: 0 | AA157: 0 | AB157: 0 | AC157: 0
B158: XX1 | C158: Tlh11 | D158: =IFERROR(VLOOKUP(D77,$A$15:$K$26,3+MATCH($B158,$D$14:$K$14,0),0)*$B77*D$81,0) -> 0 | E158: 0 | F158: 0 | G158: 0 | H158: 0 | I158: 0 | J158: 0 | K158: 0 | L158: 0 | M158: 0 | N158: 0 | O158: 0 | P158: 0 | Q158: 0 | R158: 0 | S158: 0 | T158: 0 | U158: 0 | V158: 0 | W158: 0 | X158: 0 | Y158: 0 | Z158: 0 | AA158: 0 | AB158: 0 | AC158: 0
B159: XX1 | C159: Tlh12 | D159: =IFERROR(VLOOKUP(D78,$A$15:$K$26,3+MATCH($B159,$D$14:$K$14,0),0)*$B78*D$81,0) -> 0 | E159: 0 | F159: 0 | G159: 0 | H159: 0 | I159: 0 | J159: 0 | K159: 0 | L159: 0 | M159: 0 | N159: 0 | O159: 0 | P159: 0 | Q159: 0 | R159: 0 | S159: 0 | T159: 0 | U159: 0 | V159: 0 | W159: 0 | X159: 0 | Y159: 0 | Z159: 0 | AA159: 0 | AB159: 0 | AC159: 0
B160: XX1 | C160: Tlh13 | D160: =IFERROR(VLOOKUP(D79,$A$15:$K$26,3+MATCH($B160,$D$14:$K$14,0),0)*$B79*D$81,0) -> 0 | E160: 0 | F160: 0 | G160: 0 | H160: 0 | I160: 0 | J160: 0 | K160: 0 | L160: 0 | M160: 0 | N160: 0 | O160: 0 | P160: 0 | Q160: 0 | R160: 0 | S160: 0 | T160: 0 | U160: 0 | V160: 0 | W160: 0 | X160: 0 | Y160: 0 | Z160: 0 | AA160: 0 | AB160: 0 | AC160: 0
B161: XX1 | C161: Tlh14 | D161: =IFERROR(VLOOKUP(D80,$A$15:$K$26,3+MATCH($B161,$D$14:$K$14,0),0)*$B80*D$81,0) -> 0 | E161: 0 | F161: 0 | G161: 0 | H161: 0 | I161: 0 | J161: 0 | K161: 0 | L161: 0 | M161: 0 | N161: 0 | O161: 0 | P161: 0 | Q161: 0 | R161: 0 | S161: 0 | T161: 0 | U161: 0 | V161: 0 | W161: 0 | X161: 0 | Y161: 0 | Z161: 0 | AA161: 0 | AB161: 0 | AC161: 0
A162: XX1 | B162: =SUM(D162:AC162) -> 0 | C162: =NPV(FC_Financeiro!$D$2,D162:AC162) -> 0 | D162: =SUM(D148:D161) -> 0 | E162: =SUM(E148:E161) -> 0 | F162: 0 | G162: 0 | H162: 0 | I162: 0 | J162: 0 | K162: 0 | L162: 0 | M162: 0 | N162: 0 | O162: 0 | P162: 0 | Q162: 0 | R162: 0 | S162: 0 | T162: 0 | U162: 0 | V162: 0 | W162: 0 | X162: 0 | Y162: 0 | Z162: 0 | AA162: 0 | AB162: 0 | AC162: 0
A163: =CONCATENATE("Volume Colhido ",$A$11) -> Volume Colhido XX2 | B163: =$A$11 -> XX2 | C163: =C148 -> Tlh01 | D163: =IFERROR(VLOOKUP(D67,$A$15:$K$26,3+MATCH($B163,$D$14:$K$14,0),0)*$B67*D$81,0) -> 0 | E163: 0 | F163: 0 | G163: 0 | H163: 0 | I163: 0 | J163: 0 | K163: 0 | L163: 0 | M163: 0 | N163: 0 | O163: 0 | P163: 0 | Q163: 0 | R163: 0 | S163: 0 | T163: 0 | U163: 0 | V163: 0 | W163: 0 | X163: 0 | Y163: 0 | Z163: 0 | AA163: 0 | AB163: 0 | AC163: 0
B164: =B163 -> XX2 | C164: =C149 -> Tlh02 | D164: =IFERROR(VLOOKUP(D68,$A$15:$K$26,3+MATCH($B164,$D$14:$K$14,0),0)*$B68*D$81,0) -> 0 | E164: 0 | F164: 0 | G164: 0 | H164: 0 | I164: 0 | J164: 0 | K164: 0 | L164: 0 | M164: 0 | N164: 0 | O164: 0 | P164: 0 | Q164: 0 | R164: 0 | S164: 0 | T164: 0 | U164: 0 | V164: 0 | W164: 0 | X164: 0 | Y164: 0 | Z164: 0 | AA164: 0 | AB164: 0 | AC164: 0
B165: XX2 | C165: Tlh03 | D165: =IFERROR(VLOOKUP(D69,$A$15:$K$26,3+MATCH($B165,$D$14:$K$14,0),0)*$B69*D$81,0) -> 0 | E165: 0 | F165: 0 | G165: 0 | H165: 0 | I165: 0 | J165: 0 | K165: 0 | L165: 0 | M165: 0 | N165: 0 | O165: 0 | P165: 0 | Q165: 0 | R165: 0 | S165: 0 | T165: 0 | U165: 0 | V165: 0 | W165: 0 | X165: 0 | Y165: 0 | Z165: 0 | AA165: 0 | AB165: 0 | AC165: 0
B166: XX2 | C166: Tlh04 | D166: =IFERROR(VLOOKUP(D70,$A$15:$K$26,3+MATCH($B166,$D$14:$K$14,0),0)*$B70*D$81,0) -> 0 | E166: 0 | F166: 0 | G166: 0 | H166: 0 | I166: 0 | J166: 0 | K166: 0 | L166: 0 | M166: 0 | N166: 0 | O166: 0 | P166: 0 | Q166: 0 | R166: 0 | S166: 0 | T166: 0 | U166: 0 | V166: 0 | W166: 0 | X166: 0 | Y166: 0 | Z166: 0 | AA166: 0 | AB166: 0 | AC166: 0
B167: XX2 | C167: Tlh05 | D167: =IFERROR(VLOOKUP(D71,$A$15:$K$26,3+MATCH($B167,$D$14:$K$14,0),0)*$B71*D$81,0) -> 0 | E167: 0 | F167: 0 | G167: 0 | H167: 0 | I167: 0 | J167: 0 | K167: 0 | L167: 0 | M167: 0 | N167: 0 | O167: 0 | P167: 0 | Q167: 0 | R167: 0 | S167: 0 | T167: 0 | U167: 0 | V167: 0 | W167: 0 | X167: 0 | Y167: 0 | Z167: 0 | AA167: 0 | AB167: 0 | AC167: 0
B168: XX2 | C168: Tlh06 | D168: =IFERROR(VLOOKUP(D72,$A$15:$K$26,3+MATCH($B168,$D$14:$K$14,0),0)*$B72*D$81,0) -> 0 | E168: 0 | F168: 0 | G168: 0 | H168: 0 | I168: 0 | J168: 0 | K168: 0 | L168: 0 | M168: 0 | N168: 0 | O168: 0 | P168: 0 | Q168: 0 | R168: 0 | S168: 0 | T168: 0 | U168: 0 | V168: 0 | W168: 0 | X168: 0 | Y168: 0 | Z168: 0 | AA168: 0 | AB168: 0 | AC168: 0
B169: XX2 | C169: Tlh07 | D169: =IFERROR(VLOOKUP(D73,$A$15:$K$26,3+MATCH($B169,$D$14:$K$14,0),0)*$B73*D$81,0) -> 0 | E169: 0 | F169: 0 | G169: 0 | H169: 0 | I169: 0 | J169: 0 | K169: 0 | L169: 0 | M169: 0 | N169: 0 | O169: 0 | P169: 0 | Q169: 0 | R169: 0 | S169: 0 | T169: 0 | U169: 0 | V169: 0 | W169: 0 | X169: 0 | Y169: 0 | Z169: 0 | AA169: 0 | AB169: 0 | AC169: 0
B170: XX2 | C170: Tlh08 | D170: =IFERROR(VLOOKUP(D74,$A$15:$K$26,3+MATCH($B170,$D$14:$K$14,0),0)*$B74*D$81,0) -> 0 | E170: 0 | F170: 0 | G170: 0 | H170: 0 | I170: 0 | J170: 0 | K170: 0 | L170: 0 | M170: 0 | N170: 0 | O170: 0 | P170: 0 | Q170: 0 | R170: 0 | S170: 0 | T170: 0 | U170: 0 | V170: 0 | W170: 0 | X170: 0 | Y170: 0 | Z170: 0 | AA170: 0 | AB170: 0 | AC170: 0
B171: XX2 | C171: Tlh09 | D171: =IFERROR(VLOOKUP(D75,$A$15:$K$26,3+MATCH($B171,$D$14:$K$14,0),0)*$B75*D$81,0) -> 0 | E171: 0 | F171: 0 | G171: 0 | H171: 0 | I171: 0 | J171: 0 | K171: 0 | L171: 0 | M171: 0 | N171: 0 | O171: 0 | P171: 0 | Q171: 0 | R171: 0 | S171: 0 | T171: 0 | U171: 0 | V171: 0 | W171: 0 | X171: 0 | Y171: 0 | Z171: 0 | AA171: 0 | AB171: 0 | AC171: 0
B172: XX2 | C172: Tlh10 | D172: =IFERROR(VLOOKUP(D76,$A$15:$K$26,3+MATCH($B172,$D$14:$K$14,0),0)*$B76*D$81,0) -> 0 | E172: 0 | F172: 0 | G172: 0 | H172: 0 | I172: 0 | J172: 0 | K172: 0 | L172: 0 | M172: 0 | N172: 0 | O172: 0 | P172: 0 | Q172: 0 | R172: 0 | S172: 0 | T172: 0 | U172: 0 | V172: 0 | W172: 0 | X172: 0 | Y172: 0 | Z172: 0 | AA172: 0 | AB172: 0 | AC172: 0
B173: XX2 | C173: Tlh11 | D173: =IFERROR(VLOOKUP(D77,$A$15:$K$26,3+MATCH($B173,$D$14:$K$14,0),0)*$B77*D$81,0) -> 0 | E173: 0 | F173: 0 | G173: 0 | H173: 0 | I173: 0 | J173: 0 | K173: 0 | L173: 0 | M173: 0 | N173: 0 | O173: 0 | P173: 0 | Q173: 0 | R173: 0 | S173: 0 | T173: 0 | U173: 0 | V173: 0 | W173: 0 | X173: 0 | Y173: 0 | Z173: 0 | AA173: 0 | AB173: 0 | AC173: 0
B174: XX2 | C174: Tlh12 | D174: =IFERROR(VLOOKUP(D78,$A$15:$K$26,3+MATCH($B174,$D$14:$K$14,0),0)*$B78*D$81,0) -> 0 | E174: 0 | F174: 0 | G174: 0 | H174: 0 | I174: 0 | J174: 0 | K174: 0 | L174: 0 | M174: 0 | N174: 0 | O174: 0 | P174: 0 | Q174: 0 | R174: 0 | S174: 0 | T174: 0 | U174: 0 | V174: 0 | W174: 0 | X174: 0 | Y174: 0 | Z174: 0 | AA174: 0 | AB174: 0 | AC174: 0
B175: XX2 | C175: Tlh13 | D175: =IFERROR(VLOOKUP(D79,$A$15:$K$26,3+MATCH($B175,$D$14:$K$14,0),0)*$B79*D$81,0) -> 0 | E175: 0 | F175: 0 | G175: 0 | H175: 0 | I175: 0 | J175: 0 | K175: 0 | L175: 0 | M175: 0 | N175: 0 | O175: 0 | P175: 0 | Q175: 0 | R175: 0 | S175: 0 | T175: 0 | U175: 0 | V175: 0 | W175: 0 | X175: 0 | Y175: 0 | Z175: 0 | AA175: 0 | AB175: 0 | AC175: 0
B176: XX2 | C176: Tlh14 | D176: =IFERROR(VLOOKUP(D80,$A$15:$K$26,3+MATCH($B176,$D$14:$K$14,0),0)*$B80*D$81,0) -> 0 | E176: 0 | F176: 0 | G176: 0 | H176: 0 | I176: 0 | J176: 0 | K176: 0 | L176: 0 | M176: 0 | N176: 0 | O176: 0 | P176: 0 | Q176: 0 | R176: 0 | S176: 0 | T176: 0 | U176: 0 | V176: 0 | W176: 0 | X176: 0 | Y176: 0 | Z176: 0 | AA176: 0 | AB176: 0 | AC176: 0
A177: =B176 -> XX2 | B177: =SUM(D177:AC177) -> 0 | C177: =NPV(FC_Financeiro!$D$2,D177:AC177) -> 0 | D177: =SUM(D163:D176) -> 0 | E177: =SUM(E163:E176) -> 0 | F177: =SUM(F163:F176) -> 0 | G177: =SUM(G163:G176) -> 0 | H177: =SUM(H163:H176) -> 0 | I177: =SUM(I163:I176) -> 0 | J177: =SUM(J163:J176) -> 0 | K177: =SUM(K163:K176) -> 0 | L177: =SUM(L163:L176) -> 0 | M177: =SUM(M163:M176) -> 0 | N177: =SUM(N163:N176) -> 0 | O177: =SUM(O163:O176) -> 0 | P177: =SUM(P163:P176) -> 0 | Q177: =SUM(Q163:Q176) -> 0 | R177: =SUM(R163:R176) -> 0 | S177: =SUM(S163:S176) -> 0 | T177: =SUM(T163:T176) -> 0 | U177: =SUM(U163:U176) -> 0 | V177: =SUM(V163:V176) -> 0 | W177: =SUM(W163:W176) -> 0 | X177: =SUM(X163:X176) -> 0 | Y177: =SUM(Y163:Y176) -> 0 | Z177: =SUM(Z163:Z176) -> 0 | AA177: =SUM(AA163:AA176) -> 0 | AB177: =SUM(AB163:AB176) -> 0 | AC177: =SUM(AC163:AC176) -> 0
A178: Área Colhida | B178: =A15 -> CR5 | C178: =SUM(D178:AC178) -> 0 | D178: =SUMIF(D$67:D$80,$B178,$B$67:$B$80) -> 0 | E178: 0 | F178: 0 | G178: 0 | H178: 0 | I178: 0 | J178: 0 | K178: 0 | L178: 0 | M178: 0 | N178: =SUMIF(N$67:N$80,$B178,$B$67:$B$80) -> 0 | O178: 0 | P178: 0 | Q178: 0 | R178: 0 | S178: 0 | T178: 0 | U178: 0 | V178: 0 | W178: 0 | X178: =SUMIF(X$67:X$80,$B178,$B$67:$B$80) -> 0 | Y178: 0 | Z178: 0 | AA178: 0 | AB178: 0 | AC178: 0
B179: CR6 | C179: 12000 | D179: 0 | E179: 0 | F179: 0 | G179: 0 | H179: 0 | I179: 0 | J179: 0 | K179: 1000 | L179: 1000 | M179: 1000 | N179: 1000 | O179: 1000 | P179: 1000 | Q179: 1000 | R179: 1000 | S179: 1000 | T179: 1000 | U179: 1000 | V179: 1000 | W179: 0 | X179: 0 | Y179: 0 | Z179: 0 | AA179: 0 | AB179: 0 | AC179: 0
B180: CR7 | C180: 0 | D180: 0 | E180: 0 | F180: 0 | G180: 0 | H180: 0 | I180: 0 | J180: 0 | K180: 0 | L180: 0 | M180: 0 | N180: 0 | O180: 0 | P180: 0 | Q180: 0 | R180: 0 | S180: 0 | T180: 0 | U180: 0 | V180: 0 | W180: 0 | X180: 0 | Y180: 0 | Z180: 0 | AA180: 0 | AB180: 0 | AC180: 0
B181: CR8 | C181: 0
B182: CC5 | C182: 0 | D182: 0 | E182: 0 | F182: 0 | G182: 0 | H182: 0 | I182: 0 | J182: 0 | K182: 0 | L182: 0 | M182: 0 | N182: 0 | O182: 0 | P182: 0 | Q182: 0 | R182: 0 | S182: 0 | T182: 0 | U182: 0 | V182: 0 | W182: 0 | X182: 0 | Y182: 0 | Z182: 0 | AA182: 0 | AB182: 0 | AC182: 0
B183: CC6 | C183: 12000 | D183: 0 | E183: 0 | F183: 0 | G183: 0 | H183: 0 | I183: 0 | J183: 0 | K183: 1000 | L183: 1000 | M183: 1000 | N183: 1000 | O183: 1000 | P183: 1000 | Q183: 1000 | R183: 1000 | S183: 1000 | T183: 1000 | U183: 1000 | V183: 1000 | W183: 0 | X183: 0 | Y183: 0 | Z183: 0 | AA183: 0 | AB183: 0 | AC183: 0
B184: CC7 | C184: 0 | D184: 0 | E184: 0 | F184: 0 | G184: 0 | H184: 0 | I184: 0 | J184: 0 | K184: 0 | L184: 0 | M184: 0 | N184: 0 | O184: 0 | P184: 0 | Q184: 0 | R184: 0 | S184: 0 | T184: 0 | U184: 0 | V184: 0 | W184: 0 | X184: 0 | Y184: 0 | Z184: 0 | AA184: 0 | AB184: 0 | AC184: 0
B185: CC8 | C185: 0 | D185: 0 | E185: 0 | F185: 0 | G185: 0 | H185: 0 | I185: 0 | J185: 0 | K185: 0 | L185: 0 | M185: 0 | N185: 0 | O185: 0 | P185: 0 | Q185: 0 | R185: 0 | S185: 0 | T185: 0 | U185: 0 | V185: 0 | W185: 0 | X185: 0 | Y185: 0 | Z185: 0 | AA185: 0 | AB185: 0 | AC185: 0
B186: CF5 | C186: 0 | D186: 0 | E186: 0 | F186: 0 | G186: 0 | H186: 0 | I186: 0 | J186: 0 | K186: 0 | L186: 0 | M186: 0 | N186: 0 | O186: 0 | P186: 0 | Q186: 0 | R186: 0 | S186: 0 | T186: 0 | U186: 0 | V186: 0 | W186: 0 | X186: 0 | Y186: 0 | Z186: 0 | AA186: 0 | AB186: 0 | AC186: 0
B187: CF6 | C187: 12000 | D187: 0 | E187: 0 | F187: 0 | G187: 0 | H187: 0 | I187: 0 | J187: 0 | K187: 0 | L187: 0 | M187: 0 | N187: 0 | O187: 0 | P187: 0 | Q187: 0 | R187: 0 | S187: 0 | T187: 0 | U187: 0 | V187: 0 | W187: 2000 | X187: 2000 | Y187: 2000 | Z187: 2000 | AA187: 2000 | AB187: 2000 | AC187: 0
B188: CF7 | C188: 0 | D188: 0 | E188: 0 | F188: 0 | G188: 0 | H188: 0 | I188: 0 | J188: 0 | K188: 0 | L188: 0 | M188: 0 | N188: 0 | O188: 0 | P188: 0 | Q188: 0 | R188: 0 | S188: 0 | T188: 0 | U188: 0 | V188: 0 | W188: 0 | X188: 0 | Y188: 0 | Z188: 0 | AA188: 0 | AB188: 0 | AC188: 0
B189: CF8 | C189: 0 | D189: 0 | E189: 0 | F189: 0 | G189: 0 | H189: 0 | I189: 0 | J189: 0 | K189: 0 | L189: 0 | M189: 0 | N189: 0 | O189: 0 | P189: 0 | Q189: 0 | R189: 0 | S189: 0 | T189: 0 | U189: 0 | V189: 0 | W189: 0 | X189: 0 | Y189: 0 | Z189: 0 | AA189: 0 | AB189: 0 | AC189: 0
A190: Área Colhida (ha) | B190: =SUM(D190:AC190) -> 36000 | D190: =SUM(D178:D188) -> 0 | E190: =SUM(E178:E188) -> 0 | F190: 0 | G190: 0 | H190: 0 | I190: 0 | J190: 0 | K190: =SUM(K178:K188) -> 2000 | L190: 2000 | M190: 2000 | N190: 2000 | O190: 2000 | P190: 2000 | Q190: 2000 | R190: 2000 | S190: 2000 | T190: 2000 | U190: 2000 | V190: 2000 | W190: 2000 | X190: 2000 | Y190: 2000 | Z190: 2000 | AA190: 2000 | AB190: 2000 | AC190: 0
A191: Produtividade média (m3/ha) | B191: =SUM(B132,B147,B162,B177)/B190 -> 259.5251167 | D191: =IF(D190>0,SUM(D132,D147,D162,D177)/D190,0) -> 0 | E191: =IF(E190>0,SUM(E132,E147,E162,E177)/E190,0) -> 0 | F191: 0 | G191: 0 | H191: 0 | I191: 0 | J191: 0 | K191: 241.045 | L191: 241.045 | M191: 241.045 | N191: 241.045 | O191: 255.5077 | P191: 255.5077 | Q191: 255.5077 | R191: 255.5077 | S191: 255.5077 | T191: 269.9704 | U191: 269.9704 | V191: 269.9704 | W191: 269.9704 | X191: 269.9704 | Y191: 269.9704 | Z191: 269.9704 | AA191: 269.9704 | AB191: 269.9704 | AC191: 0
A192: Preço (R$/m3) | B192: =A132 -> CEL | C192: =VLOOKUP(B192,$A$8:$B$11,2,0) -> 90 | D192: =$C192*FC_Financeiro!D16 -> 94.95 | E192: =$C192*FC_Financeiro!E16 -> 100.17225 | F192: =$C192*FC_Financeiro!F16 -> 104.17914 | G192: =$C192*FC_Financeiro!G16 -> 108.3463056 | H192: =$C192*FC_Financeiro!H16 -> 112.6801578 | I192: =$C192*FC_Financeiro!I16 -> 117.1873641 | J192: =$C192*FC_Financeiro!J16 -> 121.8748587 | K192: =$C192*FC_Financeiro!K16 -> 126.7498531 | L192: =$C192*FC_Financeiro!L16 -> 131.8198472 | M192: =$C192*FC_Financeiro!M16 -> 137.0926411 | N192: =$C192*FC_Financeiro!N16 -> 142.5763467 | O192: =$C192*FC_Financeiro!O16 -> 148.2794006 | P192: =$C192*FC_Financeiro!P16 -> 154.2105766 | Q192: =$C192*FC_Financeiro!Q16 -> 160.3789997 | R192: =$C192*FC_Financeiro!R16 -> 166.7941596 | S192: =$C192*FC_Financeiro!S16 -> 173.465926 | T192: =$C192*FC_Financeiro!T16 -> 180.4045631 | U192: =$C192*FC_Financeiro!U16 -> 187.6207456 | V192: =$C192*FC_Financeiro!V16 -> 195.1255754 | W192: =$C192*FC_Financeiro!W16 -> 202.9305984 | X192: =$C192*FC_Financeiro!X16 -> 211.0478224 | Y192: =$C192*FC_Financeiro!Y16 -> 219.4897353 | Z192: =$C192*FC_Financeiro!Z16 -> 228.2693247 | AA192: =$C192*FC_Financeiro!AA16 -> 237.4000977 | AB192: =$C192*FC_Financeiro!AB16 -> 246.8961016 | AC192: =$C192*FC_Financeiro!AC16 -> 256.7719456
B193: =A147 -> BIO | C193: =VLOOKUP(B193,$A$8:$B$11,2,0) -> 0 | D193: =$C193*FC_Financeiro!D16 -> 0 | E193: =$C193*FC_Financeiro!E16 -> 0 | F193: =$C193*FC_Financeiro!F16 -> 0 | G193: =$C193*FC_Financeiro!G16 -> 0 | H193: =$C193*FC_Financeiro!H16 -> 0 | I193: =$C193*FC_Financeiro!I16 -> 0 | J193: =$C193*FC_Financeiro!J16 -> 0 | K193: =$C193*FC_Financeiro!K16 -> 0 | L193: =$C193*FC_Financeiro!L16 -> 0 | M193: =$C193*FC_Financeiro!M16 -> 0 | N193: =$C193*FC_Financeiro!N16 -> 0 | O193: =$C193*FC_Financeiro!O16 -> 0 | P193: =$C193*FC_Financeiro!P16 -> 0 | Q193: =$C193*FC_Financeiro!Q16 -> 0 | R193: =$C193*FC_Financeiro!R16 -> 0 | S193: =$C193*FC_Financeiro!S16 -> 0 | T193: =$C193*FC_Financeiro!T16 -> 0 | U193: =$C193*FC_Financeiro!U16 -> 0 | V193: =$C193*FC_Financeiro!V16 -> 0 | W193: =$C193*FC_Financeiro!W16 -> 0 | X193: =$C193*FC_Financeiro!X16 -> 0 | Y193: =$C193*FC_Financeiro!Y16 -> 0 | Z193: =$C193*FC_Financeiro!Z16 -> 0 | AA193: =$C193*FC_Financeiro!AA16 -> 0 | AB193: =$C193*FC_Financeiro!AB16 -> 0 | AC193: =$C193*FC_Financeiro!AC16 -> 0
B194: =A162 -> XX1 | C194: 0 | D194: =$C194*FC_Financeiro!D17 -> 0 | E194: =$C194*FC_Financeiro!E17 -> 0 | F194: =$C194*FC_Financeiro!F17 -> 0 | G194: =$C194*FC_Financeiro!G17 -> 0 | H194: =$C194*FC_Financeiro!H17 -> 0 | I194: =$C194*FC_Financeiro!I17 -> 0 | J194: =$C194*FC_Financeiro!J17 -> 0 | K194: =$C194*FC_Financeiro!K17 -> 0 | L194: =$C194*FC_Financeiro!L17 -> 0 | M194: =$C194*FC_Financeiro!M17 -> 0 | N194: =$C194*FC_Financeiro!N17 -> 0 | O194: =$C194*FC_Financeiro!O17 -> 0 | P194: =$C194*FC_Financeiro!P17 -> 0 | Q194: =$C194*FC_Financeiro!Q17 -> 0 | R194: =$C194*FC_Financeiro!R17 -> 0 | S194: =$C194*FC_Financeiro!S17 -> 0 | T194: =$C194*FC_Financeiro!T17 -> 0 | U194: =$C194*FC_Financeiro!U17 -> 0 | V194: =$C194*FC_Financeiro!V17 -> 0 | W194: =$C194*FC_Financeiro!W17 -> 0 | X194: =$C194*FC_Financeiro!X17 -> 0 | Y194: =$C194*FC_Financeiro!Y17 -> 0 | Z194: =$C194*FC_Financeiro!Z17 -> 0 | AA194: =$C194*FC_Financeiro!AA17 -> 0 | AB194: =$C194*FC_Financeiro!AB17 -> 0 | AC194: =$C194*FC_Financeiro!AC17 -> 0
B195: =A177 -> XX2 | C195: 0 | D195: =$C195*FC_Financeiro!D18 -> 0 | E195: =$C195*FC_Financeiro!E18 -> 0 | F195: =$C195*FC_Financeiro!F18 -> 0 | G195: =$C195*FC_Financeiro!G18 -> 0 | H195: =$C195*FC_Financeiro!H18 -> 0 | I195: =$C195*FC_Financeiro!I18 -> 0 | J195: =$C195*FC_Financeiro!J18 -> 0 | K195: =$C195*FC_Financeiro!K18 -> 0 | L195: =$C195*FC_Financeiro!L18 -> 0 | M195: =$C195*FC_Financeiro!M18 -> 0 | N195: =$C195*FC_Financeiro!N18 -> 0 | O195: =$C195*FC_Financeiro!O18 -> 0 | P195: =$C195*FC_Financeiro!P18 -> 0 | Q195: =$C195*FC_Financeiro!Q18 -> 0 | R195: =$C195*FC_Financeiro!R18 -> 0 | S195: =$C195*FC_Financeiro!S18 -> 0 | T195: =$C195*FC_Financeiro!T18 -> 0 | U195: =$C195*FC_Financeiro!U18 -> 0 | V195: =$C195*FC_Financeiro!V18 -> 0 | W195: =$C195*FC_Financeiro!W18 -> 0 | X195: =$C195*FC_Financeiro!X18 -> 0 | Y195: =$C195*FC_Financeiro!Y18 -> 0 | Z195: =$C195*FC_Financeiro!Z18 -> 0 | AA195: =$C195*FC_Financeiro!AA18 -> 0 | AB195: =$C195*FC_Financeiro!AB18 -> 0 | AC195: =$C195*FC_Financeiro!AC18 -> 0
A196: Receitas (mil R$) | B196: =B192 -> CEL | D196: =D192*D$132/1000 -> 0 | E196: =E192*E$132/1000 -> 0 | F196: 0 | G196: 0 | H196: 0 | I196: 0 | J196: 0 | K196: 61104.83666 | L196: 63549.03012 | M196: 66090.99133 | N196: =N192*N$132/1000 -> 68734.63098 | O196: 75773.05719 | P196: 78803.97948 | Q196: 81956.13866 | R196: 85234.38421 | S196: 88643.75958 | T196: 97407.78411 | U196: 101304.0955 | V196: 105356.2593 | W196: 109570.5097 | X196: 113953.33 | Y196: 118511.4633 | Z196: 123251.9218 | AA196: 128181.9987 | AB196: 133309.2786 | AC196: 0
B197: =B193 -> BIO | D197: =D193*D$147/1000 -> 0 | E197: =E193*E$147/1000 -> 0 | F197: 0 | G197: 0 | H197: 0 | I197: 0 | J197: 0 | K197: 0 | L197: 0 | M197: 0 | N197: =N193*N$147/1000 -> 0 | O197: 0 | P197: 0 | Q197: 0 | R197: 0 | S197: 0 | T197: 0 | U197: 0 | V197: 0 | W197: 0 | X197: 0 | Y197: 0 | Z197: 0 | AA197: 0 | AB197: 0 | AC197: 0
B198: =B194 -> XX1 | D198: =D194*D$162/1000 -> 0 | E198: =E194*E$162/1000 -> 0 | F198: 0 | G198: 0 | H198: 0 | I198: 0 | J198: 0 | K198: 0 | L198: 0 | M198: 0 | N198: =N194*N$162/1000 -> 0 | O198: 0 | P198: 0 | Q198: 0 | R198: 0 | S198: 0 | T198: 0 | U198: 0 | V198: 0 | W198: 0 | X198: 0 | Y198: 0 | Z198: 0 | AA198: 0 | AB198: 0 | AC198: 0
B199: =B195 -> XX2 | D199: =D195*D$177/1000 -> 0 | E199: =E195*E$177/1000 -> 0 | F199: 0 | G199: 0 | H199: 0 | I199: 0 | J199: 0 | K199: 0 | L199: 0 | M199: 0 | N199: =N195*N$177/1000 -> 0 | O199: 0 | P199: 0 | Q199: 0 | R199: 0 | S199: 0 | T199: 0 | U199: 0 | V199: 0 | W199: 0 | X199: 0 | Y199: 0 | Z199: 0 | AA199: 0 | AB199: 0 | AC199: 0
A200: Receita (mil R$) | B200: =SUM(D200:AC200) -> 1700737.449 | C200: =NPV(FC_Financeiro!$D$2,D200:AC200) -> 353321.7455 | D200: =SUM(D196:D199) -> 0 | E200: =SUM(E196:E199) -> 0 | F200: 0 | G200: 0 | H200: 0 | I200: 0 | J200: 0 | K200: 61104.83666 | L200: 63549.03012 | M200: 66090.99133 | N200: 68734.63098 | O200: 75773.05719 | P200: 78803.97948 | Q200: 81956.13866 | R200: 85234.38421 | S200: 88643.75958 | T200: 97407.78411 | U200: 101304.0955 | V200: 105356.2593 | W200: 109570.5097 | X200: 113953.33 | Y200: 118511.4633 | Z200: 123251.9218 | AA200: 128181.9987 | AB200: 133309.2786 | AC200: 0
A201: Compra da Terra (mil R$) | B201: =SUM(D201:AC201) -> -114213.5793 | C201: =NPV(FC_Financeiro!$D$2,D201:AC201) -> -81513.79141 | D201: =D$85*(SUMPRODUCT($F$36:$F$38,$H$36:$H$38))*FC_Financeiro!D$16*FC_Financeiro!D$17/-1000 -> -16141.5 | E201: =E$85*(SUMPRODUCT($F$36:$F$38,$H$36:$H$38))*FC_Financeiro!E$16*FC_Financeiro!E$17/-1000 -> -17369.86815 | F201: =F$85*(SUMPRODUCT($F$36:$F$38,$H$36:$H$38))*FC_Financeiro!F$16*FC_Financeiro!F$17/-1000 -> -18425.95613 | G201: =G$85*(SUMPRODUCT($F$36:$F$38,$H$36:$H$38))*FC_Financeiro!G$16*FC_Financeiro!G$17/-1000 -> -19546.25427 | H201: =H$85*(SUMPRODUCT($F$36:$F$38,$H$36:$H$38))*FC_Financeiro!H$16*FC_Financeiro!H$17/-1000 -> -20734.66653 | I201: =I$85*(SUMPRODUCT($F$36:$F$38,$H$36:$H$38))*FC_Financeiro!I$16*FC_Financeiro!I$17/-1000 -> -21995.33425 | J201: =J$85*(SUMPRODUCT($F$36:$F$38,$H$36:$H$38))*FC_Financeiro!J$16*FC_Financeiro!J$17/-1000 -> 0 | K201: =K$85*(SUMPRODUCT($F$36:$F$38,$H$36:$H$38))*FC_Financeiro!K$16*FC_Financeiro!K$17/-1000 -> 0 | L201: =L$85*(SUMPRODUCT($F$36:$F$38,$H$36:$H$38))*FC_Financeiro!L$16*FC_Financeiro!L$17/-1000 -> 0 | M201: =M$85*(SUMPRODUCT($F$36:$F$38,$H$36:$H$38))*FC_Financeiro!M$16*FC_Financeiro!M$17/-1000 -> 0 | N201: =N$85*(SUMPRODUCT($F$36:$F$38,$H$36:$H$38))*FC_Financeiro!N$16*FC_Financeiro!N$17/-1000 -> 0 | O201: =O$85*(SUMPRODUCT($F$36:$F$38,$H$36:$H$38))*FC_Financeiro!O$16*FC_Financeiro!O$17/-1000 -> 0 | P201: =P$85*(SUMPRODUCT($F$36:$F$38,$H$36:$H$38))*FC_Financeiro!P$16*FC_Financeiro!P$17/-1000 -> 0 | Q201: =Q$85*(SUMPRODUCT($F$36:$F$38,$H$36:$H$38))*FC_Financeiro!Q$16*FC_Financeiro!Q$17/-1000 -> 0 | R201: =R$85*(SUMPRODUCT($F$36:$F$38,$H$36:$H$38))*FC_Financeiro!R$16*FC_Financeiro!R$17/-1000 -> 0 | S201: =S$85*(SUMPRODUCT($F$36:$F$38,$H$36:$H$38))*FC_Financeiro!S$16*FC_Financeiro!S$17/-1000 -> 0 | T201: =T$85*(SUMPRODUCT($F$36:$F$38,$H$36:$H$38))*FC_Financeiro!T$16*FC_Financeiro!T$17/-1000 -> 0 | U201: =U$85*(SUMPRODUCT($F$36:$F$38,$H$36:$H$38))*FC_Financeiro!U$16*FC_Financeiro!U$17/-1000 -> 0 | V201: =V$85*(SUMPRODUCT($F$36:$F$38,$H$36:$H$38))*FC_Financeiro!V$16*FC_Financeiro!V$17/-1000 -> 0 | W201: =W$85*(SUMPRODUCT($F$36:$F$38,$H$36:$H$38))*FC_Financeiro!W$16*FC_Financeiro!W$17/-1000 -> 0 | X201: =X$85*(SUMPRODUCT($F$36:$F$38,$H$36:$H$38))*FC_Financeiro!X$16*FC_Financeiro!X$17/-1000 -> 0 | Y201: =Y$85*(SUMPRODUCT($F$36:$F$38,$H$36:$H$38))*FC_Financeiro!Y$16*FC_Financeiro!Y$17/-1000 -> 0 | Z201: =Z$85*(SUMPRODUCT($F$36:$F$38,$H$36:$H$38))*FC_Financeiro!Z$16*FC_Financeiro!Z$17/-1000 -> 0 | AA201: =AA$85*(SUMPRODUCT($F$36:$F$38,$H$36:$H$38))*FC_Financeiro!AA$16*FC_Financeiro!AA$17/-1000 -> 0 | AB201: =AB$85*(SUMPRODUCT($F$36:$F$38,$H$36:$H$38))*FC_Financeiro!AB$16*FC_Financeiro!AB$17/-1000 -> 0 | AC201: =AC$85*(SUMPRODUCT($F$36:$F$38,$H$36:$H$38))*FC_Financeiro!AC$16*FC_Financeiro!AC$17/-1000 -> 0
A202: Venda Da Terra (mil R$) | B202: =SUM(D202:AC202) -> 372625.2816 | C202: =NPV(FC_Financeiro!$D$2,D202:AC202) -> 39552.48453 | D202: =D$89*(SUMPRODUCT($F$36:$F$38,$H$36:$H$38))*FC_Financeiro!D$16*FC_Financeiro!D$17/1000 -> 0 | E202: =E$89*(SUMPRODUCT($F$36:$F$38,$H$36:$H$38))*FC_Financeiro!E$16*FC_Financeiro!E$17/1000 -> 0 | F202: =F$89*(SUMPRODUCT($F$36:$F$38,$H$36:$H$38))*FC_Financeiro!F$16*FC_Financeiro!F$17/1000 -> 0 | G202: =G$89*(SUMPRODUCT($F$36:$F$38,$H$36:$H$38))*FC_Financeiro!G$16*FC_Financeiro!G$17/1000 -> 0 | H202: =H$89*(SUMPRODUCT($F$36:$F$38,$H$36:$H$38))*FC_Financeiro!H$16*FC_Financeiro!H$17/1000 -> 0 | I202: =I$89*(SUMPRODUCT($F$36:$F$38,$H$36:$H$38))*FC_Financeiro!I$16*FC_Financeiro!I$17/1000 -> 0 | J202: =J$89*(SUMPRODUCT($F$36:$F$38,$H$36:$H$38))*FC_Financeiro!J$16*FC_Financeiro!J$17/1000 -> 0 | K202: =K$89*(SUMPRODUCT($F$36:$F$38,$H$36:$H$38))*FC_Financeiro!K$16*FC_Financeiro!K$17/1000 -> 0 | L202: =L$89*(SUMPRODUCT($F$36:$F$38,$H$36:$H$38))*FC_Financeiro!L$16*FC_Financeiro!L$17/1000 -> 0 | M202: =M$89*(SUMPRODUCT($F$36:$F$38,$H$36:$H$38))*FC_Financeiro!M$16*FC_Financeiro!M$17/1000 -> 0 | N202: =N$89*(SUMPRODUCT($F$36:$F$38,$H$36:$H$38))*FC_Financeiro!N$16*FC_Financeiro!N$17/1000 -> 0 | O202: =O$89*(SUMPRODUCT($F$36:$F$38,$H$36:$H$38))*FC_Financeiro!O$16*FC_Financeiro!O$17/1000 -> 0 | P202: =P$89*(SUMPRODUCT($F$36:$F$38,$H$36:$H$38))*FC_Financeiro!P$16*FC_Financeiro!P$17/1000 -> 0 | Q202: =Q$89*(SUMPRODUCT($F$36:$F$38,$H$36:$H$38))*FC_Financeiro!Q$16*FC_Financeiro!Q$17/1000 -> 0 | R202: =R$89*(SUMPRODUCT($F$36:$F$38,$H$36:$H$38))*FC_Financeiro!R$16*FC_Financeiro!R$17/1000 -> 0 | S202: =S$89*(SUMPRODUCT($F$36:$F$38,$H$36:$H$38))*FC_Financeiro!S$16*FC_Financeiro!S$17/1000 -> 0 | T202: =T$89*(SUMPRODUCT($F$36:$F$38,$H$36:$H$38))*FC_Financeiro!T$16*FC_Financeiro!T$17/1000 -> 0 | U202: =U$89*(SUMPRODUCT($F$36:$F$38,$H$36:$H$38))*FC_Financeiro!U$16*FC_Financeiro!U$17/1000 -> 0 | V202: =V$89*(SUMPRODUCT($F$36:$F$38,$H$36:$H$38))*FC_Financeiro!V$16*FC_Financeiro!V$17/1000 -> 0 | W202: =W$89*(SUMPRODUCT($F$36:$F$38,$H$36:$H$38))*FC_Financeiro!W$16*FC_Financeiro!W$17/1000 -> 0 | X202: =X$89*(SUMPRODUCT($F$36:$F$38,$H$36:$H$38))*FC_Financeiro!X$16*FC_Financeiro!X$17/1000 -> 53313.01355 | Y202: =Y$89*(SUMPRODUCT($F$36:$F$38,$H$36:$H$38))*FC_Financeiro!Y$16*FC_Financeiro!Y$17/1000 -> 56554.44478 | Z202: =Z$89*(SUMPRODUCT($F$36:$F$38,$H$36:$H$38))*FC_Financeiro!Z$16*FC_Financeiro!Z$17/1000 -> 59992.95502 | AA202: =AA$89*(SUMPRODUCT($F$36:$F$38,$H$36:$H$38))*FC_Financeiro!AA$16*FC_Financeiro!AA$17/1000 -> 63640.52668 | AB202: =AB$89*(SUMPRODUCT($F$36:$F$38,$H$36:$H$38))*FC_Financeiro!AB$16*FC_Financeiro!AB$17/1000 -> 67509.87071 | AC202: =AC$89*(SUMPRODUCT($F$36:$F$38,$H$36:$H$38))*FC_Financeiro!AC$16*FC_Financeiro!AC$17/1000 -> 71614.47085
A203: Valor da Terra (mil R$) | D203: =D$93*(SUMPRODUCT($F$36:$F$38,$H$36:$H$38))*FC_Financeiro!D$16*FC_Financeiro!D$17/1000 -> 16141.5 | E203: =E$93*(SUMPRODUCT($F$36:$F$38,$H$36:$H$38))*FC_Financeiro!E$16*FC_Financeiro!E$17/1000 -> 34739.7363 | F203: =F$93*(SUMPRODUCT($F$36:$F$38,$H$36:$H$38))*FC_Financeiro!F$16*FC_Financeiro!F$17/1000 -> 55277.8684 | G203: =G$93*(SUMPRODUCT($F$36:$F$38,$H$36:$H$38))*FC_Financeiro!G$16*FC_Financeiro!G$17/1000 -> 78185.01707 | H203: =H$93*(SUMPRODUCT($F$36:$F$38,$H$36:$H$38))*FC_Financeiro!H$16*FC_Financeiro!H$17/1000 -> 103673.3326 | I203: =I$93*(SUMPRODUCT($F$36:$F$38,$H$36:$H$38))*FC_Financeiro!I$16*FC_Financeiro!I$17/1000 -> 131972.0055 | J203: =J$93*(SUMPRODUCT($F$36:$F$38,$H$36:$H$38))*FC_Financeiro!J$16*FC_Financeiro!J$17/1000 -> 139995.9034 | K203: =K$93*(SUMPRODUCT($F$36:$F$38,$H$36:$H$38))*FC_Financeiro!K$16*FC_Financeiro!K$17/1000 -> 148507.6544 | L203: =L$93*(SUMPRODUCT($F$36:$F$38,$H$36:$H$38))*FC_Financeiro!L$16*FC_Financeiro!L$17/1000 -> 157536.9198 | M203: =M$93*(SUMPRODUCT($F$36:$F$38,$H$36:$H$38))*FC_Financeiro!M$16*FC_Financeiro!M$17/1000 -> 167115.1645 | N203: =N$93*(SUMPRODUCT($F$36:$F$38,$H$36:$H$38))*FC_Financeiro!N$16*FC_Financeiro!N$17/1000 -> 177275.7665 | O203: =O$93*(SUMPRODUCT($F$36:$F$38,$H$36:$H$38))*FC_Financeiro!O$16*FC_Financeiro!O$17/1000 -> 188054.1331 | P203: =P$93*(SUMPRODUCT($F$36:$F$38,$H$36:$H$38))*FC_Financeiro!P$16*FC_Financeiro!P$17/1000 -> 199487.8244 | Q203: =Q$93*(SUMPRODUCT($F$36:$F$38,$H$36:$H$38))*FC_Financeiro!Q$16*FC_Financeiro!Q$17/1000 -> 211616.6841 | R203: =R$93*(SUMPRODUCT($F$36:$F$38,$H$36:$H$38))*FC_Financeiro!R$16*FC_Financeiro!R$17/1000 -> 224482.9785 | S203: =S$93*(SUMPRODUCT($F$36:$F$38,$H$36:$H$38))*FC_Financeiro!S$16*FC_Financeiro!S$17/1000 -> 238131.5436 | T203: =T$93*(SUMPRODUCT($F$36:$F$38,$H$36:$H$38))*FC_Financeiro!T$16*FC_Financeiro!T$17/1000 -> 252609.9414 | U203: =U$93*(SUMPRODUCT($F$36:$F$38,$H$36:$H$38))*FC_Financeiro!U$16*FC_Financeiro!U$17/1000 -> 267968.6259 | V203: =V$93*(SUMPRODUCT($F$36:$F$38,$H$36:$H$38))*FC_Financeiro!V$16*FC_Financeiro!V$17/1000 -> 284261.1183 | W203: =W$93*(SUMPRODUCT($F$36:$F$38,$H$36:$H$38))*FC_Financeiro!W$16*FC_Financeiro!W$17/1000 -> 301544.1943 | X203: =X$93*(SUMPRODUCT($F$36:$F$38,$H$36:$H$38))*FC_Financeiro!X$16*FC_Financeiro!X$17/1000 -> 266565.0678 | Y203: =Y$93*(SUMPRODUCT($F$36:$F$38,$H$36:$H$38))*FC_Financeiro!Y$16*FC_Financeiro!Y$17/1000 -> 226217.7791 | Z203: =Z$93*(SUMPRODUCT($F$36:$F$38,$H$36:$H$38))*FC_Financeiro!Z$16*FC_Financeiro!Z$17/1000 -> 179978.8651 | AA203: =AA$93*(SUMPRODUCT($F$36:$F$38,$H$36:$H$38))*FC_Financeiro!AA$16*FC_Financeiro!AA$17/1000 -> 127281.0534 | AB203: =AB$93*(SUMPRODUCT($F$36:$F$38,$H$36:$H$38))*FC_Financeiro!AB$16*FC_Financeiro!AB$17/1000 -> 67509.87071 | AC203: =AC$93*(SUMPRODUCT($F$36:$F$38,$H$36:$H$38))*FC_Financeiro!AC$16*FC_Financeiro!AC$17/1000 -> 0
A204: Investim. Máquinas (mil R$) | D204: =D113*$H$31 -> 0 | E204: -267.126 | F204: -312.53742 | G204: -335.8735474 | H204: -360.576505 | I204: -386.7183017 | J204: -414.3745196 | K204: -346.4495983 | L204: -360.3075823 | M204: -374.7198856 | N204: -389.708681 | O204: -405.2970282 | P204: -421.5089094 | Q204: -438.3692657 | R204: -455.9040364 | S204: -474.1401978 | T204: -493.1058057 | U204: -512.830038 | V204: -533.3432395 | W204: -148.8157722 | X204: -84.41912895 | Y204: -65.84692058 | Z204: -45.65386494 | AA204: -23.74000977 | AB204: 0 | AC204: 0
A205: Arrendamento (mil R$) | B205: =SUM(D205:AC205) -> 0 | C205: =NPV(FC_Financeiro!$D$2,D205:AC205) -> 0 | D205: =D95*SUMPRODUCT($G$36:$G$38,$H$36:$H$38)*FC_Financeiro!D$16*FC_Financeiro!D$17/-1000 -> 0 | E205: =E95*SUMPRODUCT($G$36:$G$38,$H$36:$H$38)*FC_Financeiro!E$16*FC_Financeiro!E$17/-1000 -> 0 | F205: =F95*SUMPRODUCT($G$36:$G$38,$H$36:$H$38)*FC_Financeiro!F$16*FC_Financeiro!F$17/-1000 -> 0 | G205: =G95*SUMPRODUCT($G$36:$G$38,$H$36:$H$38)*FC_Financeiro!G$16*FC_Financeiro!G$17/-1000 -> 0 | H205: =H95*SUMPRODUCT($G$36:$G$38,$H$36:$H$38)*FC_Financeiro!H$16*FC_Financeiro!H$17/-1000 -> 0 | I205: =I95*SUMPRODUCT($G$36:$G$38,$H$36:$H$38)*FC_Financeiro!I$16*FC_Financeiro!I$17/-1000 -> 0 | J205: =J95*SUMPRODUCT($G$36:$G$38,$H$36:$H$38)*FC_Financeiro!J$16*FC_Financeiro!J$17/-1000 -> 0 | K205: =K95*SUMPRODUCT($G$36:$G$38,$H$36:$H$38)*FC_Financeiro!K$16*FC_Financeiro!K$17/-1000 -> 0 | L205: =L95*SUMPRODUCT($G$36:$G$38,$H$36:$H$38)*FC_Financeiro!L$16*FC_Financeiro!L$17/-1000 -> 0 | M205: =M95*SUMPRODUCT($G$36:$G$38,$H$36:$H$38)*FC_Financeiro!M$16*FC_Financeiro!M$17/-1000 -> 0 | N205: =N95*SUMPRODUCT($G$36:$G$38,$H$36:$H$38)*FC_Financeiro!N$16*FC_Financeiro!N$17/-1000 -> 0 | O205: =O95*SUMPRODUCT($G$36:$G$38,$H$36:$H$38)*FC_Financeiro!O$16*FC_Financeiro!O$17/-1000 -> 0 | P205: =P95*SUMPRODUCT($G$36:$G$38,$H$36:$H$38)*FC_Financeiro!P$16*FC_Financeiro!P$17/-1000 -> 0 | Q205: =Q95*SUMPRODUCT($G$36:$G$38,$H$36:$H$38)*FC_Financeiro!Q$16*FC_Financeiro!Q$17/-1000 -> 0 | R205: =R95*SUMPRODUCT($G$36:$G$38,$H$36:$H$38)*FC_Financeiro!R$16*FC_Financeiro!R$17/-1000 -> 0 | S205: =S95*SUMPRODUCT($G$36:$G$38,$H$36:$H$38)*FC_Financeiro!S$16*FC_Financeiro!S$17/-1000 -> 0 | T205: =T95*SUMPRODUCT($G$36:$G$38,$H$36:$H$38)*FC_Financeiro!T$16*FC_Financeiro!T$17/-1000 -> 0 | U205: =U95*SUMPRODUCT($G$36:$G$38,$H$36:$H$38)*FC_Financeiro!U$16*FC_Financeiro!U$17/-1000 -> 0 | V205: =V95*SUMPRODUCT($G$36:$G$38,$H$36:$H$38)*FC_Financeiro!V$16*FC_Financeiro!V$17/-1000 -> 0 | W205: =W95*SUMPRODUCT($G$36:$G$38,$H$36:$H$38)*FC_Financeiro!W$16*FC_Financeiro!W$17/-1000 -> 0 | X205: =X95*SUMPRODUCT($G$36:$G$38,$H$36:$H$38)*FC_Financeiro!X$16*FC_Financeiro!X$17/-1000 -> 0 | Y205: =Y95*SUMPRODUCT($G$36:$G$38,$H$36:$H$38)*FC_Financeiro!Y$16*FC_Financeiro!Y$17/-1000 -> 0 | Z205: =Z95*SUMPRODUCT($G$36:$G$38,$H$36:$H$38)*FC_Financeiro!Z$16*FC_Financeiro!Z$17/-1000 -> 0 | AA205: =AA95*SUMPRODUCT($G$36:$G$38,$H$36:$H$38)*FC_Financeiro!AA$16*FC_Financeiro!AA$17/-1000 -> 0 | AB205: =AB95*SUMPRODUCT($G$36:$G$38,$H$36:$H$38)*FC_Financeiro!AB$16*FC_Financeiro!AB$17/-1000 -> 0 | AC205: =AC95*SUMPRODUCT($G$36:$G$38,$H$36:$H$38)*FC_Financeiro!AC$16*FC_Financeiro!AC$17/-1000 -> 0
A206: Gestão Florestal(mil R$) | B206: =SUM(D206:AC206) -> -42274.19776 | C206: =NPV(FC_Financeiro!$D$2,D206:AC206) -> -12599.51629 | D206: =D$96*$H$30*FC_Financeiro!D$16/-1000 -> -211 | E206: =E$96*$H$30*FC_Financeiro!E$16/-1000 -> -445.21 | F206: =F$96*$H$30*FC_Financeiro!F$16/-1000 -> -694.5276 | G206: =G$96*$H$30*FC_Financeiro!G$16/-1000 -> -963.078272 | H206: =H$96*$H$30*FC_Financeiro!H$16/-1000 -> -1252.001754 | I206: =I$96*$H$30*FC_Financeiro!I$16/-1000 -> -1562.498188 | J206: =J$96*$H$30*FC_Financeiro!J$16/-1000 -> -1624.998116 | K206: =K$96*$H$30*FC_Financeiro!K$16/-1000 -> -1689.998041 | L206: =L$96*$H$30*FC_Financeiro!L$16/-1000 -> -1757.597962 | M206: =M$96*$H$30*FC_Financeiro!M$16/-1000 -> -1827.901881 | N206: =N$96*$H$30*FC_Financeiro!N$16/-1000 -> -1901.017956 | O206: =O$96*$H$30*FC_Financeiro!O$16/-1000 -> -1977.058674 | P206: =P$96*$H$30*FC_Financeiro!P$16/-1000 -> -2056.141021 | Q206: =Q$96*$H$30*FC_Financeiro!Q$16/-1000 -> -2138.386662 | R206: =R$96*$H$30*FC_Financeiro!R$16/-1000 -> -2223.922129 | S206: =S$96*$H$30*FC_Financeiro!S$16/-1000 -> -2312.879014 | T206: =T$96*$H$30*FC_Financeiro!T$16/-1000 -> -2405.394174 | U206: =U$96*$H$30*FC_Financeiro!U$16/-1000 -> -2501.609941 | V206: =V$96*$H$30*FC_Financeiro!V$16/-1000 -> -2601.674339 | W206: =W$96*$H$30*FC_Financeiro!W$16/-1000 -> -2705.741312 | X206: =X$96*$H$30*FC_Financeiro!X$16/-1000 -> -2344.975804 | Y206: =Y$96*$H$30*FC_Financeiro!Y$16/-1000 -> -1951.019869 | Z206: =Z$96*$H$30*FC_Financeiro!Z$16/-1000 -> -1521.795498 | AA206: =AA$96*$H$30*FC_Financeiro!AA$16/-1000 -> -1055.111545 | AB206: =AB$96*$H$30*FC_Financeiro!AB$16/-1000 -> -548.6580035 | AC206: =AC$96*$H$30*FC_Financeiro!AC$16/-1000 -> 0
A207: Exaustão (mil R$) | B207: =SUM(D207:AC207) -> -255045.5419 | C207: =B113/B200 -> -0.1499617369 | D207: =$C$207*D200 -> 0 | E207: =$C$207*E200 -> 0 | F207: 0 | G207: 0 | H207: 0 | I207: 0 | J207: 0 | K207: -9163.38744 | L207: -9529.922938 | M207: -9911.119855 | N207: -10307.56465 | O207: -11363.05927 | P207: -11817.58164 | Q207: -12290.28491 | R207: -12781.8963 | S207: -13293.17215 | T207: -14607.4405 | U207: -15191.73812 | V207: -15799.40764 | W207: -16431.38395 | X207: -17088.6393 | Y207: -17772.18488 | Z207: -18483.07227 | AA207: -19222.39516 | AB207: -19991.29097 | AC207: 0
A208: Impostos Federais (mil R$) | B208: =SUM(D208:AC208) -> -114459.6303 | C208: =NPV(FC_Financeiro!$D$2,D208:AC208) -> -23778.55347 | D208: =-D200*FC_Financeiro!$D$10 -> 0 | E208: =-E200*FC_Financeiro!$D$10 -> 0 | F208: =-F200*FC_Financeiro!$D$10 -> 0 | G208: =-G200*FC_Financeiro!$D$10 -> 0 | H208: =-H200*FC_Financeiro!$D$10 -> 0 | I208: =-I200*FC_Financeiro!$D$10 -> 0 | J208: =-J200*FC_Financeiro!$D$10 -> 0 | K208: =-K200*FC_Financeiro!$D$10 -> -4112.355507 | L208: =-L200*FC_Financeiro!$D$10 -> -4276.849727 | M208: =-M200*FC_Financeiro!$D$10 -> -4447.923716 | N208: =-N200*FC_Financeiro!$D$10 -> -4625.840665 | O208: =-O200*FC_Financeiro!$D$10 -> -5099.526749 | P208: =-P200*FC_Financeiro!$D$10 -> -5303.507819 | Q208: =-Q200*FC_Financeiro!$D$10 -> -5515.648132 | R208: =-R200*FC_Financeiro!$D$10 -> -5736.274057 | S208: =-S200*FC_Financeiro!$D$10 -> -5965.725019 | T208: =-T200*FC_Financeiro!$D$10 -> -6555.54387 | U208: =-U200*FC_Financeiro!$D$10 -> -6817.765625 | V208: =-V200*FC_Financeiro!$D$10 -> -7090.47625 | W208: =-W200*FC_Financeiro!$D$10 -> -7374.0953 | X208: =-X200*FC_Financeiro!$D$10 -> -7669.059112 | Y208: =-Y200*FC_Financeiro!$D$10 -> -7975.821477 | Z208: =-Z200*FC_Financeiro!$D$10 -> -8294.854336 | AA208: =-AA200*FC_Financeiro!$D$10 -> -8626.648509 | AB208: =-AB200*FC_Financeiro!$D$10 -> -8971.71445 | AC208: =-AC200*FC_Financeiro!$D$10 -> 0
A210: Fluxo de Caixa Final (mil R$) | B210: =SUM(D210:AC210) -> 783835.1044 | C210: =NPV(FC_Financeiro!$D$2,D210:AC210) -> 20429.34444 | D210: =D116+D200+D201+D202+D204+D205+D206+D208 -> -16352.5 | E210: =E116+E200+E201+E202+E204+E205+E206+E208 -> -26986.40415 | F210: -29850.93515 | G210: -32040.991 | H210: -34366.46162 | I210: -36835.1608 | J210: -15851.85662 | K210: =K116+K200+K201+K202+K204+K205+K206+K208 -> 16250.00839 | L210: 16900.00872 | M210: 17576.00907 | N210: 18279.04943 | O210: 21104.35949 | P210: 21948.53387 | Q210: 22826.47523 | R210: 23739.53424 | S210: 24689.11561 | T210: 28224.53157 | U210: 29353.51284 | V210: 30527.65335 | W210: 45683.32724 | X210: 103707.9941 | Y210: 110206.561 | Z210: 117082.1457 | AA210: 124355.9144 | AB210: 132050.2086 | AC210: 71614.47085
... 1 more rows

Sheet FC_Financeiro
C1: Premissas
C2: Taxa de atratividade | D2: 0.1 | E2: a.a.
C3: Selic | D3: 0.105 | E3: a.a.
C4: Ano Zero | D4: 2014
C5: Variação real do preço de Terra | D5: 0.02 | E5: a.a.
C6: PIS | D6: 0.0065 | E6: sobre o faturamento
C7: Cofins | D7: 0.03 | E7: sobre o faturamento
C8: IRPJ | D8: 0.02 | E8: (8% sobre faturamento = Lucro presumido) * (alíquota 25%)
C9: CSLL | D9: 0.0108 | E9: (12% sobre faturamento = base de cálculo) * (alíquota de 9%)
C10: Impostos sobre Faturamento | D10: =SUM(D6:D9) -> 0.0673 | E10: Lucro Presumido de empresa Rural (Pis, Cofins, IR, CSLL)
C11: Pagamento ao capitalista | D11: 0.9 | E11: do saldo acumulado do ano anterior
D12: 10000 | E12: quando o saldo acum anterior ultrapassa esse valor
D14: =D4+1 -> 2015 | E14: =D14+1 -> 2016 | F14: =E14+1 -> 2017 | G14: 2018 | H14: 2019 | I14: 2020 | J14: 2021 | K14: 2022 | L14: 2023 | M14: 2024 | N14: 2025 | O14: 2026 | P14: 2027 | Q14: 2028 | R14: 2029 | S14: 2030 | T14: 2031 | U14: 2032 | V14: 2033 | W14: 2034 | X14: 2035 | Y14: 2036 | Z14: 2037 | AA14: 2038 | AB14: 2039 | AC14: 2040
C15: Inflação | D15: 0.055 | E15: 0.055 | F15: 0.04 | G15: 0.04 | H15: 0.04 | I15: 0.04 | J15: 0.04 | K15: 0.04 | L15: 0.04 | M15: 0.04 | N15: 0.04 | O15: 0.04 | P15: 0.04 | Q15: 0.04 | R15: 0.04 | S15: 0.04 | T15: 0.04 | U15: 0.04 | V15: 0.04 | W15: 0.04 | X15: 0.04 | Y15: 0.04 | Z15: 0.04 | AA15: 0.04 | AB15: 0.04 | AC15: 0.04
C16: Índice IPCA | D16: =(1+$D$15) -> 1.055 | E16: =(1+E15)*D16 -> 1.113025 | F16: =(1+F15)*E16 -> 1.157546 | G16: 1.20384784 | H16: 1.252001754 | I16: 1.302081824 | J16: 1.354165097 | K16: 1.408331701 | L16: 1.464664969 | M16: 1.523251567 | N16: 1.58418163 | O16: 1.647548895 | P16: 1.713450851 | Q16: 1.781988885 | R16: 1.85326844 | S16: 1.927399178 | T16: 2.004495145 | U16: 2.084674951 | V16: 2.168061949 | W16: 2.254784427 | X16: 2.344975804 | Y16: 2.438774836 | Z16: 2.53632583 | AA16: 2.637778863 | AB16: 2.743290017 | AC16: 2.853021618
C17: Índice Preço de Terra | D17: =(1+$D$5) -> 1.02 | E17: =(1+$D$5)*D17 -> 1.0404 | F17: =(1+$D$5)*E17 -> 1.061208 | G17: 1.08243216 | H17: 1.104080803 | I17: 1.126162419 | J17: 1.148685668 | K17: 1.171659381 | L17: 1.195092569 | M17: 1.21899442 | N17: 1.243374308 | O17: 1.268241795 | P17: 1.29360663 | Q17: 1.319478763 | R17: 1.345868338 | S17: 1.372785705 | T17: 1.400241419 | U17: 1.428246248 | V17: 1.456811173 | W17: 1.485947396 | X17: 1.515666344 | Y17: 1.545979671 | Z17: 1.576899264 | AA17: 1.608437249 | AB17: 1.640605994 | AC17: 1.673418114
C19: Fluxo de Caixa | D19: 1 | E19: 2 | F19: 3 | G19: 4 | H19: 5 | I19: 6 | J19: 7 | K19: 8 | L19: 9 | M19: 10 | N19: 11 | O19: 12 | P19: 13 | Q19: 14 | R19: 15 | S19: 16 | T19: 17 | U19: 18 | V19: 19 | W19: 20 | X19: 21 | Y19: 22 | Z19: 23 | AA19: 24 | AB19: 25 | AC19: 26
B20: TIR | C20: Ano | D20: =D14 -> 2015 | E20: 2016 | F20: 2017 | G20: 2018 | H20: 2019 | I20: 2020 | J20: 2021 | K20: 2022 | L20: 2023 | M20: 2024 | N20: 2025 | O20: 2026 | P20: 2027 | Q20: 2028 | R20: 2029 | S20: 2030 | T20: 2031 | U20: 2032 | V20: 2033 | W20: 2034 | X20: 2035 | Y20: 2036 | Z20: 2037 | AA20: 2038 | AB20: 2039 | AC20: 2040
C21: Receitas (mil R$) | D21: =FC_Florestal!D200 -> 0 | E21: =FC_Florestal!E200 -> 0 | F21: =FC_Florestal!F200 -> 0 | G21: =FC_Florestal!G200 -> 0 | H21: =FC_Florestal!H200 -> 0 | I21: =FC_Florestal!I200 -> 0 | J21: =FC_Florestal!J200 -> 0 | K21: =FC_Florestal!K200 -> 61104.83666 | L21: =FC_Florestal!L200 -> 63549.03012 | M21: =FC_Florestal!M200 -> 66090.99133 | N21: =FC_Florestal!N200 -> 68734.63098 | O21: =FC_Florestal!O200 -> 75773.05719 | P21: =FC_Florestal!P200 -> 78803.97948 | Q21: =FC_Florestal!Q200 -> 81956.13866 | R21: =FC_Florestal!R200 -> 85234.38421 | S21: =FC_Florestal!S200 -> 88643.75958 | T21: =FC_Florestal!T200 -> 97407.78411 | U21: =FC_Florestal!U200 -> 101304.0955 | V21: =FC_Florestal!V200 -> 105356.2593 | W21: =FC_Florestal!W200 -> 109570.5097 | X21: =FC_Florestal!X200 -> 113953.33 | Y21: =FC_Florestal!Y200 -> 118511.4633 | Z21: =FC_Florestal!Z200 -> 123251.9218 | AA21: =FC_Florestal!AA200 -> 128181.9987 | AB21: =FC_Florestal!AB200 -> 133309.2786 | AC21: =FC_Florestal!AC200 -> 0
C22: Deduções da Receita (Ex comissões) | D22: 0 | E22: 0 | F22: 0 | G22: 0 | H22: 0 | I22: 0 | J22: 0 | K22: 0 | L22: 0 | M22: 0 | N22: 0 | O22: 0 | P22: 0 | Q22: 0 | R22: 0 | S22: 0 | T22: 0 | U22: 0 | V22: 0 | W22: 0 | X22: 0 | Y22: 0 | Z22: 0 | AA22: 0 | AB22: 0 | AC22: 0
C23: PIS & Cofins (mil R$) | D23: =-($D$6+$D$7)*D21 -> 0 | E23: =-($D$6+$D$7)*E21 -> 0 | F23: 0 | G23: 0 | H23: 0 | I23: 0 | J23: 0 | K23: -2230.326538 | L23: -2319.5396 | M23: -2412.321183 | N23: -2508.814031 | O23: -2765.716588 | P23: -2876.345251 | Q23: -2991.399061 | R23: -3111.055024 | S23: -3235.497225 | T23: -3555.38412 | U23: -3697.599485 | V23: -3845.503464 | W23: -3999.323603 | X23: -4159.296547 | Y23: -4325.668409 | Z23: -4498.695145 | AA23: -4678.642951 | AB23: -4865.788669 | AC23: 0
C25: Despesas Operacionais (mil R$) | D25: =FC_Florestal!D116 -> 0 | E25: =FC_Florestal!E116 -> -8904.2 | F25: =FC_Florestal!F116 -> -10417.914 | G25: =FC_Florestal!G116 -> -11195.78491 | H25: =FC_Florestal!H116 -> -12019.21683 | I25: =FC_Florestal!I116 -> -12890.61006 | J25: =FC_Florestal!J116 -> -13812.48399 | K25: =FC_Florestal!K116 -> -38706.02513 | L25: =FC_Florestal!L116 -> -40254.26613 | M25: =FC_Florestal!M116 -> -41864.43678 | N25: =FC_Florestal!N116 -> -43539.01425 | O25: =FC_Florestal!O116 -> -47186.81525 | P25: =FC_Florestal!P116 -> -49074.28786 | Q25: =FC_Florestal!Q116 -> -51037.25937 | R25: =FC_Florestal!R116 -> -53078.74975 | S25: =FC_Florestal!S116 -> -55201.89974 | T25: =FC_Florestal!T116 -> -59729.20868 | U25: =FC_Florestal!U116 -> -62118.37703 | V25: =FC_Florestal!V116 -> -64603.11211 | W25: =FC_Florestal!W116 -> -53658.53003 | X25: =FC_Florestal!X116 -> -53459.89543 | Y25: =FC_Florestal!Y116 -> -54866.6588 | Z25: =FC_Florestal!Z116 -> -56300.4274 | AA25: =FC_Florestal!AA116 -> -57761.11084 | AB25: =FC_Florestal!AB116 -> -59248.56827 | AC25: =FC_Florestal!AC116 -> 0
C26: Arrendamento (mil R$) | D26: =FC_Florestal!D205 -> 0 | E26: =FC_Florestal!E205 -> 0 | F26: =FC_Florestal!F205 -> 0 | G26: =FC_Florestal!G205 -> 0 | H26: =FC_Florestal!H205 -> 0 | I26: =FC_Florestal!I205 -> 0 | J26: =FC_Florestal!J205 -> 0 | K26: =FC_Florestal!K205 -> 0 | L26: =FC_Florestal!L205 -> 0 | M26: =FC_Florestal!M205 -> 0 | N26: =FC_Florestal!N205 -> 0 | O26: =FC_Florestal!O205 -> 0 | P26: =FC_Florestal!P205 -> 0 | Q26: =FC_Florestal!Q205 -> 0 | R26: =FC_Florestal!R205 -> 0 | S26: =FC_Florestal!S205 -> 0 | T26: =FC_Florestal!T205 -> 0 | U26: =FC_Florestal!U205 -> 0 | V26: =FC_Florestal!V205 -> 0 | W26: =FC_Florestal!W205 -> 0 | X26: =FC_Florestal!X205 -> 0 | Y26: =FC_Florestal!Y205 -> 0 | Z26: =FC_Florestal!Z205 -> 0 | AA26: =FC_Florestal!AA205 -> 0 | AB26: =FC_Florestal!AB205 -> 0 | AC26: =FC_Florestal!AC205 -> 0
C27: Gestão Florestal (mil R$) | D27: =FC_Florestal!D206 -> -211 | E27: =FC_Florestal!E206 -> -445.21 | F27: =FC_Florestal!F206 -> -694.5276 | G27: =FC_Florestal!G206 -> -963.078272 | H27: =FC_Florestal!H206 -> -1252.001754 | I27: =FC_Florestal!I206 -> -1562.498188 | J27: =FC_Florestal!J206 -> -1624.998116 | K27: =FC_Florestal!K206 -> -1689.998041 | L27: =FC_Florestal!L206 -> -1757.597962 | M27: =FC_Florestal!M206 -> -1827.901881 | N27: =FC_Florestal!N206 -> -1901.017956 | O27: =FC_Florestal!O206 -> -1977.058674 | P27: =FC_Florestal!P206 -> -2056.141021 | Q27: =FC_Florestal!Q206 -> -2138.386662 | R27: =FC_Florestal!R206 -> -2223.922129 | S27: =FC_Florestal!S206 -> -2312.879014 | T27: =FC_Florestal!T206 -> -2405.394174 | U27: =FC_Florestal!U206 -> -2501.609941 | V27: =FC_Florestal!V206 -> -2601.674339 | W27: =FC_Florestal!W206 -> -2705.741312 | X27: =FC_Florestal!X206 -> -2344.975804 | Y27: =FC_Florestal!Y206 -> -1951.019869 | Z27: =FC_Florestal!Z206 -> -1521.795498 | AA27: =FC_Florestal!AA206 -> -1055.111545 | AB27: =FC_Florestal!AB206 -> -548.6580035 | AC27: =FC_Florestal!AC206 -> 0
C29: Earnings Before Interest, Taxes, Depreciation and Amortization - EBITDA
B30: =IRR(D30:AC30) -> 0.202022647 | C30: EBITDA (mil R$) | D30: =SUM(D21:D27) -> -211 | E30: =SUM(E21:E27) -> -9349.41 | F30: -11112.4416 | G30: -12158.86318 | H30: -13271.21859 | I30: -14453.10824 | J30: -15437.4821 | K30: 18478.48695 | L30: 19217.62643 | M30: 19986.33149 | N30: 20785.78475 | O30: 23843.46668 | P30: 24797.20535 | Q30: 25789.09356 | R30: 26820.65731 | S30: 27893.4836 | T30: 31717.79713 | U30: 32986.50902 | V30: 34305.96938 | W30: 49206.91471 | X30: 53989.16227 | Y30: 57368.11618 | Z30: 60931.00374 | AA30: 64687.13332 | AB30: 68646.26366 | AC30: 0
C32: Exaustão (mil R$) | D32: =FC_Florestal!D207 -> 0 | E32: =FC_Florestal!E207 -> 0 | F32: =FC_Florestal!F207 -> 0 | G32: =FC_Florestal!G207 -> 0 | H32: =FC_Florestal!H207 -> 0 | I32: =FC_Florestal!I207 -> 0 | J32: =FC_Florestal!J207 -> 0 | K32: =FC_Florestal!K207 -> -9163.38744 | L32: =FC_Florestal!L207 -> -9529.922938 | M32: =FC_Florestal!M207 -> -9911.119855 | N32: =FC_Florestal!N207 -> -10307.56465 | O32: =FC_Florestal!O207 -> -11363.05927 | P32: =FC_Florestal!P207 -> -11817.58164 | Q32: =FC_Florestal!Q207 -> -12290.28491 | R32: =FC_Florestal!R207 -> -12781.8963 | S32: =FC_Florestal!S207 -> -13293.17215 | T32: =FC_Florestal!T207 -> -14607.4405 | U32: =FC_Florestal!U207 -> -15191.73812 | V32: =FC_Florestal!V207 -> -15799.40764 | W32: =FC_Florestal!W207 -> -16431.38395 | X32: =FC_Florestal!X207 -> -17088.6393 | Y32: =FC_Florestal!Y207 -> -17772.18488 | Z32: =FC_Florestal!Z207 -> -18483.07227 | AA32: =FC_Florestal!AA207 -> -19222.39516 | AB32: =FC_Florestal!AB207 -> -19991.29097 | AC32: =FC_Florestal!AC207 -> 0
C33: Depreciação (mil R$) | D33: 0 | E33: 0 | F33: 0 | G33: 0 | H33: 0 | I33: 0 | J33: 0 | K33: 0 | L33: 0 | M33: 0 | N33: 0 | O33: 0 | P33: 0 | Q33: 0 | R33: 0 | S33: 0 | T33: 0 | U33: 0 | V33: 0 | W33: 0 | X33: 0 | Y33: 0 | Z33: 0 | AA33: 0 | AB33: 0 | AC33: 0
C35: Earnings Before Interest & Tax - EBIT
B36: =IRR(D36:AC36) -> 0.1363316 | C36: EBIT (mil R$) | D36: =SUM(D30:D33) -> -211 | E36: =SUM(E30:E33) -> -9349.41 | F36: -11112.4416 | G36: -12158.86318 | H36: -13271.21859 | I36: -14453.10824 | J36: -15437.4821 | K36: 9315.099513 | L36: 9687.703493 | M36: 10075.21163 | N36: 10478.2201 | O36: 12480.40741 | P36: 12979.62371 | Q36: 13498.80866 | R36: 14038.761 | S36: 14600.31144 | T36: 17110.35663 | U36: 17794.7709 | V36: 18506.56174 | W36: 32775.53077 | X36: 36900.52296 | Y36: 39595.9313 | Z36: 42447.93147 | AA36: 45464.73816 | AB36: 48654.97269 | AC36: 0
C38: Despesas Financeiras (mil R$) | D38: 0 | E38: 0 | F38: 0 | G38: 0 | H38: 0 | I38: 0 | J38: 0 | K38: 0 | L38: 0 | M38: 0 | N38: 0 | O38: 0 | P38: 0 | Q38: 0 | R38: 0 | S38: 0 | T38: 0 | U38: 0 | V38: 0 | W38: 0 | X38: 0 | Y38: 0 | Z38: 0 | AA38: 0 | AB38: 0 | AC38: 0
C40: Earnings Before Tax - EBT
B41: =IRR(D41:AC41) -> 0.1363316 | C41: EBT | D41: =SUM(D36:D38) -> -211 | E41: =SUM(E36:E38) -> -9349.41 | F41: -11112.4416 | G41: -12158.86318 | H41: -13271.21859 | I41: -14453.10824 | J41: -15437.4821 | K41: 9315.099513 | L41: 9687.703493 | M41: 10075.21163 | N41: 10478.2201 | O41: 12480.40741 | P41: 12979.62371 | Q41: 13498.80866 | R41: 14038.761 | S41: 14600.31144 | T41: 17110.35663 | U41: 17794.7709 | V41: 18506.56174 | W41: 32775.53077 | X41: 36900.52296 | Y41: 39595.9313 | Z41: 42447.93147 | AA41: 45464.73816 | AB41: 48654.97269 | AC41: 0
C43: IRPJ, CSLL | D43: =-($D$8+$D$9)*D21 -> 0 | E43: =-($D$8+$D$9)*E21 -> 0 | F43: 0 | G43: 0 | H43: 0 | I43: 0 | J43: 0 | K43: -1882.028969 | L43: -1957.310128 | M43: -2035.602533 | N43: -2117.026634 | O43: -2333.810162 | P43: -2427.162568 | Q43: -2524.249071 | R43: -2625.219034 | S43: -2730.227795 | T43: -3000.159751 | U43: -3120.166141 | V43: -3244.972786 | W43: -3374.771698 | X43: -3509.762565 | Y43: -3650.153068 | Z43: -3796.159191 | AA43: -3948.005558 | AB43: -4105.925781 | AC43: 0
C45: Lucro Líquido
B46: =IRR(D46:AC46) -> 0.1200195229 | C46: Lucro Líquido | D46: =SUM(D41:D43) -> -211 | E46: =SUM(E41:E43) -> -9349.41 | F46: -11112.4416 | G46: -12158.86318 | H46: -13271.21859 | I46: -14453.10824 | J46: -15437.4821 | K46: 7433.070544 | L46: 7730.393366 | M46: 8039.6091 | N46: 8361.193464 | O46: 10146.59725 | P46: 10552.46114 | Q46: 10974.55959 | R46: 11413.54197 | S46: 11870.08365 | T46: 14110.19688 | U46: 14674.60476 | V46: 15261.58895 | W46: 29400.75907 | X46: 33390.7604 | Y46: 35945.77823 | Z46: 38651.77228 | AA46: 41516.7326 | AB46: 44549.04691 | AC46: 0
C48: Investimentos
C49: Compra de Terra | D49: =SUM(FC_Florestal!D201:D202) -> -16141.5 | E49: =SUM(FC_Florestal!E201:E202) -> -17369.86815 | F49: =SUM(FC_Florestal!F201:F202) -> -18425.95613 | G49: =SUM(FC_Florestal!G201:G202) -> -19546.25427 | H49: =SUM(FC_Florestal!H201:H202) -> -20734.66653 | I49: =SUM(FC_Florestal!I201:I202) -> -21995.33425 | J49: =SUM(FC_Florestal!J201:J202) -> 0 | K49: =SUM(FC_Florestal!K201:K202) -> 0 | L49: =SUM(FC_Florestal!L201:L202) -> 0 | M49: =SUM(FC_Florestal!M201:M202) -> 0 | N49: =SUM(FC_Florestal!N201:N202) -> 0 | O49: =SUM(FC_Florestal!O201:O202) -> 0 | P49: =SUM(FC_Florestal!P201:P202) -> 0 | Q49: =SUM(FC_Florestal!Q201:Q202) -> 0 | R49: =SUM(FC_Florestal!R201:R202) -> 0 | S49: =SUM(FC_Florestal!S201:S202) -> 0 | T49: =SUM(FC_Florestal!T201:T202) -> 0 | U49: =SUM(FC_Florestal!U201:U202) -> 0 | V49: =SUM(FC_Florestal!V201:V202) -> 0 | W49: =SUM(FC_Florestal!W201:W202) -> 0 | X49: =SUM(FC_Florestal!X201:X202) -> 53313.01355 | Y49: =SUM(FC_Florestal!Y201:Y202) -> 56554.44478 | Z49: =SUM(FC_Florestal!Z201:Z202) -> 59992.95502 | AA49: =SUM(FC_Florestal!AA201:AA202) -> 63640.52668 | AB49: =SUM(FC_Florestal!AB201:AB202) -> 67509.87071 | AC49: =SUM(FC_Florestal!AC201:AC202) -> 71614.47085
C50: Equipamentos | D50: =FC_Florestal!D204 -> 0 | E50: =FC_Florestal!E204 -> -267.126 | F50: =FC_Florestal!F204 -> -312.53742 | G50: =FC_Florestal!G204 -> -335.8735474 | H50: =FC_Florestal!H204 -> -360.576505 | I50: =FC_Florestal!I204 -> -386.7183017 | J50: =FC_Florestal!J204 -> -414.3745196 | K50: =FC_Florestal!K204 -> -346.4495983 | L50: =FC_Florestal!L204 -> -360.3075823 | M50: =FC_Florestal!M204 -> -374.7198856 | N50: =FC_Florestal!N204 -> -389.708681 | O50: =FC_Florestal!O204 -> -405.2970282 | P50: =FC_Florestal!P204 -> -421.5089094 | Q50: =FC_Florestal!Q204 -> -438.3692657 | R50: =FC_Florestal!R204 -> -455.9040364 | S50: =FC_Florestal!S204 -> -474.1401978 | T50: =FC_Florestal!T204 -> -493.1058057 | U50: =FC_Florestal!U204 -> -512.830038 | V50: =FC_Florestal!V204 -> -533.3432395 | W50: =FC_Florestal!W204 -> -148.8157722 | X50: =FC_Florestal!X204 -> -84.41912895 | Y50: =FC_Florestal!Y204 -> -65.84692058 | Z50: =FC_Florestal!Z204 -> -45.65386494 | AA50: =FC_Florestal!AA204 -> -23.74000977 | AB50: =FC_Florestal!AB204 -> 0 | AC50: =FC_Florestal!AC204 -> 0
C52: Fluxo de Caixa do Empreendimento Florestal
B53: =IRR(D53:AC53) -> 0.1112455059 | C53: Saldo Florestal | D53: =D30+D38+D43+D49+D50 -> -16352.5 | E53: =E30+E38+E43+E49+E50 -> -26986.40415 | F53: -29850.93515 | G53: -32040.991 | H53: -34366.46162 | I53: -36835.1608 | J53: -15851.85662 | K53: 16250.00839 | L53: 16900.00872 | M53: 17576.00907 | N53: 18279.04943 | O53: 21104.35949 | P53: 21948.53387 | Q53: 22826.47523 | R53: 23739.53424 | S53: 24689.11561 | T53: 28224.53157 | U53: 29353.51284 | V53: 30527.65335 | W53: 45683.32724 | X53: 103707.9941 | Y53: 110206.561 | Z53: 117082.1457 | AA53: 124355.9144 | AB53: 132050.2086 | AC53: 71614.47085
C54: Acumulado | D54: =D53 -> -16352.5 | E54: =SUM($D$53:E53) -> -43338.90415 | F54: =SUM($D$53:F53) -> -73189.8393 | G54: =SUM($D$53:G53) -> -105230.8303 | H54: =SUM($D$53:H53) -> -139597.2919 | I54: =SUM($D$53:I53) -> -176432.4527 | J54: =SUM($D$53:J53) -> -192284.3093 | K54: =SUM($D$53:K53) -> -176034.301 | L54: =SUM($D$53:L53) -> -159134.2922 | M54: =SUM($D$53:M53) -> -141558.2832 | N54: =SUM($D$53:N53) -> -123279.2337 | O54: =SUM($D$53:O53) -> -102174.8742 | P54: =SUM($D$53:P53) -> -80226.34036 | Q54: =SUM($D$53:Q53) -> -57399.86514 | R54: =SUM($D$53:R53) -> -33660.3309 | S54: =SUM($D$53:S53) -> -8971.215292 | T54: =SUM($D$53:T53) -> 19253.31628 | U54: =SUM($D$53:U53) -> 48606.82912 | V54: =SUM($D$53:V53) -> 79134.48247 | W54: =SUM($D$53:W53) -> 124817.8097 | X54: =SUM($D$53:X53) -> 228525.8038 | Y54: =SUM($D$53:Y53) -> 338732.3648 | Z54: =SUM($D$53:Z53) -> 455814.5105 | AA54: =SUM($D$53:AA53) -> 580170.4249 | AB54: =SUM($D$53:AB53) -> 712220.6335 | AC54: =SUM($D$53:AC53) -> 783835.1044
C56: Cálculo do Capital
C57: Capital Necessário
C58: Aporte de Capital | D58: =IF(D53<0,-D53,0) -> 16352.5 | E58: =IF(E53<0,IF(D58>0,-E53,0),0) -> 26986.40415 | F58: =IF(F53<0,IF(E58>0,-F53,0),0) -> 29850.93515 | G58: 32040.991 | H58: 34366.46162 | I58: 36835.1608 | J58: 15851.85662 | K58: 0 | L58: 0 | M58: 0 | N58: 0 | O58: 0 | P58: 0 | Q58: 0 | R58: 0 | S58: 0 | T58: 0 | U58: 0 | V58: 0 | W58: 0 | X58: 0 | Y58: 0 | Z58: 0 | AA58: 0 | AB58: 0 | AC58: 0
C59: Saldo Após aporte | D59: =D53+D58 -> 0 | E59: =E53+E58 -> 0 | F59: 0 | G59: 0 | H59: 0 | I59: 0 | J59: 0 | K59: 16250.00839 | L59: 16900.00872 | M59: 17576.00907 | N59: 18279.04943 | O59: 21104.35949 | P59: 21948.53387 | Q59: 22826.47523 | R59: 23739.53424 | S59: 24689.11561 | T59: 28224.53157 | U59: 29353.51284 | V59: 30527.65335 | W59: 45683.32724 | X59: 103707.9941 | Y59: 110206.561 | Z59: 117082.1457 | AA59: 124355.9144 | AB59: 132050.2086 | AC59: 71614.47085
C60: Saldo Acumulado após aporte | D60: =D59 -> 0 | E60: =E59+D60 -> 0 | F60: =F59+E60 -> 0 | G60: 0 | H60: 0 | I60: 0 | J60: 0 | K60: 16250.00839 | L60: 33150.01711 | M60: 50726.02618 | N60: 69005.07561 | O60: 90109.4351 | P60: 112057.969 | Q60: 134884.4442 | R60: 158623.9784 | S60: 183313.094 | T60: 211537.6256 | U60: 240891.1385 | V60: 271418.7918 | W60: 317102.1191 | X60: 420810.1132 | Y60: 531016.6741 | Z60: 648098.8198 | AA60: 772454.7343 | AB60: 904504.9429 | AC60: 976119.4137
C62: Pagamentos ao Capitalista | D62: =IF(D60>$D$12,-150000,0) -> 0 | E62: =IF(D64>$D$12,-$D$11*D64,0) -> 0 | F62: 0 | G62: 0 | H62: 0 | I62: 0 | J62: 0 | K62: 0 | L62: -14625.00755 | M62: -16672.5086 | N62: -17485.65902 | O62: -18199.71039 | P62: -20813.89458 | Q62: -21835.06994 | R62: -22727.3347 | S62: -23638.31428 | T62: -24584.03547 | U62: -27860.48196 | V62: -29204.20975 | W62: -30395.30899 | X62: -44154.52542 | Y62: -97752.64725 | Z62: -108961.1696 | AA62: -116270.0481 | AB62: -123547.3278 | AC62: =IF(AB64>$D$12,-AB64-AC59,0) -> -217392.1603
C63: Saldo Após pagamento ao Capitalista | D63: =D59+D62 -> 0 | E63: =E59+E62 -> 0 | F63: 0 | G63: 0 | H63: 0 | I63: 0 | J63: 0 | K63: 16250.00839 | L63: 2275.001174 | M63: 903.5004662 | N63: 793.3904094 | O63: 2904.649101 | P63: 1134.63929 | Q63: 991.4052839 | R63: 1012.199537 | S63: 1050.801323 | T63: 3640.4961 | U63: 1493.030873 | V63: 1323.443601 | W63: 15288.01825 | X63: 59553.46871 | Y63: 12453.91371 | Z63: 8120.976108 | AA63: 8085.866345 | AB63: 8502.880786 | AC63: -145777.6895
C64: Saldo Acumulado após pagamento | D64: =D63 -> 0 | E64: =E63+D64 -> 0 | F64: =F63+E64 -> 0 | G64: 0 | H64: 0 | I64: 0 | J64: 0 | K64: 16250.00839 | L64: 18525.00956 | M64: 19428.51003 | N64: 20221.90044 | O64: 23126.54954 | P64: 24261.18883 | Q64: 25252.59411 | R64: 26264.79365 | S64: 27315.59497 | T64: 30956.09107 | U64: 32449.12194 | V64: 33772.56554 | W64: 49060.5838 | X64: 108614.0525 | Y64: 121067.9662 | Z64: 129188.9423 | AA64: 137274.8087 | AB64: 145777.6895 | AC64: 0
C66: Fluxo de caixa do sócio capitalista
C67: Aporte | D67: =-D58 -> -16352.5 | E67: =-E58 -> -26986.40415 | F67: -29850.93515 | G67: -32040.991 | H67: -34366.46162 | I67: -36835.1608 | J67: -15851.85662 | K67: 0 | L67: 0 | M67: 0 | N67: 0 | O67: 0 | P67: 0 | Q67: 0 | R67: 0 | S67: 0 | T67: 0 | U67: 0 | V67: 0 | W67: 0 | X67: 0 | Y67: 0 | Z67: 0 | AA67: 0 | AB67: 0 | AC67: 0
C68: Recebimentos | D68: =-D62 -> 0 | E68: =-E62 -> 0 | F68: 0 | G68: 0 | H68: 0 | I68: 0 | J68: 0 | K68: 0 | L68: 14625.00755 | M68: 16672.5086 | N68: 17485.65902 | O68: 18199.71039 | P68: 20813.89458 | Q68: 21835.06994 | R68: 22727.3347 | S68: 23638.31428 | T68: 24584.03547 | U68: 27860.48196 | V68: 29204.20975 | W68: 30395.30899 | X68: 44154.52542 | Y68: 97752.64725 | Z68: 108961.1696 | AA68: 116270.0481 | AB68: 123547.3278 | AC68: 217392.1603
B69: =IRR(D69:AC69) -> 0.1031597152 | C69: Valor Líquido | D69: =D68+D67 -> -16352.5 | E69: =E68+E67 -> -26986.40415 | F69: -29850.93515 | G69: -32040.991 | H69: -34366.46162 | I69: -36835.1608 | J69: -15851.85662 | K69: 0 | L69: 14625.00755 | M69: 16672.5086 | N69: 17485.65902 | O69: 18199.71039 | P69: 20813.89458 | Q69: 21835.06994 | R69: 22727.3347 | S69: 23638.31428 | T69: 24584.03547 | U69: 27860.48196 | V69: 29204.20975 | W69: 30395.30899 | X69: 44154.52542 | Y69: 97752.64725 | Z69: 108961.1696 | AA69: 116270.0481 | AB69: 123547.3278 | AC69: 217392.1603
C70: TIR | D70: =IRR(D69:AC69) -> 0.1031597152
